Workbook

Sheet Read Me
C2: Taal / Language
C3: Nederlands
G4: =IF($C$3="Nederlands",J4, IF($C$3="English",K4,K4)) -> Voorwoord | J4: Voorwoord | K4: Preface
G5: =IF($C$3="Nederlands",J5, IF($C$3="English",K5,K5)) -> Het kostprijsmodel “TCO-ZET-Vracht” is in opdracht van Topsector Logistiek en het Ministerie van I&W door Panteia gebouwd en wordt door haar vervolgens onderhouden. Bij de ontwikkeling van dit TCO-model is gekozen voor een open en transparante opzet. Dit betekent dat helder is welke rekenregels zijn toegepast en welke waarde van de default data als uitgangswaarde is gehanteerd. Het TCO-model wordt mede onderschreven door RAI, evofenedex en TLN. | J5: Het kostprijsmodel “TCO-ZET-Vracht” is in opdracht van Topsector Logistiek en het Ministerie van I&W door Panteia gebouwd en wordt door haar vervolgens onderhouden. Bij de ontwikkeling van dit TCO-model is gekozen voor een open en transparante opzet. Dit betekent dat helder is welke rekenregels zijn toegepast en welke waarde van de default data als uitgangswaarde is gehanteerd. Het TCO-model wordt mede onderschreven door RAI, evofenedex en TLN. | K5: The cost price model "TCO-ZET-Vracht" was built by Panteia on behalf of Top Sector Logistics and the Ministry of I&W and is subsequently maintained by it. In the development of this TCO-model an open and transparent approach has been chosen. This means that it is clear which calculation rules have been applied and which value of the default data has been used as a starting value. The TCO model is also endorsed by RAI, evofenedex and TLN.
G7: =IF($C$3="Nederlands",J7, IF($C$3="English",K7,K7)) -> Nieuw in TCO-ZET-Vracht versie 7.3 (d.d. 23-09-2024): | J7: Nieuw in TCO-ZET-Vracht versie 7.3 (d.d. 23-09-2024): | K7: New in TCO-ZET-Vracht version 7.3 (d.d. 23-09-2024):
G8: =IF($C$3="Nederlands",J8, IF($C$3="English",K8,K8)) -> In versie 7.3 is ten opzichte van de voorgaande versie het prijsniveau van de defaultwaarden verlegd van 2023 naar 2024. De belangrijkste wijzigingen zijn: - Nieuwprijs dieselvoertuigen: +5,3% - Nieuwprijs BEV: -6,1% - Nieuwprijs FCEV, H2ICE: +2,9% - Aanschafprijs laadpalen: -19% N.B.: De vermelde defaultwaarden kunnen naar eigen inzicht worden overschreven. Naast de subsidie op de aanschaf van zero-emissievoertuigen (AanZET) is nu ook de subsidie op laadinfrastructuur (SPRILA) in het kostenmodel opgenomen. Het betreft hierbij een subsidie op de aanschaf van laadpalen, de aanleg van het laadstation en de eventuele stationaire batterij. | J8: In versie 7.3 is ten opzichte van de voorgaande versie het prijsniveau van de defaultwaarden verlegd van 2023 naar 2024. De belangrijkste wijzigingen zijn: - Nieuwprijs dieselvoertuigen: +5,3% - Nieuwprijs BEV: -6,1% - Nieuwprijs FCEV, H2ICE: +2,9% - Aanschafprijs laadpalen: -19% N.B.: De vermelde defaultwaarden kunnen naar eigen inzicht worden overschreven. Naast de subsidie op de aanschaf van zero-emissievoertuigen (AanZET) is nu ook de subsidie op laadinfrastructuur (SPRILA) in het kostenmodel opgenomen. Het betreft hierbij een subsidie op de aanschaf van laadpalen, de aanleg van het laadstation en de eventuele stationaire batterij. | K8: In version 7.3, compared to the previous version, the price level of the defaults has been shifted from 2023 to 2024. The main changes are: - Purchase price diesel vehicle: +5.3% - Purchase price BEV: -6,1% - Purchase price FCEV, H2ICE: +2.9% - Purchase price of charging stations: -19% Note: The default values listed can be overridden at your discretion. In addition to the subsidy on the purchase of zero-emission vehicles (AanZET), the subsidy on charging infrastructure (SPRILA) is now also included in the cost model. This is a subsidy on the purchase of charging stations, the construction of the charging station and if any, a stationary battery.
G11: - 0 - 0 - 0 - 0 -
G14: =IF($C$3="Nederlands",J14, IF($C$3="English",K14,K14)) -> Het gebruik | J14: Het gebruik | K14: Usage
G15: =IF($C$3="Nederlands",J15, IF($C$3="English",K15,K15)) -> De opzet van het TCO-Vracht is zo eenvoudig als mogelijk gehouden. Dit houdt in dat het TCO-Vracht op basis van een beperkte input reeds onderbouwde rekenresultaten produceert. Wel moet het veld “Enable Content” (soms) worden aangeklikt om gebruik te kunnen maken van voor de berekeningen noodzakelijke “Macros”. Let op: Sommige beveiligingssoftware verhindert het gebruik van deze Macros. Dit kan verholpen worden door de Excelfile eerst lokaal op te slaan en vanaf deze locatie te werken. | J15: De opzet van het TCO-Vracht is zo eenvoudig als mogelijk gehouden. Dit houdt in dat het TCO-Vracht op basis van een beperkte input reeds onderbouwde rekenresultaten produceert. Wel moet het veld “Enable Content” (soms) worden aangeklikt om gebruik te kunnen maken van voor de berekeningen noodzakelijke “Macros”. Let op: Sommige beveiligingssoftware verhindert het gebruik van deze Macros. Dit kan verholpen worden door de Excelfile eerst lokaal op te slaan en vanaf deze locatie te werken. | K15: The design of the TCO-Freight has been kept as simple as possible. This means that the TCO-Force already produces substantiated calculation results based on a limited input. However, the field Enable Content" must (sometimes) be clicked in order to be able to use "Macros" necessary for the calculations. Note: Some security software prevents the use of these Macros. This can be remedied by saving the Excel file locally first and working from this location.
G17: =IF($C$3="Nederlands",J17, IF($C$3="English",K17,K17)) -> Defaultwaarden | J17: Defaultwaarden | K17: Default values
G18: =IF($C$3="Nederlands",J18, IF($C$3="English",K18,K18)) -> Bij een groot aantal (input-) gegevens is in het TCO-Vracht reeds een defaultwaarde ingevuld. Deze defaultwaarde (=standaardwaarde) is gebaseerd op gegevens uit de transportwereld. Veel van deze gegevens kunnen naar eigen inzicht veranderd worden met een eigen getal door gebruik te maken van een aantal “knoppen”. Bij deze knoppen is telkens de gebruikte defaultwaarde weergegeven. Overigens, met de resetknop: “Herstel invoervelden”, wordt teruggegaan naar de oorspronkelijke (default-) waarden. | J18: Bij een groot aantal (input-) gegevens is in het TCO-Vracht reeds een defaultwaarde ingevuld. Deze defaultwaarde (=standaardwaarde) is gebaseerd op gegevens uit de transportwereld. Veel van deze gegevens kunnen naar eigen inzicht veranderd worden met een eigen getal door gebruik te maken van een aantal “knoppen”. Bij deze knoppen is telkens de gebruikte defaultwaarde weergegeven. Overigens, met de resetknop: “Herstel invoervelden”, wordt teruggegaan naar de oorspronkelijke (default-) waarden. | K18: For a large number of (input) data, a default value has already been entered in TCO-Freight. This default value (=standard value) is based on data from the transport world. Many of these data can be changed at one's own discretion with one's own number by using a number of buttons". The default value used is always shown with these buttons. By the way, with the reset button: "Reset input", the original (default) values are returned to.
G20: =IF($C$3="Nederlands",J20, IF($C$3="English",K20,K20)) -> Resultaten | J20: Resultaten | K20: Results
G21: =IF($C$3="Nederlands",J21, IF($C$3="English",K21,K21)) -> De rekenresultaten worden kolomsgewijs getoond voor telkens een elektrische, een brandstofcel en een dieselvariant van een voertuig met vergelijkbare transportkarakteristieken. De verwachte jaarkilometrage van het geselecteerde voertuig is een bepalend getal. Op basis hiervan worden niet alleen de kosten en emissies berekend maar wordt bijvoorbeeld ook een advies gegeven over optimale capaciteit van de batterij en het vermogen van het oplaadsysteem. | J21: De rekenresultaten worden kolomsgewijs getoond voor telkens een elektrische, een brandstofcel en een dieselvariant van een voertuig met vergelijkbare transportkarakteristieken. De verwachte jaarkilometrage van het geselecteerde voertuig is een bepalend getal. Op basis hiervan worden niet alleen de kosten en emissies berekend maar wordt bijvoorbeeld ook een advies gegeven over optimale capaciteit van de batterij en het vermogen van het oplaadsysteem. | K21: The calculation results are shown columnwise for each of an electric, a fuel cell and a diesel variant of a vehicle with similar transport characteristics. The expected annual mileage of the selected vehicle is a decisive figure. On this basis, not only the costs and emissions are calculated but also, for example, advice is given on the optimum capacity of the battery and the power of the charging system.
G23: =IF($C$3="Nederlands",J23, IF($C$3="English",K23,K23)) -> Emissies | J23: Emissies | K23: Emissions
G24: =IF($C$3="Nederlands",J24, IF($C$3="English",K24,K24)) -> Hoewel het een kostprijsmodel betreft, worden tevens de emissies (WtW) van een aantal vervuilende stoffen van het geselecteerde voertuig berekend. Het betreft daarbij CO2, NOx en PMx. Het ligt voor de hand dat er met (batterij of brandstofcel) elektrische voertuigen op groene stroom c.q. groene waterstof gereden wordt. Wanneer dit om een of andere reden niet mogelijk is, kan bijvoorbeeld “grijze elektriciteit” worden geselecteerd. Er wordt in dat geval gerekend met (de uitstoot van) de Nederlandse elektriciteitsmix. | J24: Hoewel het een kostprijsmodel betreft, worden tevens de emissies (WtW) van een aantal vervuilende stoffen van het geselecteerde voertuig berekend. Het betreft daarbij CO2, NOx en PMx. Het ligt voor de hand dat er met (batterij of brandstofcel) elektrische voertuigen op groene stroom c.q. groene waterstof gereden wordt. Wanneer dit om een of andere reden niet mogelijk is, kan bijvoorbeeld “grijze elektriciteit” worden geselecteerd. Er wordt in dat geval gerekend met (de uitstoot van) de Nederlandse elektriciteitsmix. | K24: Although it is a cost model, it also calculates the emissions (WtW) of a number of pollutants of the selected vehicle. This concerns CO2, NOx and PMx. It is obvious that (battery or fuel cell) electric vehicles are driven on green electricity or green hydrogen. If, for some reason, this is not possible, then grey electricity" can be selected, for example. In that case (the emissions of) the Dutch electricity mix is used.
G26: =IF($C$3="Nederlands",J26, IF($C$3="English",K26,K26)) -> Nieuwe versies | J26: Nieuwe versies | K26: New versions
G27: =IF($C$3="Nederlands",J27, IF($C$3="English",K27,K27)) -> De ontwikkelingen met betrekking tot de energietransitie volgen elkaar in een hoog tempo op. Niet alleen verandert de defaultwaarde van de inputgegevens bijvoorbeeld in de vorm van prijsdalingen, ook komen er regelmatig nieuwe voertuigklassen beschikbaar. Om te zorgen dat het TCO-Vracht zo actueel mogelijk blijft, worden er daarom periodiek updates gemaakt. Deze nieuwe versies van het model worden vervolgens gratis ter beschikking gesteld. | J27: De ontwikkelingen met betrekking tot de energietransitie volgen elkaar in een hoog tempo op. Niet alleen verandert de defaultwaarde van de inputgegevens bijvoorbeeld in de vorm van prijsdalingen, ook komen er regelmatig nieuwe voertuigklassen beschikbaar. Om te zorgen dat het TCO-Vracht zo actueel mogelijk blijft, worden er daarom periodiek updates gemaakt. Deze nieuwe versies van het model worden vervolgens gratis ter beschikking gesteld. | K27: The developments related to the energy transition follow each other in rapid succession. Not only does the default value of the input data change, for example in the form of price drops, but also new vehicle classes regularly become available. To ensure that TCO-Freight remains as current as possible, updates are therefore made periodically. These new versions of the model are then made available free of charge.
G29: =IF($C$3="Nederlands",J29, IF($C$3="English",K29,K29)) -> Disclaimer | J29: Disclaimer | K29: Disclaimer
G30: =IF($C$3="Nederlands",J30, IF($C$3="English",K30,K30)) -> Veel zorg is besteed aan de correctheid van de rekenregels en de gebruikte inputdata c.q. defaultwaarden. Panteia of de Topsector Logistiek zijn echter niet aansprakelijk te houden voor de juistheid van de rekenresultaten. Deze kunnen ofwel lager dan wel hoger zijn. | J30: Veel zorg is besteed aan de correctheid van de rekenregels en de gebruikte inputdata c.q. defaultwaarden. Panteia of de Topsector Logistiek zijn echter niet aansprakelijk te houden voor de juistheid van de rekenresultaten. Deze kunnen ofwel lager dan wel hoger zijn. | K30: Great care has been taken to ensure the correctness of the calculation rules and the input data used or default values. However, Panteia or Top Sector Logistics cannot be held liable for the accuracy of the calculation results. These can be either lower or higher.
G32: =IF($C$3="Nederlands",J32, IF($C$3="English",K32,K32)) -> Contact | J32: Contact | K32: Contact
G33: =IF($C$3="Nederlands",J33, IF($C$3="English",K33,K33)) -> Indien u vragen hebt dan kunt u deze bij voorkeur verzenden naar: TCO-Vracht@panteia.nl | J33: Indien u vragen hebt dan kunt u deze bij voorkeur verzenden naar: TCO-Vracht@panteia.nl | K33: If you have any questions, please send them to: TCO-Vracht@panteia.nl

Sheet Input-Output Module
E3: Disclaimer:
E4: =Config!$A$36 -> De in het TCO-Vracht gebruikte default- c.q. standaardwaarden zijn met de grootste zorg verzameld. Het betreft echter gemiddelde cijfers, de werkelijke cijfers kunnen ofwel hoger dan wel lager zijn. Hoewel veel zorg is besteed aan de correctheid van de rekenregels en de gebruikte inputdata, is Panteia of de Topsector Logistiek niet aansprakelijk te houden voor de juistheid van de rekenresultaten.
B9: Input-output module | E9: TCO-ZET-Vracht
E10: =IF('Read Me'!$C$3="Nederlands",_xlfn.CONCAT("versie ",Config!$B$1),_xlfn.CONCAT("version ",Config!$B$1)) -> versie 7.3 | F10: 2024-09-23
B11: =IF('Read Me'!$C$3="Nederlands","BASIS INVOERGEGEVENS","BASIC INPUT DATA") -> BASIS INVOERGEGEVENS
D12: =IF(ISNA(MATCH(Voertuigtype,Voertuigen[[#All],[Voertuig]],0)), IF('Read Me'!$C$3="Nederlands","Herstel invoervelden na taalwissel!","Reset input after language change!"), "") -> 
C13: =IF('Read Me'!$C$3="Nederlands","Voertuigtype ","Vehicle type ") -> Voertuigtype | D13: Medium bakwagen (lvm ca. 9 ton) | F13: =IF('Read Me'!$C$3="Nederlands","Dieselvoertuig belastingen","Diesel levies") -> Dieselvoertuig belastingen
C14: =IF('Read Me'!$C$3="Nederlands","Koelmachine ","Cooling unit ") -> Koelmachine | D14: Nee | F14: =IF('Read Me'!$C$3="Nederlands","heffing","levy") -> heffing | G14: =IF('Read Me'!$C$3="Nederlands","meenemen?","incorporate?") -> meenemen?
C15: =IF('Read Me'!$C$3="Nederlands","Verwacht jaarkilometrage [km] ","Expected annual mileage [km] ") -> Verwacht jaarkilometrage [km] | D15: =INDEX(Voertuigen[[#All],[Kilometrage]],MATCH(Calculatie!$C$2,Voertuigen[[#All],[Voertuig ID]],0)) -> 70000 | E15: =IF('Read Me'!$C$3="Nederlands","Meerprijs tolheffing ","affitional toll ") -> Meerprijs tolheffing | F15: 0 | G15: Nee | H15: [€/km]
C16: =IF('Read Me'!$C$3="Nederlands","Grijze/groene elektriciciteit ","Grey/green electricity ") -> Grijze/groene elektriciciteit | D16: Groen | E16: =IF('Read Me'!$C$3="Nederlands","Aandeel snelweg kilometers ","Share of highway kilometers ") -> Aandeel snelweg kilometers | F16: =INDEX(InzetVoertuigPar[[#All],[Waarde]],MATCH(Parameters!$B$20,InzetVoertuigPar[[#All],[Variabele]],0)) -> 0.75
C17: =IF('Read Me'!$C$3="Nederlands","Grijze/groene waterstof ","Grey/green hydrogen ") -> Grijze/groene waterstof | D17: Electrolyse (hernieuwbare energie) | E17: =IF('Read Me'!$C$3="Nederlands","Vaste ZE-Voertuigheffing ","Fixed ZE-levy ") -> Vaste ZE-Voertuigheffing | F17: 0 | G17: Nee | H17: =IF('Read Me'!$C$3="Nederlands","[€/jaar]","[€/year]") -> [€/jaar]
C18: =IF('Read Me'!$C$3="Nederlands","Rechtsvorm en belastingpercentage ","Legal form and tax rate ") -> Rechtsvorm en belastingpercentage | D18: BV of NV met 19% belasting | E18: =IF('Read Me'!$C$3="Nederlands","CO2 prijs ","CO2 price ") -> CO2 prijs | F18: 0 | G18: Nee | H18: =IF('Read Me'!$C$3="Nederlands","[€/ton]","[€/tonne]") -> [€/ton]
C19: =IF('Read Me'!$C$3="Nederlands","Grootte van bedrijf ","Company size ") -> Grootte van bedrijf | D19: Groot
C20: =IF('Read Me'!$C$3="Nederlands","Basisjaar prognose ","Base year forecast ") -> Basisjaar prognose | D20: 2024 | F20: =IF('Read Me'!$C$3="Nederlands","Hernieuwbare Energie eenheden (HBE)","Renewable Fuel units (HBE)") -> Hernieuwbare Energie eenheden (HBE)
F21: =$E$35 -> Batterij-elektrisch (BEV) | G21: =$F$35 -> Brandstofcel (FCEV)
E22: =IF('Read Me'!$C$3="Nederlands","Toepassen? ","Apply? ") -> Toepassen? | F22: Nee | G22: Nee
E23: =IF('Read Me'!$C$3="Nederlands","Aantal ","Amount ") -> Aantal | F23: =Calculatie!$C$56 -> 959 | G23: =Calculatie!$D$56 -> 1317
E24: =IF('Read Me'!$C$3="Nederlands","Forfait ","Flat rate ") -> Forfait | F24: =Calculatie!$C$52 -> 1 | G24: =Calculatie!$D$52 -> 1
E25: =IF('Read Me'!$C$3="Nederlands","Waarde per HBE ","Value per HBE ") -> Waarde per HBE | F25: =Parameters!$I$7 -> 9.5 | G25: =Parameters!$I$7 -> 9.5
E26: =IF('Read Me'!$C$3="Nederlands","Totale waarde HBE's ","Total HBE value ") -> Totale waarde HBE's | F26: =IF((F23*F25)-Parameters!$I$9<0,0,(F23*F25)-Parameters!$I$9) -> 7110.5 | G26: =IF((G23*G25)-Parameters!$I$9<0,0,(G23*G25)-Parameters!$I$9) -> 10511.5
D28: =IF('Read Me'!$C$3="Nederlands","Inkoopprijzen energie","Energy purchase prices") -> Inkoopprijzen energie
D29: =_xlfn.CONCAT($D$35," [L]") -> Diesel [L] | E29: =IF('Read Me'!$C$3="Nederlands","Elektriciteit [kWh]","Electricity [kWh]") -> Elektriciteit [kWh] | F29: =IF('Read Me'!$C$3="Nederlands","Waterstof [kg]","Hydrogen [kg]") -> Waterstof [kg]
C30: =IF('Read Me'!$C$3="Nederlands","Bruto prijs energie ","Basic energy price ") -> Bruto prijs energie | D30: =Parameters!$D$4 -> 1.09 | E30: =Parameters!$D$6 -> 0.21537 | F30: =INDEX(Energieprijzen[#All],MATCH(H2_type,Energieprijzen[[#All],[Variabele]],0),3) -> 19
C31: =IF('Read Me'!$C$3="Nederlands","Subsidie / belasting (accijns) ","Subsidy / tax (duty) ") -> Subsidie / belasting (accijns) | D31: =Parameters!$D$5 -> 0.5163 | E31: 0 | F31: 0
C32: =IF('Read Me'!$C$3="Nederlands","Netto inkoopprijs energie ","Net purchase price ") -> Netto inkoopprijs energie | D32: =D30+D31 -> 1.6063 | E32: =E30+E31 -> 0.21537 | F32: 19
B34: =IF('Read Me'!$C$3="Nederlands","INZETGEGEVENS VOERTUIG SYSTEM","VEHICLE SYSTEM DEPLOYMENT DATA") -> INZETGEGEVENS VOERTUIG SYSTEM
D35: =IF('Read Me'!$C$3="Nederlands","Diesel","Diesel") -> Diesel | E35: =IF('Read Me'!$C$3="Nederlands","Batterij-elektrisch (BEV)","Battery-electric (BEV)") -> Batterij-elektrisch (BEV) | F35: =IF('Read Me'!$C$3="Nederlands","Brandstofcel (FCEV)","Fuel Cell Electric (FCEV)") -> Brandstofcel (FCEV) | G35: H2ICE-CI
C36: =IF('Read Me'!$C$3="Nederlands","Economische levensduur [jaren] ","Economic lifespan [years] ") -> Economische levensduur [jaren] | D36: =INDEX(Voertuigen[[#All],[Afschrijftermijn]],MATCH(Calculatie!$C$2,Voertuigen[[#All],[Voertuig ID]],0)) -> 7 | E36: =INDEX(Voertuigen[[#All],[Afschrijftermijn]],MATCH(Calculatie!$C$2,Voertuigen[[#All],[Voertuig ID]],0)) -> 7 | F36: =INDEX(Voertuigen[[#All],[Afschrijftermijn]],MATCH(Calculatie!$C$2,Voertuigen[[#All],[Voertuig ID]],0)) -> 7 | G36: =INDEX(Voertuigen[[#All],[Afschrijftermijn]],MATCH(Calculatie!$C$2,Voertuigen[[#All],[Voertuig ID]],0)) -> 7
C37: =IF('Read Me'!$C$3="Nederlands","Kosten van reparaties ","Cost of repairs ") -> Kosten van reparaties | D37: =INDEX(EnergieverbruikEnOnderhoudPerType[#All],MATCH(Calculatie!$C$3,EnergieverbruikEnOnderhoudPerType[[#All],[Type ID]],0),9) -> 551.25 | E37: =INDEX(EnergieverbruikEnOnderhoudPerType[#All],MATCH(Calculatie!$C$3,EnergieverbruikEnOnderhoudPerType[[#All],[Type ID]],0),10) -> 551.25 | F37: =INDEX(EnergieverbruikEnOnderhoudPerType[#All],MATCH(Calculatie!$C$3,EnergieverbruikEnOnderhoudPerType[[#All],[Type ID]],0),11) -> 1653.75 | G37: =INDEX(EnergieverbruikEnOnderhoudPerType[#All],MATCH(Calculatie!$C$3,EnergieverbruikEnOnderhoudPerType[[#All],[Type ID]],0),9) -> 551.25
C38: =IF('Read Me'!$C$3="Nederlands","Productieve uren per jaar ","Productive hours per year ") -> Productieve uren per jaar | D38: =INDEX(Voertuigen[[#All],[Productive uren per jaar]],MATCH(Calculatie!$C$2,Voertuigen[[#All],[Voertuig ID]],0)) -> 2600 | E38: =Calculatie!$C$14 -> 2600 | F38: =Calculatie!$D$14 -> 2600 | G38: =Calculatie!$E$14 -> 2600
C39: =IF('Read Me'!$C$3="Nederlands","Stilstand [dagen per jaar] ","Downtime [days per year] ") -> Stilstand [dagen per jaar] | E39: 0 | F39: 0 | G39: 0
B41: =IF('Read Me'!$C$3="Nederlands","AANSCHAFGEGEVENS VOERTUIG SYSTEM","PURCHASE PRICE VEHICLE SYSTEM") -> AANSCHAFGEGEVENS VOERTUIG SYSTEM
D42: =D35 -> Diesel | E42: =E35 -> Batterij-elektrisch (BEV) | F42: =F35 -> Brandstofcel (FCEV) | G42: =$G$35 -> H2ICE-CI
C43: =IF('Read Me'!$C$3="Nederlands","Capaciteit vrachtwagenbatterij [kWh] ","Capacity batterypackage [kWh] ") -> Capaciteit vrachtwagenbatterij [kWh] | E43: ='M1-PowerSupply'!$C$22 -> 240 | F43: =INDEX(FCEV_Variants[#All],MATCH('M1-PowerSupply'!$C$3,FCEV_Variants[[#All],[Type ID]],0),8) -> 150
C44: =IF('Read Me'!$C$3="Nederlands","Waterstof opslag tank [kg] ","Hydrogen storage tank [kg] ") -> Waterstof opslag tank [kg] | F44: =INDEX(FCEV_Variants[#All],MATCH('M1-PowerSupply'!$C$3,FCEV_Variants[[#All],[Type ID]],0),10) -> 15 | G44: =INDEX(FCEV_Variants[#All],MATCH('M1-PowerSupply'!$C$3,FCEV_Variants[[#All],[Type ID]],0),11) -> 0
C45: =IF('Read Me'!$C$3="Nederlands","Fuell cell systeem [kW] ","Fuell cell system [kW] ") -> Fuell cell systeem [kW] | F45: =INDEX(FCEV_Variants[[#All],[FC power]],MATCH(Calculatie!$C$3,FCEV_Variants[[#All],[Type ID]],0)) -> 40
C47: =IF('Read Me'!$C$3="Nederlands","Voertuig ","Vehicle ") -> Voertuig | D47: =Voertuigtype -> Medium bakwagen (lvm ca. 9 ton)
C48: =IF('Read Me'!$C$3="Nederlands","Bruto aankoopprijs ","Gross purchase price ") -> Bruto aankoopprijs | D48: =INDEX(Voertuigen[[#All],[Casco kosten voertuig (DV)]],MATCH(Calculatie!$C$2,Voertuigen[[#All],[Voertuig ID]]))+IF(Koeling=Config!$A$11,INDEX(Voertuigen[[#All],[Aanschaf koelsysteem]],MATCH(Calculatie!$C$2,Voertuigen[[#All],[Voertuig ID]])),0) -> 124030.4325 | E48: =INDEX(Voertuigen[[#All],[Casco kosten voertuig (DV)]],MATCH(Calculatie!$C$2,Voertuigen[[#All],[Voertuig ID]]))+INDEX(ComponentPrijzen[[#All],[prijs/unit]],MATCH('Invoer en categorieën'!$S$31,ComponentPrijzen[[#All],[Component]],0))*Calculatie!$C$19+IF(Koeling=Config!$A$11,INDEX(Voertuigen[[#All],[Aanschaf koelsysteem]],MATCH(Calculatie!$C$2,Voertuigen[[#All],[Voertuig ID]])),0) -> 227532.4047 | F48: =(INDEX(Voertuigen[[#All],[Casco kosten voertuig (DV)]],MATCH(Calculatie!$C$2,Voertuigen[[#All],[Voertuig ID]]))+INDEX(ComponentPrijzen[[#All],[prijs/unit]],MATCH('Invoer en categorieën'!$S$31,ComponentPrijzen[[#All],[Component]],0))*Calculatie!$D$19+INDEX(ComponentPrijzen[[#All],[prijs/unit]],MATCH('Invoer en categorieën'!$S$33,ComponentPrijzen[[#All],[Component]],0))*Calculatie!$D$20+INDEX(ComponentPrijzen[[#All],[prijs/unit]],MATCH('Invoer en categorieën'!$S$32,ComponentPrijzen[[#All],[Component]],0))*Calculatie!$D$21)*INDEX(ComponentPrijzen[[#All],[prijs/unit]],MATCH('Invoer en categorieën'!$S$34,ComponentPrijzen[[#All],[Component]],0))+IF(Koeling=Config!$A$11,INDEX(Voertuigen[[#All],[Aanschaf koelsysteem]],MATCH(Calculatie!$C$2,Voertuigen[[#All],[Voertuig ID]])),0) -> 396909.4376 | G48: =INDEX(Voertuigen[[#All],[H2ICE Casco]],MATCH(Calculatie!$C$2,Voertuigen[[#All],[Voertuig ID]]))+IF(Koeling=Config!$A$11,INDEX(Voertuigen[[#All],[Aanschaf koelsysteem]],MATCH(Calculatie!$C$2,Voertuigen[[#All],[Voertuig ID]])),0) -> 0
C49: =IF('Read Me'!$C$3="Nederlands","AanZET-subsidie ","APPROVAL subsidy ") -> AanZET-subsidie | E49: Nee | F49: Nee | G49: Nee
C50: =IF('Read Me'!$C$3="Nederlands","MIA-subsidie ","MIA-subsidy ") -> MIA-subsidie | E50: Ja | F50: Ja | G50: Ja
C51: =IF('Read Me'!$C$3="Nederlands","Netto aankoopprijs ","Net purchase price ") -> Netto aankoopprijs | D51: =$D$48 -> 124030.4325 | E51: =$E$48-'M2-Subsidie'!$B$35-'M2-Subsidie'!$B$36 -> 211969.1883 | F51: =$F$48-'M2-Subsidie'!$C$35-'M2-Subsidie'!$C$36 -> 369760.8321 | G51: =$G$48-'M2-Subsidie'!$D$35-'M2-Subsidie'!$D$36 -> 0
C52: =IF('Read Me'!$C$3="Nederlands","Restwaarde ","Residual value ") -> Restwaarde | D52: =INDEX(Afschrijving[[#All],[Percentage of value of new vehicle price (%)]],MATCH(IF($D$36>10,Parameters!$H$25,$D$36),Afschrijving[[#All],[Age]],0))*$D$48 -> 28526.99947 | E52: =INDEX(Afschrijving[[#All],[Percentage of value of new vehicle price (%)]],MATCH(IF($E$36>10,Parameters!$H$25,$E$36),Afschrijving[[#All],[Age]],0))*$E$48 -> 52332.45309 | F52: =INDEX(Afschrijving[[#All],[Percentage of value of new vehicle price (%)]],MATCH(IF($F$36>10,Parameters!$H$25,$F$36),Afschrijving[[#All],[Age]],0))*$F$48 -> 91289.17065 | G52: =INDEX(Afschrijving[[#All],[Percentage of value of new vehicle price (%)]],MATCH(IF($G$36>10,Parameters!$H$25,$G$36),Afschrijving[[#All],[Age]],0))*$G$48 -> 0
B54: =IF('Read Me'!$C$3="Nederlands","GEGEVENS EN AANSCHAF OPLAADSYSTEEM","PURCHASE DATA CHARGING SYSTEM") -> GEGEVENS EN AANSCHAF OPLAADSYSTEEM
C56: =IF('Read Me'!$C$3="Nederlands","Kies invoermethode ","Choose input method ") -> Kies invoermethode | D56: Laadpleinmodel
C57: =IF('Read Me'!$C$3="Nederlands","Kies subsidieregeling ","Choose subsidy scheme ") -> Kies subsidieregeling | D57: Geen subsieregeling
E58: =IF($D$56=Config!$A$32, IF('Read Me'!$C$3="Nederlands", "Vergeet niet tabblad 'M3-TCO-laadplein' voor uw situatie in te vullen!!", "Don't forget to fill in sheet 'M3-TCO-laadplein' for your own situation!!"),"") -> Vergeet niet tabblad 'M3-TCO-laadplein' voor uw situatie in te vullen!!
D59: =IF($D$56=Config!$A$32, IF('Read Me'!$C$3="Nederlands", "Niet invullen", "Don't fill in"),"") -> Niet invullen | F59: =IF($D$56=Config!$A$32, IF('Read Me'!$C$3="Nederlands", "Samenvatting huidige invoer:", "Summary current input:"),"") -> Samenvatting huidige invoer:
C60: =IF('Read Me'!$C$3="Nederlands","Vermogen systeem ","Capacity charging systeem ") -> Vermogen systeem | D60: ='M1-PowerSupply'!$C$31 -> 43 kW | E60: =IF('Read Me'!$C$3="Nederlands","Totaal voertuigen ","Vehicle amount ") -> Totaal voertuigen | F60: ='M3-TCO-laadplein'!$I$16 -> 0
C61: =IF('Read Me'!$C$3="Nederlands","Bruto kosten oplaadsysteem ","Gross cost chargingsystem ") -> Bruto kosten oplaadsysteem | D61: =INDEX(LaadinfraPrivaat[[#All],[Purchase (€)]],MATCH($D$60,LaadinfraPrivaat[[#All],[Power]],0)) -> 2000 | E61: =IF('Read Me'!$C$3="Nederlands","Totaal laadpalen ","Number of charging stations ") -> Totaal laadpalen | F61: =Calculatie!$R$19 -> 0
C62: =IF('Read Me'!$C$3="Nederlands","Bruto kosten aanleg oplaadsysteem ","Gross cost installation system ") -> Bruto kosten aanleg oplaadsysteem | D62: =INDEX(LaadinfraPrivaat[[#All],[Installation costs (€)]],MATCH($D$60,LaadinfraPrivaat[[#All],[Power]],0)) -> 4143 | E62: =IF('Read Me'!$C$3="Nederlands","Totale kosten [per kWh] ","Total costs [per kWh] ") -> Totale kosten [per kWh] | F62: ='M3-TCO-laadplein'!$J$32 -> 0 | G62: =IF('M3-TCO-laadplein'!$J$30=Config!$A$11, IF('Read Me'!$C$3="Nederlands"," Kosten netverzwaring meegenomen"," Costs upgrading mains included"), IF('Read Me'!$C$3="Nederlands"," Kosten netverzwaring niet meegenomen"," Costs upgrading mains excluded")) -> Kosten netverzwaring niet meegenomen
C63: =IF('Read Me'!$C$3="Nederlands","subsidie ","subsidy ") -> subsidie | D63: =Config!$J$13 -> €0,00 | E63: =IF('Read Me'!$C$3="Nederlands","waarvan CAPEX ","of which CAPEX ") -> waarvan CAPEX | F63: =MAX(F62-F64-E32,0) -> 0
C64: =IF('Read Me'!$C$3="Nederlands","Netto kosten inkoop & aanleg ","Net cost purchase and installation ") -> Netto kosten inkoop & aanleg | D64: =$D$61+$D$62-$D$63 -> 6143 | E64: =IF('Read Me'!$C$3="Nederlands","waarvan OPEX ","of which OPEX ") -> waarvan OPEX | F64: =Calculatie!V32 -> 0 | G64: =IF('Read Me'!$C$3="Nederlands"," * exclusief energiekosten "," * excluding ernergy costs") -> * exclusief energiekosten
B66: =IF('Read Me'!$C$3="Nederlands","RESULTATEN","RESULTS") -> RESULTATEN
D67: =D35 -> Diesel | E67: =E35 -> Batterij-elektrisch (BEV) | F67: =F35 -> Brandstofcel (FCEV) | G67: =G35 -> H2ICE-CI
C68: =IF('Read Me'!$C$3="Nederlands","Scenario technisch mogelijk EV? ","Scenario technical valid EV? ") -> Scenario technisch mogelijk EV? | D68: =IF('Read Me'!$C$3="Nederlands","n.v.t.","n.a.") -> n.v.t. | E68: =IF('M1-PowerSupply'!$B$51, IF('Read Me'!$C$3="Nederlands","Scenario valide","Valid scenario"), IF('Read Me'!$C$3="Nederlands","Scenario invalide","Invalid scenario") ) -> Scenario valide | F68: =IF('Read Me'!$C$3="Nederlands","n.v.t.","n.a.") -> n.v.t. | G68: =IF('Read Me'!$C$3="Nederlands","n.v.t.","n.a.") -> n.v.t.
C69: =IF('Read Me'!$C$3="Nederlands","Uitvoering ","Variant ") -> Uitvoering | D69: =INDEX(Voertuigen[[#All],[Type]],MATCH(Calculatie!$C$3,Voertuigen[[#All],[Type ID]],0)) -> Medium bakwagen | E69: =_xlfn.CONCAT(D69," ",E43," kWh") -> Medium bakwagen 240 kWh | F69: =_xlfn.CONCAT(D69," ",F45," kW") -> Medium bakwagen 40 kW | G69: =_xlfn.CONCAT(D69," ",G44," kg") -> Medium bakwagen 0 kg
C70: =IF('Read Me'!$C$3="Nederlands","Eigen oplaadsysteem ","Own charging station ") -> Eigen oplaadsysteem | D70: =IF('Read Me'!$C$3="Nederlands","n.v.t.","n.a.") -> n.v.t. | E70: =IF($D$56=Config!$A$31,'M1-PowerSupply'!$C$32, IF('Read Me'!$C$3="Nederlands","Eigen laadplein","Own Charging Hub")) -> Eigen laadplein | F70: =IF('Read Me'!$C$3="Nederlands","n.v.t.","n.a.") -> n.v.t. | G70: =IF('Read Me'!$C$3="Nederlands","n.v.t.","n.a.") -> n.v.t.
C71: =IF('Read Me'!$C$3="Nederlands","Openbaar oplaadsysteem ","Public charging station ") -> Openbaar oplaadsysteem | D71: =IF('Read Me'!$C$3="Nederlands","n.v.t.","n.a.") -> n.v.t. | E71: ='M1-PowerSupply'!$C$42 -> DC150 | F71: =IF('Read Me'!$C$3="Nederlands","n.v.t.","n.a.") -> n.v.t. | G71: =IF('Read Me'!$C$3="Nederlands","n.v.t.","n.a.") -> n.v.t.
C73: =IF('Read Me'!$C$3="Nederlands","Aandeel eigen oplaadsysteem ","Share own charging station ") -> Aandeel eigen oplaadsysteem | D73: =IF('Read Me'!$C$3="Nederlands","n.v.t.","n.a.") -> n.v.t. | E73: =IF($D$56=Config!$A$31,Calculatie!$C$29,1) -> 1 | F73: =IF('Read Me'!$C$3="Nederlands","n.v.t.","n.a.") -> n.v.t. | G73: =IF('Read Me'!$C$3="Nederlands","n.v.t.","n.a.") -> n.v.t.
C74: =IF('Read Me'!$C$3="Nederlands","Aandeel extern (openbaar) laden ","Share external/public charging ") -> Aandeel extern (openbaar) laden | D74: =IF('Read Me'!$C$3="Nederlands","n.v.t.","n.a.") -> n.v.t. | E74: =IF($D$56=Config!$A$31,Calculatie!$C$30,0) -> 0 | F74: =IF('Read Me'!$C$3="Nederlands","n.v.t.","n.a.") -> n.v.t. | G74: =IF('Read Me'!$C$3="Nederlands","n.v.t.","n.a.") -> n.v.t.
C76: =IF('Read Me'!$C$3="Nederlands","Totale kosten per jaar ","Total cost per year ") -> Totale kosten per jaar | D76: =D123+D127 -> 166169.2971 | E76: =E123+E127 -> 178106.2074 | F76: =F123+F127 -> 286263.6164 | G76: =G123+G127 -> 112730.5395
C77: =IF('Read Me'!$C$3="Nederlands","Totale kosten per km ","Total cost per km ") -> Totale kosten per km | D77: =D76/Kilometrage -> 2.373847101 | E77: =E76/Kilometrage -> 2.544374392 | F77: =F76/Kilometrage -> 4.089480235 | G77: =G76/Kilometrage -> 1.610436279
C78: =IF('Read Me'!$C$3="Nederlands","Totale kosten per uur ","Total cost per hour ") -> Totale kosten per uur | D78: =D76/D38 -> 63.9112681 | E78: =E76/E38 -> 68.50238747 | F78: =F76/F38 -> 110.1013909 | G78: =G76/G38 -> 43.35789982
C80: =IF('Read Me'!$C$3="Nederlands","Emissies (voor geselecteerde voertuig) ","Emissions (selected vehicle ") -> Emissies (voor geselecteerde voertuig)
C81: =IF('Read Me'!$C$3="Nederlands","CO2 emissies (ton per jaar, WtW) ","CO2 emissions (tonne per year, WtW) ") -> CO2 emissies (ton per jaar, WtW) | D81: =Calculatie!$B$40 -> 47.76068668 | E81: =Calculatie!$C$40 -> 0 | F81: =Calculatie!$D$40 -> 5.001163345 | G81: =F81 -> 5.001163345
C82: =IF('Read Me'!$C$3="Nederlands","PM totaal (kg per jaar, TtW) ","PM total (kg per year, TtW) ") -> PM totaal (kg per jaar, TtW) | D82: =Calculatie!$B$41+Calculatie!$B$42 -> 6.285757821 | E82: =Calculatie!$C$41+Calculatie!$C$42 -> 5.684481648 | F82: =Calculatie!$D$41+Calculatie!$D$42 -> 5.684481648 | G82: =E82 -> 5.684481648
C83: =IF('Read Me'!$C$3="Nederlands","NOx (kg per jaar, TtW) ","NOx (kg per year, TtW) ") -> NOx (kg per jaar, TtW) | D83: =MIN(Calculatie!$B$43,Calculatie!$B$45) -> 30.65180539 | E83: n.v.t. | F83: n.v.t. | G83: =D83 -> 30.65180539
B85: =IF('Read Me'!$C$3="Nederlands","ONDERBOUWING KOSTENBEREKENING","SUBSTANTIATION OF COST CALCULATIONS") -> ONDERBOUWING KOSTENBEREKENING
C86: =IF('Read Me'!$C$3="Nederlands","Vaste kosten per jaar (a) ","Fixed annual costs (a) ") -> Vaste kosten per jaar (a) | D86: =SUM(D87:D92) -> 8615.114061 | E86: =SUM(E87:E92) -> 14107.77607 | F86: =SUM(F87:F92) -> 23988.88645 | G86: =SUM(G87:G92) -> 834
C87: =IF('Read Me'!$C$3="Nederlands","Wegenbelasting ","Road taks ") -> Wegenbelasting | D87: =INDEX(OperationeleKostenPerType[[#All],[Wegenbelasting]],MATCH(Calculatie!$C$3,OperationeleKostenPerType[[#All],[Type ID]],0)) -> 380 | E87: 0 | F87: 0 | G87: 0
C88: =IF('Read Me'!$C$3="Nederlands","Eurovignet ","Eurovignette ") -> Eurovignet | D88: =INDEX(OperationeleKostenPerType[[#All],[Eurovignet]],MATCH(Calculatie!$C$3,OperationeleKostenPerType[[#All],[Type ID]],0)) -> 750 | E88: =INDEX(OperationeleKostenPerType[[#All],[Eurovignet]],MATCH(Calculatie!$C$3,OperationeleKostenPerType[[#All],[Type ID]],0)) -> 750 | F88: =INDEX(OperationeleKostenPerType[[#All],[Eurovignet]],MATCH(Calculatie!$C$3,OperationeleKostenPerType[[#All],[Type ID]],0)) -> 750 | G88: =INDEX(OperationeleKostenPerType[[#All],[Eurovignet]],MATCH(Calculatie!$C$3,OperationeleKostenPerType[[#All],[Type ID]],0)) -> 750
C89: =IF('Read Me'!$C$3="Nederlands","Rente ","Interest ") -> Rente | D89: =AVERAGE($D$51,$D$52)*INDEX(FinPar[[#All],[Waarde]],MATCH("Rente",FinPar[[#All],[Variabele]],0)) -> 2974.869924 | E89: =AVERAGE($E$51,$E$52)*INDEX(FinPar[[#All],[Waarde]],MATCH("Rente",FinPar[[#All],[Variabele]],0)) -> 5153.882006 | F89: =AVERAGE($F$51,$F$52)*INDEX(FinPar[[#All],[Waarde]],MATCH("Rente",FinPar[[#All],[Variabele]],0)) -> 8990.475053 | G89: =AVERAGE($G$51,$G$52)*INDEX(FinPar[[#All],[Waarde]],MATCH("Rente",FinPar[[#All],[Variabele]],0)) -> 0
C90: =IF('Read Me'!$C$3="Nederlands","Verzekering ","Insurance ") -> Verzekering | D90: =$D$48*INDEX(FinPar[[#All],[Waarde]],MATCH("Verzekering",FinPar[[#All],[Variabele]],0)) -> 4426.244137 | E90: =$E$48*INDEX(FinPar[[#All],[Waarde]],MATCH("Verzekering",FinPar[[#All],[Variabele]],0)) -> 8119.894063 | F90: =$F$48*INDEX(FinPar[[#All],[Waarde]],MATCH("Verzekering",FinPar[[#All],[Variabele]],0)) -> 14164.41139 | G90: =$G$48*INDEX(FinPar[[#All],[Waarde]],MATCH("Verzekering",FinPar[[#All],[Variabele]],0)) -> 0
C91: =IF('Read Me'!$C$3="Nederlands","Voertuigheffing ","Vehicle tax ") -> Voertuigheffing | D91: =IF($G$17=Config!$A$11,'Input-Output Module'!$F$17,0) -> 0 | E91: 0 | F91: 0 | G91: 0
C92: =IF('Read Me'!$C$3="Nederlands","Diverse overige voertuigkosten ","Miscellaneous vehicle costs ") -> Diverse overige voertuigkosten | D92: =INDEX(OperationeleKostenPerType[[#All],[Versch. voertuigkosten]],MATCH(Calculatie!$C$3,OperationeleKostenPerType[[#All],[Type ID]],0)) -> 84 | E92: =INDEX(OperationeleKostenPerType[[#All],[Versch. voertuigkosten]],MATCH(Calculatie!$C$3,OperationeleKostenPerType[[#All],[Type ID]],0)) -> 84 | F92: =INDEX(OperationeleKostenPerType[[#All],[Versch. voertuigkosten]],MATCH(Calculatie!$C$3,OperationeleKostenPerType[[#All],[Type ID]],0)) -> 84 | G92: =INDEX(OperationeleKostenPerType[[#All],[Versch. voertuigkosten]],MATCH(Calculatie!$C$3,OperationeleKostenPerType[[#All],[Type ID]],0)) -> 84
C94: =IF('Read Me'!$C$3="Nederlands","Variabele kosten per jaar (b) ","Variable annual costs (b) ") -> Variabele kosten per jaar (b) | D94: =SUM(D95:D108) -> 45298.27995 | E94: =SUM(E95:E108) -> 46441.18463 | F94: =SUM(F95:F108) -> 133454.0932 | G94: =SUM(G95:G108) -> 7011.499607
C95: =IF('Read Me'!$C$3="Nederlands","Afschrijving voertuig ","Depriciation vehicle ") -> Afschrijving voertuig | D95: =(D$51-D$52)/D$36 -> 13643.34757 | E95: =(E$51-E$52)/E$36 -> 22805.24788 | F95: =(F$51-F$52)/F$36 -> 39781.66592 | G95: =(G$51-G$52)/G$36 -> 0
C96: =IF('Read Me'!$C$3="Nederlands","Brandstofverbruik voertuig ","Fuel consumption vehicle ") -> Brandstofverbruik voertuig | D96: =Calculatie!$B$35 -> 24407.00073 | E96: 0 | F96: 0 | G96: 0
C97: =IF('Read Me'!$C$3="Nederlands","Brandstofverbruik koeling ","Fuel consumption cooling unit ") -> Brandstofverbruik koeling | D97: =Calculatie!$B$36 -> 0 | E97: 0 | F97: 0 | G97: 0
C98: =IF('Read Me'!$C$3="Nederlands","Elektriciteitsverbruik ","Electricity consumption ") -> Elektriciteitsverbruik | D98: 0 | E98: =Calculatie!$C$37 -> 18830.14244 | F98: 0 | G98: 0
C99: =IF('Read Me'!$C$3="Nederlands","H2 verbruik ","H2 Consumption ") -> H2 verbruik | D99: 0 | E99: 0 | F99: =Calculatie!$D$37 -> 83352.72242 | G99: =Calculatie!$E$37 -> 0
C100: =IF('Read Me'!$C$3="Nederlands","Adblue verbruik ","Adblue consumption ") -> Adblue verbruik | D100: =Calculatie!$B$47 -> 236.4320442 | E100: 0 | F100: 0 | G100: =Calculatie!$E$47 -> 0
C101: =IF('Read Me'!$C$3="Nederlands","Banden ","Tires ") -> Banden | D101: =INDEX(OperationeleKostenPerType[[#All],[Bandenkosten (€/km)]],MATCH(Calculatie!$C$3,OperationeleKostenPerType[[#All],[Type ID]],0))*Kilometrage -> 1593.838995 | E101: =INDEX(OperationeleKostenPerType[[#All],[Bandenkosten (€/km)]],MATCH(Calculatie!$C$3,OperationeleKostenPerType[[#All],[Type ID]],0))*Kilometrage -> 1593.838995 | F101: =INDEX(OperationeleKostenPerType[[#All],[Bandenkosten (€/km)]],MATCH(Calculatie!$C$3,OperationeleKostenPerType[[#All],[Type ID]],0))*Kilometrage -> 1593.838995 | G101: =INDEX(OperationeleKostenPerType[[#All],[Bandenkosten (€/km)]],MATCH(Calculatie!$C$3,OperationeleKostenPerType[[#All],[Type ID]],0))*Kilometrage -> 1593.838995
C102: =IF('Read Me'!$C$3="Nederlands","Onderhoud ","Maintenance ") -> Onderhoud | D102: =INDEX(EnergieverbruikEnOnderhoudPerType[[#All],[Onderhoud DV '[€/km']]],MATCH(Calculatie!$C$3,EnergieverbruikEnOnderhoudPerType[[#All],[Type ID]],0))*Kilometrage -> 4411.410612 | E102: =INDEX(EnergieverbruikEnOnderhoudPerType[[#All],[Onderhoud EV '[€/km']]],MATCH(Calculatie!$C$3,EnergieverbruikEnOnderhoudPerType[[#All],[Type ID]],0))*Kilometrage -> 2205.705306 | F102: =INDEX(EnergieverbruikEnOnderhoudPerType[[#All],[Onderhoud FC '[€/km']]],MATCH(Calculatie!$C$3,EnergieverbruikEnOnderhoudPerType[[#All],[Type ID]],0))*Kilometrage -> 6617.115918 | G102: =INDEX(EnergieverbruikEnOnderhoudPerType[[#All],[Onderhoud DV '[€/km']]],MATCH(Calculatie!$C$3,EnergieverbruikEnOnderhoudPerType[[#All],[Type ID]],0))*Kilometrage -> 4411.410612
C103: =IF('Read Me'!$C$3="Nederlands","Reparatie ","Repairs ") -> Reparatie | D103: =D37 -> 551.25 | E103: =E37 -> 551.25 | F103: 1653.75 | G103: 551.25
C104: =IF('Read Me'!$C$3="Nederlands","Reparatie/onderhoud koelunit ","Repairs/maintenance cooling unit ") -> Reparatie/onderhoud koelunit | D104: =INDEX(OperationeleKostenPerType[[#All],[Onderhoud koeling]],MATCH(Calculatie!$C$3,OperationeleKostenPerType[[#All],[Type ID]],0))*Calculatie!$B$14*IF(Koeling=Config!$A$11,INDEX(InzetVoertuigPar[[#All],[Waarde]],MATCH("Aandeel koelunit",InzetVoertuigPar[[#All],[Variabele]],0)),0) -> 0 | E104: =INDEX(OperationeleKostenPerType[[#All],[Onderhoud koeling]],MATCH(Calculatie!$C$3,OperationeleKostenPerType[[#All],[Type ID]],0))*Calculatie!$B$14*IF(Koeling=Config!$A$11,INDEX(InzetVoertuigPar[[#All],[Waarde]],MATCH("Aandeel koelunit",InzetVoertuigPar[[#All],[Variabele]],0)),0) -> 0 | F104: =INDEX(OperationeleKostenPerType[[#All],[Onderhoud koeling]],MATCH(Calculatie!$C$3,OperationeleKostenPerType[[#All],[Type ID]],0))*Calculatie!$B$14*IF(Koeling=Config!$A$11,INDEX(InzetVoertuigPar[[#All],[Waarde]],MATCH("Aandeel koelunit",InzetVoertuigPar[[#All],[Variabele]],0)),0) -> 0 | G104: =INDEX(OperationeleKostenPerType[[#All],[Onderhoud koeling]],MATCH(Calculatie!$C$3,OperationeleKostenPerType[[#All],[Type ID]],0))*Calculatie!$B$14*IF(Koeling=Config!$A$11,INDEX(InzetVoertuigPar[[#All],[Waarde]],MATCH("Aandeel koelunit",InzetVoertuigPar[[#All],[Variabele]],0)),0) -> 0
C105: =IF('Read Me'!$C$3="Nederlands","Verschil Tolheffing (km-tarief) ","Difference tolls (km-rate) ") -> Verschil Tolheffing (km-tarief) | D105: =IF($G$15=Config!$A$11,Kilometrage*'Input-Output Module'!$F$15*'Input-Output Module'!$F$16,0) -> 0 | E105: 0 | F105: 0 | G105: =IF($G$15=Config!$A$11,Kilometrage*'Input-Output Module'!$F$15*'Input-Output Module'!$F$16,0) -> 0
C106: =IF('Read Me'!$C$3="Nederlands","CO2-prijs ","CO2-price ") -> CO2-prijs | D106: =IF($G$18=Config!$A$11,'Input-Output Module'!$D$81*'Input-Output Module'!$F$18,0) -> 0 | E106: =IF($G$18=Config!$A$11,'Input-Output Module'!$D$81*'Input-Output Module'!$F$18,0) -> 0 | F106: =IF($G$18=Config!$A$11,'Input-Output Module'!$D$81*'Input-Output Module'!$F$18,0) -> 0 | G106: =IF($G$18=Config!$A$11,'Input-Output Module'!$D$81*'Input-Output Module'!$F$18,0) -> 0
C107: =IF('Read Me'!$C$3="Nederlands","Hernieuwbare Brandstof-Eenheden (HBE's) ","Renewable Fuel Costs (HBE's) ") -> Hernieuwbare Brandstof-Eenheden (HBE's) | D107: 0 | E107: =-IF($F$22=Config!$A$11,'Input-Output Module'!$F$26,0) -> 0 | F107: =IF($G$22=Config!$A$11,'Input-Output Module'!$G$26,0) -> 0 | G107: =IF($G$22=Config!$A$11,Calculatie!E56*'Input-Output Module'!G25,0) -> 0
C108: =IF('Read Me'!$C$3="Nederlands","Specifieke vervoerskosten ","Specific vehicle costs ") -> Specifieke vervoerskosten | D108: =INDEX(OperationeleKostenPerType[[#All],[Speciale transportkosten]],MATCH(Calculatie!$C$3,OperationeleKostenPerType[[#All],[Type ID]],0)) -> 455 | E108: =INDEX(OperationeleKostenPerType[[#All],[Speciale transportkosten]],MATCH(Calculatie!$C$3,OperationeleKostenPerType[[#All],[Type ID]],0)) -> 455 | F108: =INDEX(OperationeleKostenPerType[[#All],[Speciale transportkosten]],MATCH(Calculatie!$C$3,OperationeleKostenPerType[[#All],[Type ID]],0)) -> 455 | G108: =INDEX(OperationeleKostenPerType[[#All],[Speciale transportkosten]],MATCH(Calculatie!$C$3,OperationeleKostenPerType[[#All],[Type ID]],0)) -> 455
C110: =IF('Read Me'!$C$3="Nederlands","Kosten oplaadsysteem per jaar (c) ","Annual costs charging system (c) ") -> Kosten oplaadsysteem per jaar (c) | D110: =D112+D111 -> 0 | E110: =E112+E111 -> 0 | F110: =F112+F111 -> 0 | G110: =G112+G111 -> 0
C111: =IF('Read Me'!$C$3="Nederlands","Aankoop en installatie ","Purchase and installation ") -> Aankoop en installatie | D111: 0 | E111: =IF($D$56=Config!$A$31,'Input-Output Module'!$D$64/INDEX(LaadinfraPrivaat[[#All],[Afschrijftermijn]],MATCH('Input-Output Module'!$E$70,LaadinfraPrivaat[[#All],[Power]],0)),$F$63*Calculatie!$C$50) -> 0 | F111: 0 | G111: 0
C112: =IF('Read Me'!$C$3="Nederlands","Operationele kosten ","Operational costs ") -> Operationele kosten | D112: 0 | E112: =IF($D$56=Config!$A$31,INDEX(LaadinfraPrivaat[[#All],[Operational costs annual (€)]],MATCH('Input-Output Module'!$E$70,LaadinfraPrivaat[[#All],[Power]],0)),$F$64*Calculatie!$C$50) -> 0 | F112: 0 | G112: 0
C114: =IF('Read Me'!$C$3="Nederlands","Totaal voertuig en systeem (a+b+c) per jaar ","Total vehicle and charging (a+b+c) per annum ") -> Totaal voertuig en systeem (a+b+c) per jaar | D114: =D110+D94+D86 -> 53913.39401 | E114: =E110+E94+E86 -> 60548.9607 | F114: =F110+F94+F86 -> 157442.9797 | G114: =G110+G94+G86 -> 7845.499607
C115: =IF('Read Me'!$C$3="Nederlands","per km ","per km ") -> per km | D115: =D114/Kilometrage -> 0.770191343 | E115: =E114/Kilometrage -> 0.8649851528 | F115: =F114/Kilometrage -> 2.249185424 | G115: =G114/Kilometrage -> 0.1120785658
C116: =IF('Read Me'!$C$3="Nederlands","per productief uur ","per productive hour ") -> per productief uur | D116: =D114/D38 -> 20.73592077 | E116: =E114/E38 -> 23.28806181 | F116: =F114/F38 -> 60.55499219 | G116: =G114/G38 -> 3.017499849
C118: =IF('Read Me'!$C$3="Nederlands","Chauffeurskosten per jaar (d) ","Driver costs per annum (d) ") -> Chauffeurskosten per jaar (d) | D118: =SUM(D119:D121) -> 89336 | E118: =SUM(E119:E121) -> 92990.87329 | F118: =SUM(F119:F121) -> 89336 | G118: =SUM(G119:G121) -> 89336
C119: =_xlfn.CONCAT( IF('Read Me'!$C$3="Nederlands","Uurloon incl. sociale lasten (","Hourly wage (incl. social charges) ("),TEXT(INDEX(Voertuigen[[#All],[Uurloon]],MATCH(Calculatie!$C$2,Voertuigen[[#All],[Voertuig ID]],0)),"€#.##0,00"),")") -> Uurloon incl. sociale lasten (€32,80) | D119: =INDEX(Voertuigen[[#All],[Uurloon]],MATCH(Calculatie!$C$2,Voertuigen[[#All],[Voertuig ID]],0))*D38 -> 85280 | E119: =INDEX(Voertuigen[[#All],[Uurloon]],MATCH(Calculatie!$C$2,Voertuigen[[#All],[Voertuig ID]],0))*E38 +INDEX(Voertuigen[[#All],[Uurloon]],MATCH(Calculatie!$C$2,Voertuigen[[#All],[Voertuig ID]],0)) * 'M1-PowerSupply'!$B$44 * Calculatie!$C$13 -> 88934.87329 | F119: =INDEX(Voertuigen[[#All],[Uurloon]],MATCH(Calculatie!$C$2,Voertuigen[[#All],[Voertuig ID]],0))*F38 -> 85280 | G119: =INDEX(Voertuigen[[#All],[Uurloon]],MATCH(Calculatie!$C$2,Voertuigen[[#All],[Voertuig ID]],0))*G38 -> 85280
C120: =_xlfn.CONCAT( IF('Read Me'!$C$3="Nederlands","Verblijfkostenvergoeding (","Accommodation allowance ("),TEXT(INDEX(FinPar[[#All],[Waarde]],MATCH("Verblijfkostenvergoeding",FinPar[[#All],[Variabele]],0)),"€#.##0,00"),")") -> Verblijfkostenvergoeding (€1,01) | D120: =INDEX(FinPar[[#All],[Waarde]],MATCH("Verblijfkostenvergoeding",FinPar[[#All],[Variabele]],0))*D38 -> 2626 | E120: =INDEX(FinPar[[#All],[Waarde]],MATCH("Verblijfkostenvergoeding",FinPar[[#All],[Variabele]],0))*E38 -> 2626 | F120: =INDEX(FinPar[[#All],[Waarde]],MATCH("Verblijfkostenvergoeding",FinPar[[#All],[Variabele]],0))*F38 -> 2626 | G120: =INDEX(FinPar[[#All],[Waarde]],MATCH("Verblijfkostenvergoeding",FinPar[[#All],[Variabele]],0))*G38 -> 2626
C121: =_xlfn.CONCAT( IF('Read Me'!$C$3="Nederlands","Overige kosten (","Other costs ("),TEXT(INDEX(FinPar[[#All],[Waarde]],MATCH("Overige chauffeurskosten",FinPar[[#All],[Variabele]],0)),"€#.##0,00"),")") -> Overige kosten (€0,55) | D121: =INDEX(FinPar[[#All],[Waarde]],MATCH("Overige chauffeurskosten",FinPar[[#All],[Variabele]],0))*D38 -> 1430 | E121: =INDEX(FinPar[[#All],[Waarde]],MATCH("Overige chauffeurskosten",FinPar[[#All],[Variabele]],0))*E38 -> 1430 | F121: =INDEX(FinPar[[#All],[Waarde]],MATCH("Overige chauffeurskosten",FinPar[[#All],[Variabele]],0))*F38 -> 1430 | G121: =INDEX(FinPar[[#All],[Waarde]],MATCH("Overige chauffeurskosten",FinPar[[#All],[Variabele]],0))*G38 -> 1430
C123: =IF('Read Me'!$C$3="Nederlands","Totale directe kosten (a+b+c+d) per jaar ","Total direct costs (a+b+c+d) per annum ") -> Totale directe kosten (a+b+c+d) per jaar | D123: =D114+D118 -> 143249.394 | E123: =E114+E118 -> 153539.834 | F123: =F114+F118 -> 246778.9797 | G123: =G114+G118 -> 97181.49961
C124: =IF('Read Me'!$C$3="Nederlands","per km ","per km ") -> per km | D124: =D123/Kilometrage -> 2.046419914 | E124: =E123/Kilometrage -> 2.1934262 | F124: =F123/Kilometrage -> 3.525413996 | G124: =G123/Kilometrage -> 1.388307137
C125: =IF('Read Me'!$C$3="Nederlands","per productief uur ","per productive hour ") -> per productief uur | D125: =D123/D38 -> 55.09592077 | E125: =E123/E38 -> 59.0537823 | F125: =F123/F38 -> 94.91499219 | G125: =G123/G38 -> 37.37749985
C127: =IF('Read Me'!$C$3="Nederlands","Algemene kosten (overhead) per jaar (e) ","General costs (overhead) per annum (e) ") -> Algemene kosten (overhead) per jaar (e) | D127: =SUM(D128:D130) -> 22919.90304 | E127: =SUM(E128:E130) -> 24566.37344 | F127: =SUM(F128:F130) -> 39484.63675 | G127: =SUM(G128:G130) -> 15549.03994
C128: =_xlfn.CONCAT( IF('Read Me'!$C$3="Nederlands","Loon incl. sociale lasten (","Wage (incl. social charges) ("),TEXT(INDEX(FinPar[[#All],[Waarde]],MATCH("Loon incl. sociale lasten",FinPar[[#All],[Variabele]],0)),"#,0%"),")") -> Loon incl. sociale lasten (8,4%) | D128: =INDEX(FinPar[[#All],[Waarde]],MATCH("Loon incl. sociale lasten",FinPar[[#All],[Variabele]],0))*D123 -> 12032.9491 | E128: =INDEX(FinPar[[#All],[Waarde]],MATCH("Loon incl. sociale lasten",FinPar[[#All],[Variabele]],0))*E123 -> 12897.34605 | F128: =INDEX(FinPar[[#All],[Waarde]],MATCH("Loon incl. sociale lasten",FinPar[[#All],[Variabele]],0))*F123 -> 20729.43429 | G128: =INDEX(FinPar[[#All],[Waarde]],MATCH("Loon incl. sociale lasten",FinPar[[#All],[Variabele]],0))*G123 -> 8163.245967
C129: =_xlfn.CONCAT( IF('Read Me'!$C$3="Nederlands","Huisvesting (","Housing ("),TEXT(INDEX(FinPar[[#All],[Waarde]],MATCH("Huisvesting",FinPar[[#All],[Variabele]],0)),"#,0%"),")") -> Huisvesting (2,6%) | D129: =INDEX(FinPar[[#All],[Waarde]],MATCH("Huisvesting",FinPar[[#All],[Variabele]],0))*D123 -> 3724.484244 | E129: =INDEX(FinPar[[#All],[Waarde]],MATCH("Huisvesting",FinPar[[#All],[Variabele]],0))*E123 -> 3992.035684 | F129: =INDEX(FinPar[[#All],[Waarde]],MATCH("Huisvesting",FinPar[[#All],[Variabele]],0))*F123 -> 6416.253472 | G129: =INDEX(FinPar[[#All],[Waarde]],MATCH("Huisvesting",FinPar[[#All],[Variabele]],0))*G123 -> 2526.71899
C130: =_xlfn.CONCAT( IF('Read Me'!$C$3="Nederlands","Overig (","Other ("),TEXT(INDEX(FinPar[[#All],[Waarde]],MATCH("Overig overhead",FinPar[[#All],[Variabele]],0)),"#,0%"),")") -> Overig (5,0%) | D130: =INDEX(FinPar[[#All],[Waarde]],MATCH("Overig overhead",FinPar[[#All],[Variabele]],0))*D123 -> 7162.469701 | E130: =INDEX(FinPar[[#All],[Waarde]],MATCH("Overig overhead",FinPar[[#All],[Variabele]],0))*E123 -> 7676.991699 | F130: =INDEX(FinPar[[#All],[Waarde]],MATCH("Overig overhead",FinPar[[#All],[Variabele]],0))*F123 -> 12338.94898 | G130: =INDEX(FinPar[[#All],[Waarde]],MATCH("Overig overhead",FinPar[[#All],[Variabele]],0))*G123 -> 4859.07498

Sheet M3-TCO-laadplein
B3: =Config!$A$54 -> Stap 1 Vul het verwachte aantal elektrische vrachtvoertuigen per type op uw vestiging in de huidige situatie en in de komende tien jaar (per 2 jaar). Houd hierbij rekening met het aantal voertuigen dat tegelijk zal opladen (waardoor tegelijkertijd een laadbehoefte ontstaat). Belangrijk: Het invullen van het totale wagenpark moet voor ieder jaar afzonderlijk gebeuren. Vul in de eerste kolom het huidige aantal e-voertuigen in dat u al heeft. | J3: =Config!$A$55 -> Stap 2 Geef het verwachte jaarkilometrage (per voertuigtype) van uw voertuigen op. Op basis hiervan is een gemiddelde per dag berekend. Als dit sterk afwijkt van uw maximale dagelijkse afstand, vul dan zelf deze waarde in (kolom [Maximum per dag]). Per voertuigtype is een inschatting gemaakt van het gemiddelde energieverbruik. Weet u het energieverbruik? Vul deze dan zelf in de kolom [Eigen input] in. | P3: =Config!$A$56 -> Stap 3 Vul per voertuigtype de hoeveel tijd (uren) in dat de vrachtwagens per dag kunnen opladen. Op basis van de benodigde energievraag wordt de kleinst mogelijke laadpaal berekend. U kunt deze vervangen met een eigen keuze. Let op: u kunt alleen een laadpaal met een hoger vermogen kiezen.
C6: =IF('Read Me'!$C$3="Nederlands", "Stel uw vloot samen", "set up your vehicle park" ) -> Stel uw vloot samen | J6: =IF('Read Me'!$C$3="Nederlands","Kilometrage [km]","Mileage [km]") -> Kilometrage [km] | M6: =IF('Read Me'!$C$3="Nederlands","Energie gebruik [kWh/km]","Energy use [kWh/km]") -> Energie gebruik [kWh/km] | O6: =IF('Read Me'!$C$3="Nederlands","Jaarlijks energie gebruik per voertuig [kWh]","Yearly energy use per vehicle [kWh]") -> Jaarlijks energie gebruik per voertuig [kWh] | P6: =IF('Read Me'!$C$3="Nederlands","Aantal uren per dag terug op depot","Amount of hours on own location") -> Aantal uren per dag terug op depot | Q6: =IF('Read Me'!$C$3="Nederlands","Kleinst bruikbare laadpaal","Least heavy charging station") -> Kleinst bruikbare laadpaal | R6: =IF('Read Me'!$C$3="Nederlands","Minimaal aantal benodigde laadpalen in:","Minimum charging stations needed in:") -> Minimaal aantal benodigde laadpalen in:
J7: =IF('Read Me'!$C$3="Nederlands","Jaarlijks per voertuig","annually per vehicle") -> Jaarlijks per voertuig | K7: =IF('Read Me'!$C$3="Nederlands","Gemiddeld per dag","Daily average") -> Gemiddeld per dag | L7: =IF('Read Me'!$C$3="Nederlands","Maximum per dag","Daily max") -> Maximum per dag | M7: =IF('Read Me'!$C$3="Nederlands","Advies","Advice") -> Advies | N7: =IF('Read Me'!$C$3="Nederlands","Eigen input","Own input") -> Eigen input
D8: ='Input-Output Module'!$D$20 -> 2024 | E8: =D8+2 -> 2026 | F8: =E8+2 -> 2028 | G8: 2030 | H8: 2032 | I8: 2034 | R8: =D8 -> 2024 | S8: =E8 -> 2026 | T8: 2028 | U8: 2030 | V8: 2032 | W8: 2034
C9: Bestelwagens (tot 3,5 ton) | D9: 0 | E9: =$D$9 -> 0 | F9: =$E$9 -> 0 | G9: =$F$9 -> 0 | H9: =$G$9 -> 0 | I9: =$H$9 -> 0 | J9: 30000 | K9: =J9/INDEX(InzetVoertuigPar[[#All],[Waarde]],MATCH("Productieve dagen per jaar",InzetVoertuigPar[[#All],[Variabele]],0)) -> 115.3846154 | M9: =IF(C9=$C$9,0.3,INDEX(EnergieverbruikEnOnderhoudPerType[[#All],[Rijden EV '[kWh/km']]],MATCH('M3-TCO-laadplein'!B9,EnergieverbruikEnOnderhoudPerType[[#All],[Type ID]],0))) -> 0.3 | O9: =IF(N9<>"",N9,M9)*J9 -> 9000 | P9: 8 | Q9: =IFERROR(INDEX(LaadinfraPrivaat[[#All],[Charging type]],MATCH((IF($L$9>0,$L$9,$K$9)*IF($N$9>0,$N$9,$M$9))/$P$9,LaadinfraPrivaat[[#All],[Power (kW)]],-1)),Config!$A$57) -> AC11 | R9: =ROUNDUP((D9*(IF($L9<>"",$L9,$K9)*IF($N9<>"",$N9,$M9))/$P9)/INDEX(LaadinfraPrivaat[[#All],[Power (kW)]],MATCH('M3-TCO-laadplein'!Q9,LaadinfraPrivaat[[#All],[Charging type]],0)),0) -> 0 | S9: =ROUNDUP((E9*(IF($L9<>"",$L9,$K9)*IF($N9<>"",$N9,$M9))/$P9)/INDEX(LaadinfraPrivaat[[#All],[Power (kW)]],MATCH('M3-TCO-laadplein'!Q9,LaadinfraPrivaat[[#All],[Charging type]],0)),0) -> 0 | T9: =ROUNDUP((F9*(IF($L9<>"",$L9,$K9)*IF($N9<>"",$N9,$M9))/$P9)/INDEX(LaadinfraPrivaat[[#All],[Power (kW)]],MATCH('M3-TCO-laadplein'!Q9,LaadinfraPrivaat[[#All],[Charging type]],0)),0) -> 0 | U9: =ROUNDUP((G9*(IF($L9<>"",$L9,$K9)*IF($N9<>"",$N9,$M9))/$P9)/INDEX(LaadinfraPrivaat[[#All],[Power (kW)]],MATCH('M3-TCO-laadplein'!Q9,LaadinfraPrivaat[[#All],[Charging type]],0)),0) -> 0 | V9: =ROUNDUP((H9*(IF($L9<>"",$L9,$K9)*IF($N9<>"",$N9,$M9))/$P9)/INDEX(LaadinfraPrivaat[[#All],[Power (kW)]],MATCH('M3-TCO-laadplein'!Q9,LaadinfraPrivaat[[#All],[Charging type]],0)),0) -> 0 | W9: =ROUNDUP((I9*(IF($L9<>"",$L9,$K9)*IF($N9<>"",$N9,$M9))/$P9)/INDEX(LaadinfraPrivaat[[#All],[Power (kW)]],MATCH('M3-TCO-laadplein'!Q9,LaadinfraPrivaat[[#All],[Charging type]],0)),0) -> 0
B10: 1 | C10: =IF('Read Me'!$C$3="Nederlands", "Kleine bakwagen (lvm 6 ton)", "Small truck (load 6 tonnes)" ) -> Kleine bakwagen (lvm 6 ton) | D10: 0 | E10: =$D$10 -> 0 | F10: =$E$10 -> 0 | G10: =$F$10 -> 0 | H10: =$G$10 -> 0 | I10: =$H$10 -> 0 | J10: =INDEX(Voertuigen[[#All],[Kilometrage]],MATCH($B$10,Voertuigen[[#All],[Type ID]],0)) -> 35000 | K10: =J10/INDEX(InzetVoertuigPar[[#All],[Waarde]],MATCH("Productieve dagen per jaar",InzetVoertuigPar[[#All],[Variabele]],0)) -> 134.6153846 | M10: =IF(C10=$C$9,0.3,INDEX(EnergieverbruikEnOnderhoudPerType[[#All],[Rijden EV '[kWh/km']]],MATCH('M3-TCO-laadplein'!B10,EnergieverbruikEnOnderhoudPerType[[#All],[Type ID]],0))) -> 0.4761551825 | O10: =IF(N10<>"",N10,M10)*J10 -> 16665.43139 | P10: 8 | Q10: =IFERROR(INDEX(LaadinfraPrivaat[[#All],[Charging type]],MATCH((IF($L$10>0,$L$10,$K$10)*IF($N$10>0,$N$10,$M$10))/P10,LaadinfraPrivaat[[#All],[Power (kW)]],-1)),Config!$A$57) -> AC11 | R10: =ROUNDUP((D10*(IF($L10<>"",$L10,$K10)*IF($N10<>"",$N10,$M10))/$P10)/INDEX(LaadinfraPrivaat[[#All],[Power (kW)]],MATCH('M3-TCO-laadplein'!Q10,LaadinfraPrivaat[[#All],[Charging type]],0)),0) -> 0 | S10: =ROUNDUP((E10*(IF($L10<>"",$L10,$K10)*IF($N10<>"",$N10,$M10))/$P10)/INDEX(LaadinfraPrivaat[[#All],[Power (kW)]],MATCH('M3-TCO-laadplein'!Q10,LaadinfraPrivaat[[#All],[Charging type]],0)),0) -> 0 | T10: =ROUNDUP((F10*(IF($L10<>"",$L10,$K10)*IF($N10<>"",$N10,$M10))/$P10)/INDEX(LaadinfraPrivaat[[#All],[Power (kW)]],MATCH('M3-TCO-laadplein'!Q10,LaadinfraPrivaat[[#All],[Charging type]],0)),0) -> 0 | U10: =ROUNDUP((G10*(IF($L10<>"",$L10,$K10)*IF($N10<>"",$N10,$M10))/$P10)/INDEX(LaadinfraPrivaat[[#All],[Power (kW)]],MATCH('M3-TCO-laadplein'!Q10,LaadinfraPrivaat[[#All],[Charging type]],0)),0) -> 0 | V10: =ROUNDUP((H10*(IF($L10<>"",$L10,$K10)*IF($N10<>"",$N10,$M10))/$P10)/INDEX(LaadinfraPrivaat[[#All],[Power (kW)]],MATCH('M3-TCO-laadplein'!Q10,LaadinfraPrivaat[[#All],[Charging type]],0)),0) -> 0 | W10: =ROUNDUP((I10*(IF($L10<>"",$L10,$K10)*IF($N10<>"",$N10,$M10))/$P10)/INDEX(LaadinfraPrivaat[[#All],[Power (kW)]],MATCH('M3-TCO-laadplein'!Q10,LaadinfraPrivaat[[#All],[Charging type]],0)),0) -> 0
B11: 2 | C11: =IF('Read Me'!$C$3="Nederlands", "Medium bakwagen (lvm 9 ton)", "Medium size truck (load 9 tonnes)" ) -> Medium bakwagen (lvm 9 ton) | D11: 0 | E11: =$D$11 -> 0 | F11: =$E$11 -> 0 | G11: =$F$11 -> 0 | H11: =$G$11 -> 0 | I11: =$H$11 -> 0 | J11: =INDEX(Voertuigen[[#All],[Kilometrage]],MATCH($B$11,Voertuigen[[#All],[Type ID]],0)) -> 70000 | K11: =J11/INDEX(InzetVoertuigPar[[#All],[Waarde]],MATCH("Productieve dagen per jaar",InzetVoertuigPar[[#All],[Variabele]],0)) -> 269.2307692 | M11: =IF(C11=$C$9,0.3,INDEX(EnergieverbruikEnOnderhoudPerType[[#All],[Rijden EV '[kWh/km']]],MATCH('M3-TCO-laadplein'!B11,EnergieverbruikEnOnderhoudPerType[[#All],[Type ID]],0))) -> 0.9519194222 | O11: =IF(N11<>"",N11,M11)*J11 -> 66634.35955 | P11: 8 | Q11: =IFERROR(INDEX(LaadinfraPrivaat[[#All],[Charging type]],MATCH((IF($L$11>0,$L$11,$K$11)*IF($N$11>0,$N$11,$M$11))/P11,LaadinfraPrivaat[[#All],[Power (kW)]],-1)),Config!$A$57) -> AC43 | R11: =ROUNDUP((D11*(IF($L11<>"",$L11,$K11)*IF($N11<>"",$N11,$M11))/$P11)/INDEX(LaadinfraPrivaat[[#All],[Power (kW)]],MATCH('M3-TCO-laadplein'!Q11,LaadinfraPrivaat[[#All],[Charging type]],0)),0) -> 0 | S11: =ROUNDUP((E11*(IF($L11<>"",$L11,$K11)*IF($N11<>"",$N11,$M11))/$P11)/INDEX(LaadinfraPrivaat[[#All],[Power (kW)]],MATCH('M3-TCO-laadplein'!Q11,LaadinfraPrivaat[[#All],[Charging type]],0)),0) -> 0 | T11: =ROUNDUP((F11*(IF($L11<>"",$L11,$K11)*IF($N11<>"",$N11,$M11))/$P11)/INDEX(LaadinfraPrivaat[[#All],[Power (kW)]],MATCH('M3-TCO-laadplein'!Q11,LaadinfraPrivaat[[#All],[Charging type]],0)),0) -> 0 | U11: =ROUNDUP((G11*(IF($L11<>"",$L11,$K11)*IF($N11<>"",$N11,$M11))/$P11)/INDEX(LaadinfraPrivaat[[#All],[Power (kW)]],MATCH('M3-TCO-laadplein'!Q11,LaadinfraPrivaat[[#All],[Charging type]],0)),0) -> 0 | V11: =ROUNDUP((H11*(IF($L11<>"",$L11,$K11)*IF($N11<>"",$N11,$M11))/$P11)/INDEX(LaadinfraPrivaat[[#All],[Power (kW)]],MATCH('M3-TCO-laadplein'!Q11,LaadinfraPrivaat[[#All],[Charging type]],0)),0) -> 0 | W11: =ROUNDUP((I11*(IF($L11<>"",$L11,$K11)*IF($N11<>"",$N11,$M11))/$P11)/INDEX(LaadinfraPrivaat[[#All],[Power (kW)]],MATCH('M3-TCO-laadplein'!Q11,LaadinfraPrivaat[[#All],[Charging type]],0)),0) -> 0
B12: 3 | C12: =IF('Read Me'!$C$3="Nederlands", "Grote bakwagen (lvm >16 ton)", "Large truck (load >16 tonnes)" ) -> Grote bakwagen (lvm >16 ton) | D12: 0 | E12: =$D$12 -> 0 | F12: =$E$12 -> 0 | G12: =$F$12 -> 0 | H12: =$G$12 -> 0 | I12: =$H$12 -> 0 | J12: =INDEX(Voertuigen[[#All],[Kilometrage]],MATCH($B$12,Voertuigen[[#All],[Type ID]],0)) -> 70000 | K12: =J12/INDEX(InzetVoertuigPar[[#All],[Waarde]],MATCH("Productieve dagen per jaar",InzetVoertuigPar[[#All],[Variabele]],0)) -> 269.2307692 | M12: =IF(C12=$C$9,0.3,INDEX(EnergieverbruikEnOnderhoudPerType[[#All],[Rijden EV '[kWh/km']]],MATCH('M3-TCO-laadplein'!B12,EnergieverbruikEnOnderhoudPerType[[#All],[Type ID]],0))) -> 1.327285843 | O12: =IF(N12<>"",N12,M12)*J12 -> 92910.00898 | P12: 8 | Q12: =IFERROR(INDEX(LaadinfraPrivaat[[#All],[Charging type]],MATCH((IF($L$12>0,$L$12,$K$12)*IF($N$12>0,$N$12,$M$12))/P12,LaadinfraPrivaat[[#All],[Power (kW)]],-1)),Config!$A$57) -> DC50 | R12: =ROUNDUP((D12*(IF($L12<>"",$L12,$K12)*IF($N12<>"",$N12,$M12))/$P12)/INDEX(LaadinfraPrivaat[[#All],[Power (kW)]],MATCH('M3-TCO-laadplein'!Q12,LaadinfraPrivaat[[#All],[Charging type]],0)),0) -> 0 | S12: =ROUNDUP((E12*(IF($L12<>"",$L12,$K12)*IF($N12<>"",$N12,$M12))/$P12)/INDEX(LaadinfraPrivaat[[#All],[Power (kW)]],MATCH('M3-TCO-laadplein'!Q12,LaadinfraPrivaat[[#All],[Charging type]],0)),0) -> 0 | T12: =ROUNDUP((F12*(IF($L12<>"",$L12,$K12)*IF($N12<>"",$N12,$M12))/$P12)/INDEX(LaadinfraPrivaat[[#All],[Power (kW)]],MATCH('M3-TCO-laadplein'!Q12,LaadinfraPrivaat[[#All],[Charging type]],0)),0) -> 0 | U12: =ROUNDUP((G12*(IF($L12<>"",$L12,$K12)*IF($N12<>"",$N12,$M12))/$P12)/INDEX(LaadinfraPrivaat[[#All],[Power (kW)]],MATCH('M3-TCO-laadplein'!Q12,LaadinfraPrivaat[[#All],[Charging type]],0)),0) -> 0 | V12: =ROUNDUP((H12*(IF($L12<>"",$L12,$K12)*IF($N12<>"",$N12,$M12))/$P12)/INDEX(LaadinfraPrivaat[[#All],[Power (kW)]],MATCH('M3-TCO-laadplein'!Q12,LaadinfraPrivaat[[#All],[Charging type]],0)),0) -> 0 | W12: =ROUNDUP((I12*(IF($L12<>"",$L12,$K12)*IF($N12<>"",$N12,$M12))/$P12)/INDEX(LaadinfraPrivaat[[#All],[Power (kW)]],MATCH('M3-TCO-laadplein'!Q12,LaadinfraPrivaat[[#All],[Charging type]],0)),0) -> 0
B13: 4 | C13: =IF('Read Me'!$C$3="Nederlands", "Lichte trekker z/opl (GVW <40 ton)", "Light tractor (load <40 tonnes)" ) -> Lichte trekker z/opl (GVW <40 ton) | D13: 0 | E13: =$D$13 -> 0 | F13: =$E$13 -> 0 | G13: =$F$13 -> 0 | H13: =$G$13 -> 0 | I13: =$H$13 -> 0 | J13: =INDEX(Voertuigen[[#All],[Kilometrage]],MATCH($B$13,Voertuigen[[#All],[Type ID]],0)) -> 100000 | K13: =J13/INDEX(InzetVoertuigPar[[#All],[Waarde]],MATCH("Productieve dagen per jaar",InzetVoertuigPar[[#All],[Variabele]],0)) -> 384.6153846 | M13: =IF(C13=$C$9,0.3,INDEX(EnergieverbruikEnOnderhoudPerType[[#All],[Rijden EV '[kWh/km']]],MATCH('M3-TCO-laadplein'!B13,EnergieverbruikEnOnderhoudPerType[[#All],[Type ID]],0))) -> 1.299629854 | O13: =IF(N13<>"",N13,M13)*J13 -> 129962.9854 | P13: 8 | Q13: =IFERROR(INDEX(LaadinfraPrivaat[[#All],[Charging type]],MATCH((IF($L$13>0,$L$13,$K$13)*IF($N$13>0,$N$13,$M$13))/P13,LaadinfraPrivaat[[#All],[Power (kW)]],-1)),Config!$A$57) -> DC150 | R13: =ROUNDUP((D13*(IF($L13<>"",$L13,$K13)*IF($N13<>"",$N13,$M13))/$P13)/INDEX(LaadinfraPrivaat[[#All],[Power (kW)]],MATCH('M3-TCO-laadplein'!Q13,LaadinfraPrivaat[[#All],[Charging type]],0)),0) -> 0 | S13: =ROUNDUP((E13*(IF($L13<>"",$L13,$K13)*IF($N13<>"",$N13,$M13))/$P13)/INDEX(LaadinfraPrivaat[[#All],[Power (kW)]],MATCH('M3-TCO-laadplein'!Q13,LaadinfraPrivaat[[#All],[Charging type]],0)),0) -> 0 | T13: =ROUNDUP((F13*(IF($L13<>"",$L13,$K13)*IF($N13<>"",$N13,$M13))/$P13)/INDEX(LaadinfraPrivaat[[#All],[Power (kW)]],MATCH('M3-TCO-laadplein'!Q13,LaadinfraPrivaat[[#All],[Charging type]],0)),0) -> 0 | U13: =ROUNDUP((G13*(IF($L13<>"",$L13,$K13)*IF($N13<>"",$N13,$M13))/$P13)/INDEX(LaadinfraPrivaat[[#All],[Power (kW)]],MATCH('M3-TCO-laadplein'!Q13,LaadinfraPrivaat[[#All],[Charging type]],0)),0) -> 0 | V13: =ROUNDUP((H13*(IF($L13<>"",$L13,$K13)*IF($N13<>"",$N13,$M13))/$P13)/INDEX(LaadinfraPrivaat[[#All],[Power (kW)]],MATCH('M3-TCO-laadplein'!Q13,LaadinfraPrivaat[[#All],[Charging type]],0)),0) -> 0 | W13: =ROUNDUP((I13*(IF($L13<>"",$L13,$K13)*IF($N13<>"",$N13,$M13))/$P13)/INDEX(LaadinfraPrivaat[[#All],[Power (kW)]],MATCH('M3-TCO-laadplein'!Q13,LaadinfraPrivaat[[#All],[Charging type]],0)),0) -> 0
B14: 5 | C14: =IF('Read Me'!$C$3="Nederlands", "Zware trekker z/opl (GVW >40 ton)", "Heavy duty tractor (load >40 tonnes)" ) -> Zware trekker z/opl (GVW >40 ton) | D14: 0 | E14: =$D$14 -> 0 | F14: =$E$14 -> 0 | G14: =$F$14 -> 0 | H14: =$G$14 -> 0 | I14: =$H$14 -> 0 | J14: =INDEX(Voertuigen[[#All],[Kilometrage]],MATCH($B$14,Voertuigen[[#All],[Type ID]],0)) -> 100000 | K14: =J14/INDEX(InzetVoertuigPar[[#All],[Waarde]],MATCH("Productieve dagen per jaar",InzetVoertuigPar[[#All],[Variabele]],0)) -> 384.6153846 | M14: =IF(C14=$C$9,0.3,INDEX(EnergieverbruikEnOnderhoudPerType[[#All],[Rijden EV '[kWh/km']]],MATCH('M3-TCO-laadplein'!B14,EnergieverbruikEnOnderhoudPerType[[#All],[Type ID]],0))) -> 1.4675 | O14: 146750 | P14: 8 | Q14: =IFERROR(INDEX(LaadinfraPrivaat[[#All],[Charging type]],MATCH((IF($L$14>0,$L$14,$K$14)*IF($N$14>0,$N$14,$M$14))/P14,LaadinfraPrivaat[[#All],[Power (kW)]],-1)),Config!$A$57) -> DC150 | R14: =ROUNDUP((D14*(IF($L14<>"",$L14,$K14)*IF($N14<>"",$N14,$M14))/$P14)/INDEX(LaadinfraPrivaat[[#All],[Power (kW)]],MATCH('M3-TCO-laadplein'!Q14,LaadinfraPrivaat[[#All],[Charging type]],0)),0) -> 0 | S14: =ROUNDUP((E14*(IF($L14<>"",$L14,$K14)*IF($N14<>"",$N14,$M14))/$P14)/INDEX(LaadinfraPrivaat[[#All],[Power (kW)]],MATCH('M3-TCO-laadplein'!Q14,LaadinfraPrivaat[[#All],[Charging type]],0)),0) -> 0 | T14: =ROUNDUP((F14*(IF($L14<>"",$L14,$K14)*IF($N14<>"",$N14,$M14))/$P14)/INDEX(LaadinfraPrivaat[[#All],[Power (kW)]],MATCH('M3-TCO-laadplein'!Q14,LaadinfraPrivaat[[#All],[Charging type]],0)),0) -> 0 | U14: =ROUNDUP((G14*(IF($L14<>"",$L14,$K14)*IF($N14<>"",$N14,$M14))/$P14)/INDEX(LaadinfraPrivaat[[#All],[Power (kW)]],MATCH('M3-TCO-laadplein'!Q14,LaadinfraPrivaat[[#All],[Charging type]],0)),0) -> 0 | V14: =ROUNDUP((H14*(IF($L14<>"",$L14,$K14)*IF($N14<>"",$N14,$M14))/$P14)/INDEX(LaadinfraPrivaat[[#All],[Power (kW)]],MATCH('M3-TCO-laadplein'!Q14,LaadinfraPrivaat[[#All],[Charging type]],0)),0) -> 0 | W14: =ROUNDUP((I14*(IF($L14<>"",$L14,$K14)*IF($N14<>"",$N14,$M14))/$P14)/INDEX(LaadinfraPrivaat[[#All],[Power (kW)]],MATCH('M3-TCO-laadplein'!Q14,LaadinfraPrivaat[[#All],[Charging type]],0)),0) -> 0
B16: =IF('Read Me'!$C$3="Nederlands","Totaal e-voertuigen","Total e-vehicles") -> Totaal e-voertuigen | D16: =SUM(D9:D14) -> 0 | E16: =SUM(E9:E14) -> 0 | F16: 0 | G16: 0 | H16: 0 | I16: 0
B17: =IF('Read Me'!$C$3="Nederlands","Totale energievraag [kWh]","Total energy demand [kWh]") -> Totale energievraag [kWh] | D17: =SUMPRODUCT(D9:D14,$O$9:$O$14) -> 0 | E17: =SUMPRODUCT(E9:E14,$O$9:$O$14) -> 0 | F17: =SUMPRODUCT(F9:F14,$O$9:$O$14) -> 0 | G17: 0 | H17: 0 | I17: 0
B18: =IF('Read Me'!$C$3="Nederlands","Piekvermogen [kW/u]*","Peak power [kW/h]*") -> Piekvermogen [kW/u]* | D18: =Calculatie!M$17 -> 0 | E18: =Calculatie!N$20 -> 0 | F18: =Calculatie!O$20 -> 0 | G18: =Calculatie!P$20 -> 0 | H18: =Calculatie!Q$20 -> 0 | I18: =Calculatie!R$20 -> 0
B20: =Config!$A$58 -> * Bovenstaand piekvermogen is van toepassing in het geval dat alle laadpalen gelijktijdig worden gebruikt. Let op dat wanneer deze piek groter is dan uw publieke aansluiting toestaat, de zekering van uw aansluiting op het publieke net springt! De piek kan verlaagd worden door de toepassing van een "smart charging grid". Daarnaast kan een aansluiting overwogen worden met een zonne- of windpark of een elektriciteitsopslag in batterijen.
G21: =IF('Read Me'!$C$3="Nederlands","TOTALE KOSTEN LAADPLEIN (afschrijftermijn is 10 jaar)","TOTAL COST CHARGING HUB (depreciation period is 10 years)") -> TOTALE KOSTEN LAADPLEIN (afschrijftermijn is 10 jaar) | Q21: =IF('Read Me'!$C$3="Nederlands","SUBSIDIE REGELING","SUBSIDY SCHEME") -> SUBSIDIE REGELING
Q22: =IF('Read Me'!$C$3="Nederlands","Gekozen subsidieregeling","Selected subsidy scheme") -> Gekozen subsidieregeling
I23: CAPEX | J23: =Calculatie!V25 -> 0 | M23: Details CAPEX
I24: =IF('Read Me'!$C$3="Nederlands","Subsidie laadpaal","Subsidy charging infra") -> Subsidie laadpaal | J24: =$S$26*-1 -> 0 | M24: =IF('Read Me'!$C$3="Nederlands","inkoopprijs laadpalen","purchase charging stations") -> inkoopprijs laadpalen | N24: =Calculatie!V21 -> 0 | Q24: =IF('Read Me'!$C$3="Nederlands","*Aanpasbaar via Input-Output Module "," *Adjustable via Input-Output Module ") -> *Aanpasbaar via Input-Output Module
I25: OPEX | J25: =Calculatie!V31 -> 0 | M25: =IF('Read Me'!$C$3="Nederlands","plaatsing","installation") -> plaatsing | N25: =Calculatie!V22 -> 0
I26: =IF('Read Me'!$C$3="Nederlands","Netverzwaring","Upgrading mains") -> Netverzwaring | J26: =Calculatie!V35 -> 0 | M26: =IF('Read Me'!$C$3="Nederlands","projectmanagement / advies","projectmanagement / consulting") -> projectmanagement / advies | N26: =Calculatie!V23 -> 0 | R26: =IF('Read Me'!$C$3="Nederlands","Subsidie laadpaal","Subsidy charging infra") -> Subsidie laadpaal | S26: =IF('Input-Output Module'!$D$56=Config!$A$32, IF('M2-Subsidie'!$B$17=Config!$A$74, 'M2-Subsidie'!$B$32, IF('M2-Subsidie'!$B$17=Config!$A$75,'M2-Subsidie'!$B$45,0) ),0) -> 0
I27: =IF('Read Me'!$C$3="Nederlands","Transformator","Transformer") -> Transformator | J27: =IF(J23>0,Calculatie!V36,0) -> 0 | M27: =IF('Read Me'!$C$3="Nederlands","aansluitkosten netbeheerder","connection costs network operator") -> aansluitkosten netbeheerder | N27: =Calculatie!V24 -> 0 | R27: =IF('Read Me'!$C$3="Nederlands","Subsidie batterij","Subsidy battery") -> Subsidie batterij | S27: =IF('M2-Subsidie'!$B$17=Config!$A$74,0,IF('M2-Subsidie'!$B$17=Config!$A$75,'M2-Subsidie'!$B$46,0) ) -> 0 | W27: =IF('Input-Output Module'!$D$57=Config!$A$74,Config!$A$78,"") -> 
I28: =IF('Read Me'!$C$3="Nederlands","Totaal","Total") -> Totaal | J28: =SUM(J23:J27) -> 0 | N28: =SUM(N24:N27) -> 0
I30: =IF('Read Me'!$C$3="Nederlands","Netverzwaring meenemen* ","Include upgrading mains* ") -> Netverzwaring meenemen* | J30: Nee | M30: Details OPEX
I31: =IF('Read Me'!$C$3="Nederlands","kosten per jaar ","annual costs ") -> kosten per jaar | J31: =IF($J$30=Config!$A$11,('M3-TCO-laadplein'!J23+'M3-TCO-laadplein'!J24+'M3-TCO-laadplein'!J25+'M3-TCO-laadplein'!J26+'M3-TCO-laadplein'!J27),('M3-TCO-laadplein'!J23+'M3-TCO-laadplein'!J24+'M3-TCO-laadplein'!J25))/10 -> 0 | M31: =IF('Read Me'!$C$3="Nederlands","periodieke netkosten","periodic costs network operator") -> periodieke netkosten | N31: =Calculatie!V28 -> 0
I32: =IF('Read Me'!$C$3="Nederlands","kosten per kWh ","costs per kWh ") -> kosten per kWh | J32: =IF(J28>0, IF($J$30=Config!$A$11,('M3-TCO-laadplein'!J23+'M3-TCO-laadplein'!J24+'M3-TCO-laadplein'!J25+'M3-TCO-laadplein'!J26+'M3-TCO-laadplein'!J27),('M3-TCO-laadplein'!J23+'M3-TCO-laadplein'!J24+'M3-TCO-laadplein'!J25))/ (SUM(Calculatie!$M$21:$R$21)*2),0) -> 0 | M32: =IF('Read Me'!$C$3="Nederlands","operatie, onderhoud, service","operations, maintenance and service") -> operatie, onderhoud, service | N32: =Calculatie!V29 -> 0
H33: =IF(AND($J$30=Config!$A$11,$J$32*(1+INDEX(PAR_STAT_BATTERY[#All],MATCH("Marge",PAR_STAT_BATTERY[[#All],[Variabele]],0),3))>=$S$51),Config!$A$59,"") ->  | M33: =IF('Read Me'!$C$3="Nederlands","energiekosten","energy costs") -> energiekosten | N33: =Calculatie!V30 -> 0
N34: =SUM(N31:N33) -> 0
G37: =IF('Read Me'!$C$3="Nederlands", "*let op! Een netverzwaring of de aanschaf van een transformator is niet altijd nodig. Deze kosten kunnen genegeerd worden door hier voor 'nee' te kiezen", "*Note! Upgrading your mains of purchasing a transformer is not always needed. These costs can be excluded by chossing 'No' here") -> *let op! Een netverzwaring of de aanschaf van een transformator is niet altijd nodig. Deze kosten kunnen genegeerd worden door hier voor 'nee' te kiezen
G40: =IF('Read Me'!$C$3="Nederlands","AANSCHAF EN KOSTEN STATIONAIRE BATTERIJ","PURCHASE AND OPERATING STATIONARY BATTERY") -> AANSCHAF EN KOSTEN STATIONAIRE BATTERIJ | Q40: =IF('Read Me'!$C$3="Nederlands","SAMENVATTING STATIONAIRE BATTERIJ","SUMMARY STATIONARY BATTERY") -> SAMENVATTING STATIONAIRE BATTERIJ
R41: =IF('Read Me'!$C$3="Nederlands","Afschrijftermijn [jaar]","Depreciation [years]") -> Afschrijftermijn [jaar] | S41: =$J$42 -> 15
I42: =Config!$A$60 -> Afschrijftermijn [jaar] | J42: =INDEX(PAR_STAT_BATTERY[[#All],[Waarde]],MATCH($I$42,PAR_STAT_BATTERY[[#All],[Variabele]],0)) -> 15 | M42: Details CAPEX | R42: =IF('Read Me'!$C$3="Nederlands","Jaarcapaciteit [kWh]","Yearly capacity [kWh]") -> Jaarcapaciteit [kWh] | S42: =$J$47 -> 208000
I43: =Config!$A$61 -> Prijs per kWh | J43: =INDEX(PAR_STAT_BATTERY[[#All],[Waarde]],MATCH($I$43,PAR_STAT_BATTERY[[#All],[Variabele]],0)) -> 550 | M43: =IF('Read Me'!$C$3="Nederlands","Aanschafkosten batterijcontainer ","Purchase price batterycontainer ") -> Aanschafkosten batterijcontainer | N43: =$J$43*$J$44 -> 550000 | R43: CAPEX | S43: =SUM($N$43:$N$47) -> 556500
I44: =Config!$A$62 -> Capaciteit batterij (kWh) | J44: =INDEX(PAR_STAT_BATTERY[[#All],[Waarde]],MATCH($I$44,PAR_STAT_BATTERY[[#All],[Variabele]],0)) -> 1000 | M44: =Config!$A$67 -> Afleveringsskosten | N44: =INDEX(PAR_STAT_BATTERY[[#All],[Waarde]],MATCH($M$44,PAR_STAT_BATTERY[[#All],[Variabele]],0)) -> 1500 | R44: OPEX | S44: =SUM($N$50:$N$52) -> 27900 | U44: =IF('Read Me'!$C$3="Nederlands","/jaar","yearly") -> /jaar
I45: =Config!$A$63 -> Max. ontlading batterij | J45: =INDEX(PAR_STAT_BATTERY[[#All],[Waarde]],MATCH($I$45,PAR_STAT_BATTERY[[#All],[Variabele]],0)) -> 0.8 | M45: =Config!$A$68 -> Plaatsingskosten | N45: =INDEX(PAR_STAT_BATTERY[[#All],[Waarde]],MATCH($M$45,PAR_STAT_BATTERY[[#All],[Variabele]],0)) -> 5000 | R45: =IF('Read Me'!$C$3="Nederlands","Besparing per kWh","Savings per kWh") -> Besparing per kWh | S45: =($J$50-$J$51)*$J$52 -> 0.052685
I46: =Config!$A$64 -> Sessies per week | J46: =INDEX(PAR_STAT_BATTERY[[#All],[Waarde]],MATCH($I$46,PAR_STAT_BATTERY[[#All],[Variabele]],0)) -> 5 | M46: =Config!$A$69 -> Extra opties | N46: =INDEX(PAR_STAT_BATTERY[[#All],[Waarde]],MATCH($M$46,PAR_STAT_BATTERY[[#All],[Variabele]],0)) -> 0
I47: =IF('Read Me'!$C$3="Nederlands","Jaarlijkse batterij capaciteit ","Yearly battery capacity ") -> Jaarlijkse batterij capaciteit | J47: =J44*J46*J45*52 -> 208000 | M47: =IF('Read Me'!$C$3="Nederlands","Subsidie batterij ","Subsidy battery ") -> Subsidie batterij | N47: =$S$27*-1 -> 0 | R47: =IF('Read Me'!$C$3="Nederlands","Jaarlijkse kosten","Yearly costs") -> Jaarlijkse kosten
N48: =SUM(N43:N47) -> 556500 | R48: =IF('Read Me'!$C$3="Nederlands","Bruto totale kosten","Gross total costs") -> Bruto totale kosten | S48: =($S$43/$S$41)+$S$44 -> 65000
H49: =IF('Read Me'!$C$3="Nederlands","Inkoopprijs elektriciteit","Purchase price electricity") -> Inkoopprijs elektriciteit | M49: =IF('Read Me'!$C$3="Nederlands","Details OPEX (per jaar)","Details OPEX (yearly)") -> Details OPEX (per jaar) | R49: =IF('Read Me'!$C$3="Nederlands","Totale besparing","Total savings") -> Totale besparing | S49: =$S$45*$S$42 -> 10958.48
I50: =IF('Read Me'!$C$3="Nederlands","Via publieke net ","Via power network ") -> Via publieke net | J50: ='Input-Output Module'!$E$32 -> 0.21537 | M50: =Config!$A$70 -> Onderhoudscontract | N50: =INDEX(PAR_STAT_BATTERY[[#All],[Waarde]],MATCH($M$50,PAR_STAT_BATTERY[[#All],[Variabele]],0)) -> 5400 | R50: =IF('Read Me'!$C$3="Nederlands","Netto totale kosten","Net total costs") -> Netto totale kosten | S50: =$S$48-$S$49 -> 54041.52
I51: =Config!$A$65 -> Eigen opwek | J51: =INDEX(PAR_STAT_BATTERY[[#All],[Waarde]],MATCH($I$51,PAR_STAT_BATTERY[[#All],[Variabele]],0)) -> 0.11 | M51: =Config!$A$71 -> Energiemanagement software | N51: =INDEX(PAR_STAT_BATTERY[[#All],[Waarde]],MATCH($M$51,PAR_STAT_BATTERY[[#All],[Variabele]],0)) -> 7500 | R51: =IF('Read Me'!$C$3="Nederlands","Kosten per kWh","Costs per kWh") -> Kosten per kWh | S51: =$S$50/$S$42 -> 0.259815
I52: =Config!$A$66 -> Fractie eigen opwek | J52: =INDEX(PAR_STAT_BATTERY[[#All],[Waarde]],MATCH($I$52,PAR_STAT_BATTERY[[#All],[Variabele]],0)) -> 0.5 | M52: =Config!$A$72 -> Monitoring | N52: =INDEX(PAR_STAT_BATTERY[[#All],[Waarde]],MATCH($M$52,PAR_STAT_BATTERY[[#All],[Variabele]],0)) -> 15000
N53: =SUM(N50:N52) -> 27900

Sheet Calculatie
A1: BASIS INVOERGEGEVENS
A2: Voertuig / ID | B2: =Voertuigtype -> Medium bakwagen (lvm ca. 9 ton) | C2: =INDEX(Voertuigen[#All],MATCH(Calculatie!B2,Voertuigen[[#All],[Voertuig]],0),2) -> 3 | F2: test | G2: Dit is een overgenomen veld
A3: Voertuigtype / ID | B3: =INDEX(Voertuigen[#All],MATCH(Calculatie!B2,Voertuigen[[#All],[Voertuig]],0),3) -> Medium bakwagen | C3: =INDEX(Voertuigen[#All],MATCH(Calculatie!B2,Voertuigen[[#All],[Voertuig]],0),4) -> 2 | F3: test | G3: Dit is een berekening
A4: Verwacht jaarkilometrage | B4: =Kilometrage -> 70000
A5: Grijze/groene elektriciciteit | B5: =Elec_type -> Groen
A6: Grijze/groene waterstof | B6: =H2_type -> Electrolyse (hernieuwbare energie)
A7: Rechtsvorm en belastingpercentage | B7: =Belasting -> BV of NV met 19% belasting
A8: Grootte van bedrijf | B8: =Bedrijfsgrootte -> Groot | K8: Berekeningen Laadpleinmodel
K9: Aantal laadpalen en piekvermogen
A10: INZETGEGEVENS VOERTUIG SYSTEM | B10: DV | C10: EV | D10: FC | E10: H2ICE-CI | K10: Laadpaal | L10: Vermogen [kW/u] | M10: jaar 0 | N10: jaar 1-2 | O10: jaar 3-4 | P10: jaar 5-6 | Q10: jaar 7-8 | R10: jaar 9-10 | S10: OPEX | U10: Relevantie subsidie SPRILA
A11: Economische levensduur [jaren] | B11: ='Input-Output Module'!D$36 -> 7 | C11: ='Input-Output Module'!E$36 -> 7 | D11: ='Input-Output Module'!F$36 -> 7 | E11: ='Input-Output Module'!G$36 -> 7 | K11: DC1000 | L11: =INDEX(LaadinfraPrivaat[[#All],[Power (kW)]],MATCH(Calculatie!K11,LaadinfraPrivaat[[#All],[Charging type]],0)) -> 1000 | M11: =SUMIF('M3-TCO-laadplein'!$Q$9:$Q$14,Calculatie!$K11,'M3-TCO-laadplein'!R$9:R$14) -> 0 | N11: =IF( SUMIF('M3-TCO-laadplein'!$Q$9:$Q$14,Calculatie!$K11,'M3-TCO-laadplein'!S$9:S$14)<M11, M11, SUMIF('M3-TCO-laadplein'!$Q$9:$Q$14,Calculatie!$K11,'M3-TCO-laadplein'!S$9:S$14)) -> 0 | O11: =IF(SUMIF('M3-TCO-laadplein'!$Q$9:$Q$14,Calculatie!$K11,'M3-TCO-laadplein'!T$9:T$14)<N11, N11, SUMIF('M3-TCO-laadplein'!$Q$9:$Q$14,Calculatie!$K11,'M3-TCO-laadplein'!T$9:T$14)) -> 0 | P11: =IF(SUMIF('M3-TCO-laadplein'!$Q$9:$Q$14,Calculatie!$K11,'M3-TCO-laadplein'!U$9:U$14)<O11, O11, SUMIF('M3-TCO-laadplein'!$Q$9:$Q$14,Calculatie!$K11,'M3-TCO-laadplein'!U$9:U$14)) -> 0 | Q11: =IF(SUMIF('M3-TCO-laadplein'!$Q$9:$Q$14,Calculatie!$K11,'M3-TCO-laadplein'!V$9:V$14)<P11,P11,SUMIF('M3-TCO-laadplein'!$Q$9:$Q$14,Calculatie!$K11,'M3-TCO-laadplein'!V$9:V$14)) -> 0 | R11: =IF(SUMIF('M3-TCO-laadplein'!$Q$9:$Q$14,Calculatie!$K11,'M3-TCO-laadplein'!W$9:W$14)<Q11,Q11,SUMIF('M3-TCO-laadplein'!$Q$9:$Q$14,Calculatie!$K11,'M3-TCO-laadplein'!W$9:W$14)) -> 0 | S11: =SUM($N11:$R11)*2 -> 0 | U11: =INDEX(Table25[#All],MATCH($K11,Table25[[#All],[Laadpaal]],0),MATCH('M2-Subsidie'!$B$8,Table25[#Headers],0)) -> 70306
A12: Kosten van reparaties | B12: ='Input-Output Module'!D$37 -> 551.25 | C12: ='Input-Output Module'!E$37 -> 551.25 | D12: ='Input-Output Module'!F$37 -> 1653.75 | E12: ='Input-Output Module'!G$37 -> 551.25 | K12: DC600 | L12: =INDEX(LaadinfraPrivaat[[#All],[Power (kW)]],MATCH(Calculatie!K12,LaadinfraPrivaat[[#All],[Charging type]],0)) -> 600 | M12: =SUMIF('M3-TCO-laadplein'!$Q$9:$Q$14,Calculatie!$K12,'M3-TCO-laadplein'!R$9:R$14) -> 0 | N12: =IF( SUMIF('M3-TCO-laadplein'!$Q$9:$Q$14,Calculatie!$K12,'M3-TCO-laadplein'!S$9:S$14)<M12, M12, SUMIF('M3-TCO-laadplein'!$Q$9:$Q$14,Calculatie!$K12,'M3-TCO-laadplein'!S$9:S$14)) -> 0 | O12: =IF(SUMIF('M3-TCO-laadplein'!$Q$9:$Q$14,Calculatie!$K12,'M3-TCO-laadplein'!T$9:T$14)<N12, N12, SUMIF('M3-TCO-laadplein'!$Q$9:$Q$14,Calculatie!$K12,'M3-TCO-laadplein'!T$9:T$14)) -> 0 | P12: =IF(SUMIF('M3-TCO-laadplein'!$Q$9:$Q$14,Calculatie!$K12,'M3-TCO-laadplein'!U$9:U$14)<O12, O12, SUMIF('M3-TCO-laadplein'!$Q$9:$Q$14,Calculatie!$K12,'M3-TCO-laadplein'!U$9:U$14)) -> 0 | Q12: =IF(SUMIF('M3-TCO-laadplein'!$Q$9:$Q$14,Calculatie!$K12,'M3-TCO-laadplein'!V$9:V$14)<P12,P12,SUMIF('M3-TCO-laadplein'!$Q$9:$Q$14,Calculatie!$K12,'M3-TCO-laadplein'!V$9:V$14)) -> 0 | R12: =IF(SUMIF('M3-TCO-laadplein'!$Q$9:$Q$14,Calculatie!$K12,'M3-TCO-laadplein'!W$9:W$14)<Q12,Q12,SUMIF('M3-TCO-laadplein'!$Q$9:$Q$14,Calculatie!$K12,'M3-TCO-laadplein'!W$9:W$14)) -> 0 | S12: =SUM($N12:$R12)*2 -> 0 | U12: =INDEX(Table25[#All],MATCH($K12,Table25[[#All],[Laadpaal]],0),MATCH('M2-Subsidie'!$B$8,Table25[#Headers],0)) -> 70306
A13: Productieve dagen per jaar | B13: =Parameters!$C$15 -> 260 | C13: =B13-'Input-Output Module'!$E$39 -> 260 | D13: =B13-'Input-Output Module'!$F$39 -> 260 | E13: =B13-'Input-Output Module'!$G$39 -> 260 | K13: DC350 | L13: =INDEX(LaadinfraPrivaat[[#All],[Power (kW)]],MATCH(Calculatie!K13,LaadinfraPrivaat[[#All],[Charging type]],0)) -> 350 | M13: =SUMIF('M3-TCO-laadplein'!$Q$9:$Q$14,Calculatie!$K13,'M3-TCO-laadplein'!R$9:R$14) -> 0 | N13: =IF( SUMIF('M3-TCO-laadplein'!$Q$9:$Q$14,Calculatie!$K13,'M3-TCO-laadplein'!S$9:S$14)<M13, M13, SUMIF('M3-TCO-laadplein'!$Q$9:$Q$14,Calculatie!$K13,'M3-TCO-laadplein'!S$9:S$14)) -> 0 | O13: =IF(SUMIF('M3-TCO-laadplein'!$Q$9:$Q$14,Calculatie!$K13,'M3-TCO-laadplein'!T$9:T$14)<N13, N13, SUMIF('M3-TCO-laadplein'!$Q$9:$Q$14,Calculatie!$K13,'M3-TCO-laadplein'!T$9:T$14)) -> 0 | P13: =IF(SUMIF('M3-TCO-laadplein'!$Q$9:$Q$14,Calculatie!$K13,'M3-TCO-laadplein'!U$9:U$14)<O13, O13, SUMIF('M3-TCO-laadplein'!$Q$9:$Q$14,Calculatie!$K13,'M3-TCO-laadplein'!U$9:U$14)) -> 0 | Q13: =IF(SUMIF('M3-TCO-laadplein'!$Q$9:$Q$14,Calculatie!$K13,'M3-TCO-laadplein'!V$9:V$14)<P13,P13,SUMIF('M3-TCO-laadplein'!$Q$9:$Q$14,Calculatie!$K13,'M3-TCO-laadplein'!V$9:V$14)) -> 0 | R13: =IF(SUMIF('M3-TCO-laadplein'!$Q$9:$Q$14,Calculatie!$K13,'M3-TCO-laadplein'!W$9:W$14)<Q13,Q13,SUMIF('M3-TCO-laadplein'!$Q$9:$Q$14,Calculatie!$K13,'M3-TCO-laadplein'!W$9:W$14)) -> 0 | S13: 0 | U13: =INDEX(Table25[#All],MATCH($K13,Table25[[#All],[Laadpaal]],0),MATCH('M2-Subsidie'!$B$8,Table25[#Headers],0)) -> 41696
A14: Productieve uren per jaar | B14: ='Input-Output Module'!$D$38 -> 2600 | C14: =$B$15*C13 -> 2600 | D14: =$B$15*D13 -> 2600 | E14: =$B$15*E13 -> 2600 | K14: DC150 | L14: =INDEX(LaadinfraPrivaat[[#All],[Power (kW)]],MATCH(Calculatie!K14,LaadinfraPrivaat[[#All],[Charging type]],0)) -> 150 | M14: =SUMIF('M3-TCO-laadplein'!$Q$9:$Q$14,Calculatie!$K14,'M3-TCO-laadplein'!R$9:R$14) -> 0 | N14: =IF( SUMIF('M3-TCO-laadplein'!$Q$9:$Q$14,Calculatie!$K14,'M3-TCO-laadplein'!S$9:S$14)<M14, M14, SUMIF('M3-TCO-laadplein'!$Q$9:$Q$14,Calculatie!$K14,'M3-TCO-laadplein'!S$9:S$14)) -> 0 | O14: =IF(SUMIF('M3-TCO-laadplein'!$Q$9:$Q$14,Calculatie!$K14,'M3-TCO-laadplein'!T$9:T$14)<N14, N14, SUMIF('M3-TCO-laadplein'!$Q$9:$Q$14,Calculatie!$K14,'M3-TCO-laadplein'!T$9:T$14)) -> 0 | P14: =IF(SUMIF('M3-TCO-laadplein'!$Q$9:$Q$14,Calculatie!$K14,'M3-TCO-laadplein'!U$9:U$14)<O14, O14, SUMIF('M3-TCO-laadplein'!$Q$9:$Q$14,Calculatie!$K14,'M3-TCO-laadplein'!U$9:U$14)) -> 0 | Q14: =IF(SUMIF('M3-TCO-laadplein'!$Q$9:$Q$14,Calculatie!$K14,'M3-TCO-laadplein'!V$9:V$14)<P14,P14,SUMIF('M3-TCO-laadplein'!$Q$9:$Q$14,Calculatie!$K14,'M3-TCO-laadplein'!V$9:V$14)) -> 0 | R14: =IF(SUMIF('M3-TCO-laadplein'!$Q$9:$Q$14,Calculatie!$K14,'M3-TCO-laadplein'!W$9:W$14)<Q14,Q14,SUMIF('M3-TCO-laadplein'!$Q$9:$Q$14,Calculatie!$K14,'M3-TCO-laadplein'!W$9:W$14)) -> 0 | S14: 0 | U14: =INDEX(Table25[#All],MATCH($K14,Table25[[#All],[Laadpaal]],0),MATCH('M2-Subsidie'!$B$8,Table25[#Headers],0)) -> 18644
A15: Productieve uren per dag | B15: =B14/B13 -> 10 | K15: DC50 | L15: =INDEX(LaadinfraPrivaat[[#All],[Power (kW)]],MATCH(Calculatie!K15,LaadinfraPrivaat[[#All],[Charging type]],0)) -> 50 | M15: =SUMIF('M3-TCO-laadplein'!$Q$9:$Q$14,Calculatie!$K15,'M3-TCO-laadplein'!R$9:R$14) -> 0 | N15: =IF( SUMIF('M3-TCO-laadplein'!$Q$9:$Q$14,Calculatie!$K15,'M3-TCO-laadplein'!S$9:S$14)<M15, M15, SUMIF('M3-TCO-laadplein'!$Q$9:$Q$14,Calculatie!$K15,'M3-TCO-laadplein'!S$9:S$14)) -> 0 | O15: =IF(SUMIF('M3-TCO-laadplein'!$Q$9:$Q$14,Calculatie!$K15,'M3-TCO-laadplein'!T$9:T$14)<N15, N15, SUMIF('M3-TCO-laadplein'!$Q$9:$Q$14,Calculatie!$K15,'M3-TCO-laadplein'!T$9:T$14)) -> 0 | P15: =IF(SUMIF('M3-TCO-laadplein'!$Q$9:$Q$14,Calculatie!$K15,'M3-TCO-laadplein'!U$9:U$14)<O15, O15, SUMIF('M3-TCO-laadplein'!$Q$9:$Q$14,Calculatie!$K15,'M3-TCO-laadplein'!U$9:U$14)) -> 0 | Q15: =IF(SUMIF('M3-TCO-laadplein'!$Q$9:$Q$14,Calculatie!$K15,'M3-TCO-laadplein'!V$9:V$14)<P15,P15,SUMIF('M3-TCO-laadplein'!$Q$9:$Q$14,Calculatie!$K15,'M3-TCO-laadplein'!V$9:V$14)) -> 0 | R15: =IF(SUMIF('M3-TCO-laadplein'!$Q$9:$Q$14,Calculatie!$K15,'M3-TCO-laadplein'!W$9:W$14)<Q15,Q15,SUMIF('M3-TCO-laadplein'!$Q$9:$Q$14,Calculatie!$K15,'M3-TCO-laadplein'!W$9:W$14)) -> 0 | S15: 0 | U15: =INDEX(Table25[#All],MATCH($K15,Table25[[#All],[Laadpaal]],0),MATCH('M2-Subsidie'!$B$8,Table25[#Headers],0)) -> 6421
A16: kilometers per dag | B16: =B4/B13 -> 269.2307692 | K16: AC43 | L16: =INDEX(LaadinfraPrivaat[[#All],[Power (kW)]],MATCH(Calculatie!K16,LaadinfraPrivaat[[#All],[Charging type]],0)) -> 43 | M16: =SUMIF('M3-TCO-laadplein'!$Q$9:$Q$14,Calculatie!$K16,'M3-TCO-laadplein'!R$9:R$14) -> 0 | N16: =IF( SUMIF('M3-TCO-laadplein'!$Q$9:$Q$14,Calculatie!$K16,'M3-TCO-laadplein'!S$9:S$14)<M16, M16, SUMIF('M3-TCO-laadplein'!$Q$9:$Q$14,Calculatie!$K16,'M3-TCO-laadplein'!S$9:S$14)) -> 0 | O16: =IF(SUMIF('M3-TCO-laadplein'!$Q$9:$Q$14,Calculatie!$K16,'M3-TCO-laadplein'!T$9:T$14)<N16, N16, SUMIF('M3-TCO-laadplein'!$Q$9:$Q$14,Calculatie!$K16,'M3-TCO-laadplein'!T$9:T$14)) -> 0 | P16: =IF(SUMIF('M3-TCO-laadplein'!$Q$9:$Q$14,Calculatie!$K16,'M3-TCO-laadplein'!U$9:U$14)<O16, O16, SUMIF('M3-TCO-laadplein'!$Q$9:$Q$14,Calculatie!$K16,'M3-TCO-laadplein'!U$9:U$14)) -> 0 | Q16: =IF(SUMIF('M3-TCO-laadplein'!$Q$9:$Q$14,Calculatie!$K16,'M3-TCO-laadplein'!V$9:V$14)<P16,P16,SUMIF('M3-TCO-laadplein'!$Q$9:$Q$14,Calculatie!$K16,'M3-TCO-laadplein'!V$9:V$14)) -> 0 | R16: =IF(SUMIF('M3-TCO-laadplein'!$Q$9:$Q$14,Calculatie!$K16,'M3-TCO-laadplein'!W$9:W$14)<Q16,Q16,SUMIF('M3-TCO-laadplein'!$Q$9:$Q$14,Calculatie!$K16,'M3-TCO-laadplein'!W$9:W$14)) -> 0 | S16: 0 | U16: =INDEX(Table25[#All],MATCH($K16,Table25[[#All],[Laadpaal]],0),MATCH('M2-Subsidie'!$B$8,Table25[#Headers],0)) -> 1200
K17: AC22 | L17: =INDEX(LaadinfraPrivaat[[#All],[Power (kW)]],MATCH(Calculatie!K17,LaadinfraPrivaat[[#All],[Charging type]],0)) -> 22 | M17: =SUMIF('M3-TCO-laadplein'!$Q$9:$Q$14,Calculatie!$K17,'M3-TCO-laadplein'!R$9:R$14) -> 0 | N17: =IF( SUMIF('M3-TCO-laadplein'!$Q$9:$Q$14,Calculatie!$K17,'M3-TCO-laadplein'!S$9:S$14)<M17, M17, SUMIF('M3-TCO-laadplein'!$Q$9:$Q$14,Calculatie!$K17,'M3-TCO-laadplein'!S$9:S$14)) -> 0 | O17: =IF(SUMIF('M3-TCO-laadplein'!$Q$9:$Q$14,Calculatie!$K17,'M3-TCO-laadplein'!T$9:T$14)<N17, N17, SUMIF('M3-TCO-laadplein'!$Q$9:$Q$14,Calculatie!$K17,'M3-TCO-laadplein'!T$9:T$14)) -> 0 | P17: =IF(SUMIF('M3-TCO-laadplein'!$Q$9:$Q$14,Calculatie!$K17,'M3-TCO-laadplein'!U$9:U$14)<O17, O17, SUMIF('M3-TCO-laadplein'!$Q$9:$Q$14,Calculatie!$K17,'M3-TCO-laadplein'!U$9:U$14)) -> 0 | Q17: =IF(SUMIF('M3-TCO-laadplein'!$Q$9:$Q$14,Calculatie!$K17,'M3-TCO-laadplein'!V$9:V$14)<P17,P17,SUMIF('M3-TCO-laadplein'!$Q$9:$Q$14,Calculatie!$K17,'M3-TCO-laadplein'!V$9:V$14)) -> 0 | R17: =IF(SUMIF('M3-TCO-laadplein'!$Q$9:$Q$14,Calculatie!$K17,'M3-TCO-laadplein'!W$9:W$14)<Q17,Q17,SUMIF('M3-TCO-laadplein'!$Q$9:$Q$14,Calculatie!$K17,'M3-TCO-laadplein'!W$9:W$14)) -> 0 | S17: 0 | U17: =INDEX(Table25[#All],MATCH($K17,Table25[[#All],[Laadpaal]],0),MATCH('M2-Subsidie'!$B$8,Table25[#Headers],0)) -> 452
A18: VOERTUIGKENMERKEN | K18: AC11 | L18: =INDEX(LaadinfraPrivaat[[#All],[Power (kW)]],MATCH(Calculatie!K18,LaadinfraPrivaat[[#All],[Charging type]],0)) -> 11 | M18: =SUMIF('M3-TCO-laadplein'!$Q$9:$Q$14,Calculatie!$K18,'M3-TCO-laadplein'!R$9:R$14) -> 0 | N18: =IF( SUMIF('M3-TCO-laadplein'!$Q$9:$Q$14,Calculatie!$K18,'M3-TCO-laadplein'!S$9:S$14)<M18, M18, SUMIF('M3-TCO-laadplein'!$Q$9:$Q$14,Calculatie!$K18,'M3-TCO-laadplein'!S$9:S$14)) -> 0 | O18: =IF(SUMIF('M3-TCO-laadplein'!$Q$9:$Q$14,Calculatie!$K18,'M3-TCO-laadplein'!T$9:T$14)<N18, N18, SUMIF('M3-TCO-laadplein'!$Q$9:$Q$14,Calculatie!$K18,'M3-TCO-laadplein'!T$9:T$14)) -> 0 | P18: =IF(SUMIF('M3-TCO-laadplein'!$Q$9:$Q$14,Calculatie!$K18,'M3-TCO-laadplein'!U$9:U$14)<O18, O18, SUMIF('M3-TCO-laadplein'!$Q$9:$Q$14,Calculatie!$K18,'M3-TCO-laadplein'!U$9:U$14)) -> 0 | Q18: =IF(SUMIF('M3-TCO-laadplein'!$Q$9:$Q$14,Calculatie!$K18,'M3-TCO-laadplein'!V$9:V$14)<P18,P18,SUMIF('M3-TCO-laadplein'!$Q$9:$Q$14,Calculatie!$K18,'M3-TCO-laadplein'!V$9:V$14)) -> 0 | R18: =IF(SUMIF('M3-TCO-laadplein'!$Q$9:$Q$14,Calculatie!$K18,'M3-TCO-laadplein'!W$9:W$14)<Q18,Q18,SUMIF('M3-TCO-laadplein'!$Q$9:$Q$14,Calculatie!$K18,'M3-TCO-laadplein'!W$9:W$14)) -> 0 | S18: 0 | U18: =INDEX(Table25[#All],MATCH($K18,Table25[[#All],[Laadpaal]],0),MATCH('M2-Subsidie'!$B$8,Table25[#Headers],0)) -> 452
A19: Capaciteit vrachtwagenbatterij (kWh) | C19: ='Input-Output Module'!$E$43 -> 240 | D19: ='Input-Output Module'!$F$43 -> 150 | K19: Totaal | M19: =SUM(M11:M18) -> 0 | N19: =SUM(N11:N18) -> 0 | O19: 0 | P19: 0 | Q19: 0 | R19: 0
A20: Waterstof opslag tank (kg) | D20: ='Input-Output Module'!$F$44 -> 15 | E20: ='Input-Output Module'!$G$44 -> 0 | K20: Totaal piekvermogen [kW/u] | M20: =SUMPRODUCT($L$11:$L$18,M11:M18) -> 0 | N20: =SUMPRODUCT($L$11:$L$18,N11:N18) -> 0 | O20: 0 | P20: 0 | Q20: 0 | R20: =SUMPRODUCT($L$11:$L$18,R11:R18) -> 0
A21: Fuell cell system (kW) | D21: ='Input-Output Module'!$F$45 -> 40 | K21: Totaal energie verbruik per jaar [kWh] | M21: =SUMPRODUCT(('M3-TCO-laadplein'!$Q$9:$Q$14<>"")*'M3-TCO-laadplein'!$O$9:$O$14*'M3-TCO-laadplein'!D$9:D$14) -> 0 | N21: =SUMPRODUCT(('M3-TCO-laadplein'!$Q$9:$Q$14<>"")*'M3-TCO-laadplein'!$O$9:$O$14*'M3-TCO-laadplein'!E$9:E$14) -> 0 | O21: =SUMPRODUCT(('M3-TCO-laadplein'!$Q$9:$Q$14<>"")*'M3-TCO-laadplein'!$O$9:$O$14*'M3-TCO-laadplein'!F$9:F$14) -> 0 | P21: =SUMPRODUCT(('M3-TCO-laadplein'!$Q$9:$Q$14<>"")*'M3-TCO-laadplein'!$O$9:$O$14*'M3-TCO-laadplein'!G$9:G$14) -> 0 | Q21: =SUMPRODUCT(('M3-TCO-laadplein'!$Q$9:$Q$14<>"")*'M3-TCO-laadplein'!$O$9:$O$14*'M3-TCO-laadplein'!H$9:H$14) -> 0 | R21: =SUMPRODUCT(('M3-TCO-laadplein'!$Q$9:$Q$14<>"")*'M3-TCO-laadplein'!$O$9:$O$14*'M3-TCO-laadplein'!I$9:I$14) -> 0 | U21: inkoopprijs | V21: =SUM(M33:R33) -> 0
U22: Graaf werk + civiele werken | V22: =SUMPRODUCT(LaadinfraPrivaat[Installation costs (€)]*(Calculatie!R11:R18-Calculatie!M11:M18))-V23-V24 -> 0 | X22: Installaties | Y22: =INDEX(Piekvermogen[[#All],[Installaties per kW piekvermogen]],MATCH(IF(R17>2000,"Meer dan 2MW","Tot 2MW"),Piekvermogen[[#All],[Piekvermogen]],0))*SUMPRODUCT(L11:L15*(R11:R15-M11:M15)) -> 0
A23: ENERGIE EN KOSTEN | B23: Dieselvoertuig [L] | C23: Elektrisch voertuig [kWh] | D23: Waterstof voertuig [kg] | E23: H2ICE [kg] | K23: Inkoop | U23: Projectmanagement/advies | V23: =SUMPRODUCT(LaadinfraPrivaat[Locatiebepaling, enginering, proj mgt ]*(Calculatie!R11:R18-Calculatie!M11:M18)) -> 0
A24: Energie voor transport / jaar (bruto) | B24: ='M1-PowerSupply'!B$16*Calculatie!$B$4 -> 14744.75765 | C24: ='M1-PowerSupply'!C$16*Calculatie!$B$4 -> 66634.35955 | D24: ='M1-PowerSupply'!D$16*Calculatie!$B$4 -> 4386.98539 | E24: ='M1-PowerSupply'!E$16*Calculatie!$B$4 -> 0 | K24: Laadpaal | L24: Kosten (inkoop + graafwerk) | M24: jaar 0 | N24: jaar 1-2 | O24: jaar 3-4 | P24: jaar 5-6 | Q24: jaar 7-8 | R24: jaar 9-10 | U24: aansluiten | V24: =SUMPRODUCT(LaadinfraPrivaat[Aansluitkosten netbeheerder (!)]*(Calculatie!R11:R18-Calculatie!M11:M18)) -> 0
A25: Energie voor koeling / jaar (bruto) | B25: ='M1-PowerSupply'!B$17*Calculatie!B$14*INDEX(InzetVoertuigPar[[#All],[Waarde]],MATCH("Aandeel koelunit",InzetVoertuigPar[[#All],[Variabele]],0)) -> 0 | C25: ='M1-PowerSupply'!C$17*Calculatie!C$14*INDEX(InzetVoertuigPar[[#All],[Waarde]],MATCH("Aandeel koelunit",InzetVoertuigPar[[#All],[Variabele]],0)) -> 0 | D25: ='M1-PowerSupply'!D$17*Calculatie!D$14*INDEX(InzetVoertuigPar[[#All],[Waarde]],MATCH("Aandeel koelunit",InzetVoertuigPar[[#All],[Variabele]],0)) -> 0 | E25: ='M1-PowerSupply'!E$17*Calculatie!E$14*INDEX(InzetVoertuigPar[[#All],[Waarde]],MATCH("Aandeel koelunit",InzetVoertuigPar[[#All],[Variabele]],0)) -> 0 | K25: DC1000 | L25: =INDEX(LaadinfraPrivaat[[#All],[Purchase (€)]],MATCH(Calculatie!K25,LaadinfraPrivaat[[#All],[Charging type]],0)) -> 325000 | M25: 0 | N25: =N11-M11 -> 0 | O25: =O11-N11 -> 0 | P25: =P11-O11 -> 0 | Q25: =Q11-P11 -> 0 | R25: =R11-Q11 -> 0 | U25: CAPEX | V25: =SUM(V21:V24) -> 0
A26: Efficiëtie omzetting | B26: =INDEX(InzetVoertuigPar[[#All],[Waarde]],MATCH("Efficiëntie van transmissie overdracht (DV)",InzetVoertuigPar[[#All],[Variabele]],0)) -> 1 | C26: =INDEX(InzetVoertuigPar[[#All],[Waarde]],MATCH("Efficiëntie van transmissie overdracht (EV)",InzetVoertuigPar[[#All],[Variabele]],0)) -> 1 | D26: =INDEX(InzetVoertuigPar[[#All],[Waarde]],MATCH("Efficiëntie van transmissie overdracht (FC)",InzetVoertuigPar[[#All],[Variabele]],0)) -> 1 | E26: =INDEX(InzetVoertuigPar[[#All],[Waarde]],MATCH("Efficiëntie van transmissie overdracht (H2ICE)",InzetVoertuigPar[[#All],[Variabele]],0)) -> 1 | K26: DC600 | L26: =INDEX(LaadinfraPrivaat[[#All],[Purchase (€)]],MATCH(Calculatie!K26,LaadinfraPrivaat[[#All],[Charging type]],0)) -> 135000 | M26: 0 | N26: =N12-M12 -> 0 | O26: 0 | P26: 0 | Q26: 0 | R26: 0
A27: Energie voor transport / jaar (netto) | B27: =B24/B$26 -> 14744.75765 | C27: =C24/C$26 -> 66634.35955 | D27: =D24/D$26 -> 4386.98539 | E27: =E24/E$26 -> 0 | K27: DC350 | L27: =INDEX(LaadinfraPrivaat[[#All],[Purchase (€)]],MATCH(Calculatie!K27,LaadinfraPrivaat[[#All],[Charging type]],0)) -> 80000 | M27: 0 | N27: =N13-M13 -> 0 | O27: 0 | P27: 0 | Q27: 0 | R27: 0
A28: Energie voor koeling / jaar (netto) | B28: =B25/B$26 -> 0 | C28: =C25/C$26 -> 0 | D28: =D25/D$26 -> 0 | E28: =E25/E$26 -> 0 | K28: DC150 | L28: =INDEX(LaadinfraPrivaat[[#All],[Purchase (€)]],MATCH(Calculatie!K28,LaadinfraPrivaat[[#All],[Charging type]],0)) -> 50000 | M28: 0 | N28: =N14-M14 -> 0 | O28: 0 | P28: 0 | Q28: 0 | R28: 0 | U28: Periodieke net | V28: =SUMPRODUCT(S11:S18*LaadinfraPrivaat[Periodieke kosten netaansluiting (!) ]) -> 0
A29: Aandeel depot laden (elektrisch) | C29: ='M1-PowerSupply'!B29/'M1-PowerSupply'!C18 -> 0.7491630495 | K29: DC50 | L29: =INDEX(LaadinfraPrivaat[[#All],[Purchase (€)]],MATCH(Calculatie!K29,LaadinfraPrivaat[[#All],[Charging type]],0)) -> 22000 | M29: 0 | N29: =N15-M15 -> 0 | O29: 0 | P29: 0 | Q29: 0 | R29: 0 | U29: Operatie, onderhoud, service | V29: =SUMPRODUCT($S$11:$S$18,LaadinfraPrivaat[Operational costs annual (€)])-V28 -> 0
A30: Aandeel extern laden (elektrisch) | C30: ='M1-PowerSupply'!B45/'M1-PowerSupply'!C18 -> 0.2508369505 | K30: AC43 | L30: =INDEX(LaadinfraPrivaat[[#All],[Purchase (€)]],MATCH(Calculatie!K30,LaadinfraPrivaat[[#All],[Charging type]],0)) -> 2000 | M30: 0 | N30: =N16-M16 -> 0 | O30: 0 | P30: 0 | Q30: 0 | R30: 0 | U30: Energiekosten | V30: =SUM(M57:R57)*2 -> 0
A31: Externe laadkosten (elektrisch) | C31: =INDEX(LaadinfraPubliek[[#All],[External energy costs (€)]],MATCH('M1-PowerSupply'!$C$42,LaadinfraPubliek[[#All],[Charging type]],0)) -> 0.45 | K31: AC22 | L31: =INDEX(LaadinfraPrivaat[[#All],[Purchase (€)]],MATCH(Calculatie!K31,LaadinfraPrivaat[[#All],[Charging type]],0)) -> 1400 | M31: 0 | N31: =N17-M17 -> 0 | O31: 0 | P31: 0 | Q31: 0 | R31: 0 | U31: OPEX | V31: =SUM(V28:V30) -> 0
K32: AC11 | L32: =INDEX(LaadinfraPrivaat[[#All],[Purchase (€)]],MATCH(Calculatie!K32,LaadinfraPrivaat[[#All],[Charging type]],0)) -> 1200 | M32: 0 | N32: =N18-M18 -> 0 | O32: 0 | P32: 0 | Q32: 0 | R32: 0 | U32: (per kWh) | V32: =IF(V28+V29=0,0, (V28+V29)/(SUM($M$21:$R$21)*2)) -> 0 | W32: *exclusief energiekosten
A33: Jaarlijkse verandering kosten (depot) | B33: n.v.t. | C33: =INDEX(JaarlijkseVeranderingen[[#All],[Waarde]],MATCH("Eigen energiekosten",JaarlijkseVeranderingen[[#All],[Variabele]],0)) -> 0.01 | D33: n.v.t. | E33: n.v.t. | K33: Totale kosten | M33: =MAX(SUMPRODUCT($L$25:$L$32,M25:M32),0) -> 0 | N33: =MAX(SUMPRODUCT($L$25:$L$32,N25:N32),0) -> 0 | O33: 0 | P33: =MAX(SUMPRODUCT($L$25:$L$32,P25:P32),0) -> 0 | Q33: 0 | R33: 0
A34: Jaarlijkse verandering kosten (extern) | B34: =INDEX(JaarlijkseVeranderingen[[#All],[Waarde]],MATCH("Dieselprijs",JaarlijkseVeranderingen[[#All],[Variabele]],0)) -> 0.01 | C34: =INDEX(JaarlijkseVeranderingen[[#All],[Waarde]],MATCH("Energiekosten extern opladen",JaarlijkseVeranderingen[[#All],[Variabele]],0)) -> 0.01 | D34: =INDEX(JaarlijkseVeranderingen[[#All],[Waarde]],MATCH("Waterstof",JaarlijkseVeranderingen[[#All],[Variabele]],0)) -> 0 | E34: =INDEX(JaarlijkseVeranderingen[[#All],[Waarde]],MATCH("Waterstof",JaarlijkseVeranderingen[[#All],[Variabele]],0)) -> 0
A35: Energiekosten transport / jaar | B35: =B$27*'Input-Output Module'!D$32 *IF(B34=0,1,(1-(1+B34)^B11)/(1-(1+B34))/B11) -> 24407.00073 | C35: =C$27*'Input-Output Module'!E$32*$C$29*IF(C33=0,1,(1-(1+C33)^C11)/(1-(1+C33))/C11) +C$27*C31*C30*IF(C34=0,1,(1-(1+C34)^C11)/(1-(1+C34))/C11) -> 18830.14244 | D35: =D$27*'Input-Output Module'!F$32 *IF(D34=0,1,(1-(1+D34)^D11)/(1-(1+D34))/D11) -> 83352.72242 | E35: =E$27*'Input-Output Module'!F$32 *IF(E34=0,1,(1-(1+E34)^E11)/(1-(1+E34))/E11) -> 0 | K35: Operationele kosten | U35: Netverzwaring | V35: =0.5*V25 -> 0
A36: Energiekosten koeling / jaar | B36: =B$28*'Input-Output Module'!D$32 *IF(B34=0,1,(1-(1+B34)^B11)/(1-(1+B34))/B11) -> 0 | C36: =C$28*'Input-Output Module'!E$32*$C$29*IF(C33=0,1,(1-(1+C33)^C11)/(1-(1+C33))/C11) +C$28*C31*C30*IF(C34=0,1,(1-(1+C34)^C11)/(1-(1+C34))/C11) -> 0 | D36: =D$28*'Input-Output Module'!F$32 *IF(D34=0,1,(1-(1+D34)^D11)/(1-(1+D34))/D11) -> 0 | E36: =E$28*'Input-Output Module'!F$32 *IF(E34=0,1,(1-(1+E34)^E11)/(1-(1+E34))/E11) -> 0 | K36: Laadpaal | L36: OPEX | M36: jaar 0 | N36: jaar 1-2 | O36: jaar 3-4 | P36: jaar 5-6 | Q36: jaar 7-8 | R36: jaar 9-10 | U36: Transformator | V36: 72000
A37: Totale energiekosten / jaar | B37: =B35+B36 -> 24407.00073 | C37: =C35+C36 -> 18830.14244 | D37: =D35+D36 -> 83352.72242 | E37: =E35+E36 -> 0 | K37: DC1000 | L37: =INDEX(LaadinfraPrivaat[[#All],[Operational costs annual (€)]],MATCH(Calculatie!$K37,LaadinfraPrivaat[[#All],[Charging type]],0)) -> 64871 | M37: =$L37*M11 -> 0 | N37: 0 | O37: 0 | P37: 0 | Q37: 0 | R37: 0
K38: DC600 | L38: =INDEX(LaadinfraPrivaat[[#All],[Operational costs annual (€)]],MATCH(Calculatie!$K38,LaadinfraPrivaat[[#All],[Charging type]],0)) -> 40475 | M38: =$L38*M12 -> 0 | N38: 0 | O38: 0 | P38: 0 | Q38: 0 | R38: 0
A39: EMISSIES | K39: DC350 | L39: =INDEX(LaadinfraPrivaat[[#All],[Operational costs annual (€)]],MATCH(Calculatie!$K39,LaadinfraPrivaat[[#All],[Charging type]],0)) -> 25165 | M39: =$L39*M13 -> 0 | N39: 0 | O39: 0 | P39: 0 | Q39: 0 | R39: 0
A40: WTW CO2-eq (tonnes) | B40: =(B28+B27)*SUMIFS(Fuel_Emission_factors27[[#All],[CO2-eq (kg per unit)]],Fuel_Emission_factors27[[#All],[Fuel category ID]],B$10,Fuel_Emission_factors27[[#All],[Type ID]],$C$3)/1000 -> 47.76068668 | C40: =(C28+C27)*SUMIFS(Fuel_Emission_factors27[[#All],[CO2-eq (kg per unit)]],Fuel_Emission_factors27[[#All],[Fuel category ID]],C$10,Fuel_Emission_factors27[[#All],[Type ID]],$B$5)/1000 -> 0 | D40: =(D28+D27)*SUMIFS(Fuel_Emission_factors27[[#All],[CO2-eq (kg per unit)]],Fuel_Emission_factors27[[#All],[Fuel category ID]],D$10,Fuel_Emission_factors27[[#All],[Type ID]],$B$6)/1000 -> 5.001163345 | E40: =(E28+E27)*SUMIFS(Fuel_Emission_factors27[[#All],[CO2-eq (kg per unit)]],Fuel_Emission_factors27[[#All],[Fuel category ID]],E$10,Fuel_Emission_factors27[[#All],[Type ID]],$B$6)/1000 -> 0 | K40: DC150 | L40: =INDEX(LaadinfraPrivaat[[#All],[Operational costs annual (€)]],MATCH(Calculatie!$K40,LaadinfraPrivaat[[#All],[Charging type]],0)) -> 14954 | M40: =$L40*M14 -> 0 | N40: 0 | O40: 0 | P40: 0 | Q40: 0 | R40: 0 | U40: Toegestane opties | V40: 1 | W40: 2 | X40: 3 | Y40: 4 | Z40: 5
A41: PMc (kg) | B41: =(B28+B27)*SUMIFS(Fuel_Emission_factors27[[#All],[PM10 combustion (g per unit)]],Fuel_Emission_factors27[[#All],[Fuel category ID]],B$10,Fuel_Emission_factors27[[#All],[Type ID]],$C$3)/1000 -> 0.6012761734 | C41: =(C28+C27)*SUMIFS(Fuel_Emission_factors27[[#All],[PM10 combustion (g per unit)]],Fuel_Emission_factors27[[#All],[Fuel category ID]],C$10,Fuel_Emission_factors27[[#All],[Type ID]],$B$5)/1000 -> 0 | D41: =(D28+D27)*SUMIFS(Fuel_Emission_factors27[[#All],[PM10 combustion (g per unit)]],Fuel_Emission_factors27[[#All],[Fuel category ID]],D$10,Fuel_Emission_factors27[[#All],[Type ID]],$B$6)/1000 -> 0 | E41: =(E28+E27)*SUMIFS(Fuel_Emission_factors27[[#All],[PM10 combustion (g per unit)]],Fuel_Emission_factors27[[#All],[Fuel category ID]],E$10,Fuel_Emission_factors27[[#All],[Type ID]],$B$6)/1000 -> 0 | K41: DC50 | L41: =INDEX(LaadinfraPrivaat[[#All],[Operational costs annual (€)]],MATCH(Calculatie!$K41,LaadinfraPrivaat[[#All],[Charging type]],0)) -> 5141 | M41: =$L41*M15 -> 0 | N41: 0 | O41: 0 | P41: 0 | Q41: 0 | R41: 0 | U41: Bestelwagens (tot 3,5 ton) | V41: =IFERROR(INDEX(LaadinfraPrivaat[[#All],[Charging type]],MATCH((IF('M3-TCO-laadplein'!L9<>"",'M3-TCO-laadplein'!L9,'M3-TCO-laadplein'!K9)*IF('M3-TCO-laadplein'!N9<>"",'M3-TCO-laadplein'!N9,'M3-TCO-laadplein'!M9))/'M3-TCO-laadplein'!P9,LaadinfraPrivaat[[#All],[Power (kW)]],-1)),"Niet mogelijk") -> AC11 | W41: =IF(OR(INDEX(LaadinfraPrivaat[Index],MATCH(V41,LaadinfraPrivaat[Charging type],0))+1>5,V41=""),"", INDEX(LaadinfraPrivaat[[#All],[Charging type]],MATCH(INDEX(LaadinfraPrivaat[Index],MATCH(V41,LaadinfraPrivaat[Charging type],0))+1,LaadinfraPrivaat[[#All],[Index]],0))) -> AC22 | X41: =IF(W41="","", IF(INDEX(LaadinfraPrivaat[Index],MATCH(W41,LaadinfraPrivaat[Charging type],0))+1>5,"", INDEX(LaadinfraPrivaat[[#All],[Charging type]],MATCH(INDEX(LaadinfraPrivaat[Index],MATCH(W41,LaadinfraPrivaat[Charging type],0))+1,LaadinfraPrivaat[[#All],[Index]],0)))) -> AC43 | Y41: =IF(X41="","", IF(INDEX(LaadinfraPrivaat[Index],MATCH(X41,LaadinfraPrivaat[Charging type],0))+1>5,"", INDEX(LaadinfraPrivaat[[#All],[Charging type]],MATCH(INDEX(LaadinfraPrivaat[Index],MATCH(X41,LaadinfraPrivaat[Charging type],0))+1,LaadinfraPrivaat[[#All],[Index]],0)))) -> DC50 | Z41: =IF(Y41="","", IF(INDEX(LaadinfraPrivaat[Index],MATCH(Y41,LaadinfraPrivaat[Charging type],0))+1>5,"", INDEX(LaadinfraPrivaat[[#All],[Charging type]],MATCH(INDEX(LaadinfraPrivaat[Index],MATCH(Y41,LaadinfraPrivaat[Charging type],0))+1,LaadinfraPrivaat[[#All],[Index]],0)))) -> DC150
A42: PM_tire (kg) | B42: =INDEX(OperationeleKostenPerType[[#All],[PM_wear from tires]],MATCH(Calculatie!$C$3,OperationeleKostenPerType[[#All],[Type ID]],0))*$B$4/1000 -> 5.684481648 | C42: =INDEX(OperationeleKostenPerType[[#All],[PM_wear from tires]],MATCH(Calculatie!$C$3,OperationeleKostenPerType[[#All],[Type ID]],0))*$B$4/1000 -> 5.684481648 | D42: =INDEX(OperationeleKostenPerType[[#All],[PM_wear from tires]],MATCH(Calculatie!$C$3,OperationeleKostenPerType[[#All],[Type ID]],0))*$B$4/1000 -> 5.684481648 | E42: =INDEX(OperationeleKostenPerType[[#All],[PM_wear from tires]],MATCH(Calculatie!$C$3,OperationeleKostenPerType[[#All],[Type ID]],0))*$B$4/1000 -> 5.684481648 | K42: AC43 | L42: =INDEX(LaadinfraPrivaat[[#All],[Operational costs annual (€)]],MATCH(Calculatie!$K42,LaadinfraPrivaat[[#All],[Charging type]],0)) -> 3442 | M42: =$L42*M16 -> 0 | N42: 0 | O42: 0 | P42: 0 | Q42: 0 | R42: 0 | T42: 1 | U42: Kleine bakwagen (lvm <12 ton) | V42: =IFERROR(INDEX(LaadinfraPrivaat[[#All],[Charging type]],MATCH((IF('M3-TCO-laadplein'!L10<>"",'M3-TCO-laadplein'!L10,'M3-TCO-laadplein'!K10)*IF('M3-TCO-laadplein'!N10<>"",'M3-TCO-laadplein'!N10,'M3-TCO-laadplein'!M10))/'M3-TCO-laadplein'!P10,LaadinfraPrivaat[[#All],[Power (kW)]],-1)),"Niet mogelijk") -> AC11 | W42: =IF(OR(INDEX(LaadinfraPrivaat[Index],MATCH(V42,LaadinfraPrivaat[Charging type],0))+1>5,V42=""),"", INDEX(LaadinfraPrivaat[[#All],[Charging type]],MATCH(INDEX(LaadinfraPrivaat[Index],MATCH(V42,LaadinfraPrivaat[Charging type],0))+1,LaadinfraPrivaat[[#All],[Index]],0))) -> AC22 | X42: =IF(W42="","", IF(INDEX(LaadinfraPrivaat[Index],MATCH(W42,LaadinfraPrivaat[Charging type],0))+1>5,"", INDEX(LaadinfraPrivaat[[#All],[Charging type]],MATCH(INDEX(LaadinfraPrivaat[Index],MATCH(W42,LaadinfraPrivaat[Charging type],0))+1,LaadinfraPrivaat[[#All],[Index]],0)))) -> AC43 | Y42: =IF(X42="","", IF(INDEX(LaadinfraPrivaat[Index],MATCH(X42,LaadinfraPrivaat[Charging type],0))+1>5,"", INDEX(LaadinfraPrivaat[[#All],[Charging type]],MATCH(INDEX(LaadinfraPrivaat[Index],MATCH(X42,LaadinfraPrivaat[Charging type],0))+1,LaadinfraPrivaat[[#All],[Index]],0)))) -> DC50 | Z42: =IF(Y42="","", IF(INDEX(LaadinfraPrivaat[Index],MATCH(Y42,LaadinfraPrivaat[Charging type],0))+1>5,"", INDEX(LaadinfraPrivaat[[#All],[Charging type]],MATCH(INDEX(LaadinfraPrivaat[Index],MATCH(Y42,LaadinfraPrivaat[Charging type],0))+1,LaadinfraPrivaat[[#All],[Index]],0)))) -> DC150
A43: NOx (kg) | B43: =(B28+B27)*SUMIFS(Fuel_Emission_factors27[[#All],[NOx (g per unit)]],Fuel_Emission_factors27[[#All],[Fuel category ID]],B$10,Fuel_Emission_factors27[[#All],[Type ID]],$C$3)/1000 -> 406.2396917 | C43: =(C28+C27)*SUMIFS(Fuel_Emission_factors27[[#All],[NOx (g per unit)]],Fuel_Emission_factors27[[#All],[Fuel category ID]],C$10,Fuel_Emission_factors27[[#All],[Type ID]],$B$5)/1000 -> 0 | D43: =(D28+D27)*SUMIFS(Fuel_Emission_factors27[[#All],[NOx (g per unit)]],Fuel_Emission_factors27[[#All],[Fuel category ID]],D$10,Fuel_Emission_factors27[[#All],[Type ID]],$B$6)/1000 -> 0 | E43: =B4*SUMIFS(Fuel_Emission_factors27[[#All],[NOx (g per unit)]],Fuel_Emission_factors27[[#All],[Fuel category ID]],E$10,Fuel_Emission_factors27[[#All],[Type ID]],$C$3)/1000 -> 0 | K43: AC22 | L43: =INDEX(LaadinfraPrivaat[[#All],[Operational costs annual (€)]],MATCH(Calculatie!$K43,LaadinfraPrivaat[[#All],[Charging type]],0)) -> 1940 | M43: =$L43*M17 -> 0 | N43: 0 | O43: 0 | P43: 0 | Q43: 0 | R43: 0 | T43: 2 | U43: Medium bakwagen (lvm 12-18 ton) | V43: =IFERROR(INDEX(LaadinfraPrivaat[[#All],[Charging type]],MATCH((IF('M3-TCO-laadplein'!L11<>"",'M3-TCO-laadplein'!L11,'M3-TCO-laadplein'!K11)*IF('M3-TCO-laadplein'!N11<>"",'M3-TCO-laadplein'!N11,'M3-TCO-laadplein'!M11))/'M3-TCO-laadplein'!P11,LaadinfraPrivaat[[#All],[Power (kW)]],-1)),"Niet mogelijk") -> AC43 | W43: =IF(OR(INDEX(LaadinfraPrivaat[Index],MATCH(V43,LaadinfraPrivaat[Charging type],0))+1>5,V43=""),"", INDEX(LaadinfraPrivaat[[#All],[Charging type]],MATCH(INDEX(LaadinfraPrivaat[Index],MATCH(V43,LaadinfraPrivaat[Charging type],0))+1,LaadinfraPrivaat[[#All],[Index]],0))) -> DC50 | X43: =IF(W43="","", IF(INDEX(LaadinfraPrivaat[Index],MATCH(W43,LaadinfraPrivaat[Charging type],0))+1>5,"", INDEX(LaadinfraPrivaat[[#All],[Charging type]],MATCH(INDEX(LaadinfraPrivaat[Index],MATCH(W43,LaadinfraPrivaat[Charging type],0))+1,LaadinfraPrivaat[[#All],[Index]],0)))) -> DC150 | Y43: =IF(X43="","", IF(INDEX(LaadinfraPrivaat[Index],MATCH(X43,LaadinfraPrivaat[Charging type],0))+1>5,"", INDEX(LaadinfraPrivaat[[#All],[Charging type]],MATCH(INDEX(LaadinfraPrivaat[Index],MATCH(X43,LaadinfraPrivaat[Charging type],0))+1,LaadinfraPrivaat[[#All],[Index]],0)))) ->  | Z43: =IF(Y43="","", IF(INDEX(LaadinfraPrivaat[Index],MATCH(Y43,LaadinfraPrivaat[Charging type],0))+1>5,"", INDEX(LaadinfraPrivaat[[#All],[Charging type]],MATCH(INDEX(LaadinfraPrivaat[Index],MATCH(Y43,LaadinfraPrivaat[Charging type],0))+1,LaadinfraPrivaat[[#All],[Index]],0)))) -> 
K44: AC11 | L44: =INDEX(LaadinfraPrivaat[[#All],[Operational costs annual (€)]],MATCH(Calculatie!$K44,LaadinfraPrivaat[[#All],[Charging type]],0)) -> 730 | M44: =$L44*M18 -> 0 | N44: 0 | O44: 0 | P44: 0 | Q44: 0 | R44: 0 | T44: 3 | U44: Grote bakwagen (lvm >18 ton) | V44: =IFERROR(INDEX(LaadinfraPrivaat[[#All],[Charging type]],MATCH((IF('M3-TCO-laadplein'!L12<>"",'M3-TCO-laadplein'!L12,'M3-TCO-laadplein'!K12)*IF('M3-TCO-laadplein'!N12<>"",'M3-TCO-laadplein'!N12,'M3-TCO-laadplein'!M12))/'M3-TCO-laadplein'!P12,LaadinfraPrivaat[[#All],[Power (kW)]],-1)),"Niet mogelijk") -> DC50 | W44: =IF(OR(INDEX(LaadinfraPrivaat[Index],MATCH(V44,LaadinfraPrivaat[Charging type],0))+1>5,V44=""),"", INDEX(LaadinfraPrivaat[[#All],[Charging type]],MATCH(INDEX(LaadinfraPrivaat[Index],MATCH(V44,LaadinfraPrivaat[Charging type],0))+1,LaadinfraPrivaat[[#All],[Index]],0))) -> DC150 | X44: =IF(W44="","", IF(INDEX(LaadinfraPrivaat[Index],MATCH(W44,LaadinfraPrivaat[Charging type],0))+1>5,"", INDEX(LaadinfraPrivaat[[#All],[Charging type]],MATCH(INDEX(LaadinfraPrivaat[Index],MATCH(W44,LaadinfraPrivaat[Charging type],0))+1,LaadinfraPrivaat[[#All],[Index]],0)))) ->  | Y44: =IF(X44="","", IF(INDEX(LaadinfraPrivaat[Index],MATCH(X44,LaadinfraPrivaat[Charging type],0))+1>5,"", INDEX(LaadinfraPrivaat[[#All],[Charging type]],MATCH(INDEX(LaadinfraPrivaat[Index],MATCH(X44,LaadinfraPrivaat[Charging type],0))+1,LaadinfraPrivaat[[#All],[Index]],0)))) ->  | Z44: =IF(Y44="","", IF(INDEX(LaadinfraPrivaat[Index],MATCH(Y44,LaadinfraPrivaat[Charging type],0))+1>5,"", INDEX(LaadinfraPrivaat[[#All],[Charging type]],MATCH(INDEX(LaadinfraPrivaat[Index],MATCH(Y44,LaadinfraPrivaat[Charging type],0))+1,LaadinfraPrivaat[[#All],[Index]],0)))) -> 
A45: Allowed NOx (kg) | B45: =INDEX(EnergieverbruikEnOnderhoudPerType[[#All],[Rijden EV '[kWh/km']]],MATCH(Calculatie!$C$3,EnergieverbruikEnOnderhoudPerType[[#All],[Type ID]],0)) *INDEX(AdBleu[[#All],[Waarde]],MATCH("Nox standaard (Euro VI)",AdBleu[[#All],[Variabele]],0)) *$B$4 / 1000 -> 30.65180539 | E45: =INDEX(EnergieverbruikEnOnderhoudPerType[[#All],[Rijden EV '[kWh/km']]],MATCH(Calculatie!$C$3,EnergieverbruikEnOnderhoudPerType[[#All],[Type ID]],0)) *INDEX(AdBleu[[#All],[Waarde]],MATCH("Nox standaard (Euro VI)",AdBleu[[#All],[Variabele]],0)) *$B$4 / 1000 -> 30.65180539 | K45: Totale kosten | M45: =SUM(M37:M44) -> 0 | N45: =SUM(N37:N44) -> 0 | O45: 0 | P45: 0 | Q45: 0 | R45: 0 | T45: 4 | U45: Lichte trekker z/opl (GVW <40 ton) | V45: =IFERROR(INDEX(LaadinfraPrivaat[[#All],[Charging type]],MATCH((IF('M3-TCO-laadplein'!L13<>"",'M3-TCO-laadplein'!L13,'M3-TCO-laadplein'!K13)*IF('M3-TCO-laadplein'!N13<>"",'M3-TCO-laadplein'!N13,'M3-TCO-laadplein'!M13))/'M3-TCO-laadplein'!P13,LaadinfraPrivaat[[#All],[Power (kW)]],-1)),"Niet mogelijk") -> DC150 | W45: =IF(OR(INDEX(LaadinfraPrivaat[Index],MATCH(V45,LaadinfraPrivaat[Charging type],0))+1>5,V45=""),"", INDEX(LaadinfraPrivaat[[#All],[Charging type]],MATCH(INDEX(LaadinfraPrivaat[Index],MATCH(V45,LaadinfraPrivaat[Charging type],0))+1,LaadinfraPrivaat[[#All],[Index]],0))) ->  | X45: =IF(W45="","", IF(INDEX(LaadinfraPrivaat[Index],MATCH(W45,LaadinfraPrivaat[Charging type],0))+1>5,"", INDEX(LaadinfraPrivaat[[#All],[Charging type]],MATCH(INDEX(LaadinfraPrivaat[Index],MATCH(W45,LaadinfraPrivaat[Charging type],0))+1,LaadinfraPrivaat[[#All],[Index]],0)))) ->  | Y45: =IF(X45="","", IF(INDEX(LaadinfraPrivaat[Index],MATCH(X45,LaadinfraPrivaat[Charging type],0))+1>5,"", INDEX(LaadinfraPrivaat[[#All],[Charging type]],MATCH(INDEX(LaadinfraPrivaat[Index],MATCH(X45,LaadinfraPrivaat[Charging type],0))+1,LaadinfraPrivaat[[#All],[Index]],0)))) ->  | Z45: =IF(Y45="","", IF(INDEX(LaadinfraPrivaat[Index],MATCH(Y45,LaadinfraPrivaat[Charging type],0))+1>5,"", INDEX(LaadinfraPrivaat[[#All],[Charging type]],MATCH(INDEX(LaadinfraPrivaat[Index],MATCH(Y45,LaadinfraPrivaat[Charging type],0))+1,LaadinfraPrivaat[[#All],[Index]],0)))) -> 
A46: Reduction of NOx by Adblue (kg) | B46: =MAX(0,B43-B45) -> 375.5878863 | E46: =MAX(0,E43-E45) -> 0 | T46: 5 | U46: Zware trekker z/opl (GVW >40 ton) | V46: =IFERROR(INDEX(LaadinfraPrivaat[[#All],[Charging type]],MATCH((IF('M3-TCO-laadplein'!L14<>"",'M3-TCO-laadplein'!L14,'M3-TCO-laadplein'!K14)*IF('M3-TCO-laadplein'!N14<>"",'M3-TCO-laadplein'!N14,'M3-TCO-laadplein'!M14))/'M3-TCO-laadplein'!P14,LaadinfraPrivaat[[#All],[Power (kW)]],-1)),"Niet mogelijk") -> DC150 | W46: =IF(OR(INDEX(LaadinfraPrivaat[Index],MATCH(V46,LaadinfraPrivaat[Charging type],0))+1>5,V46=""),"", INDEX(LaadinfraPrivaat[[#All],[Charging type]],MATCH(INDEX(LaadinfraPrivaat[Index],MATCH(V46,LaadinfraPrivaat[Charging type],0))+1,LaadinfraPrivaat[[#All],[Index]],0))) ->  | X46: =IF(W46="","", IF(INDEX(LaadinfraPrivaat[Index],MATCH(W46,LaadinfraPrivaat[Charging type],0))+1>5,"", INDEX(LaadinfraPrivaat[[#All],[Charging type]],MATCH(INDEX(LaadinfraPrivaat[Index],MATCH(W46,LaadinfraPrivaat[Charging type],0))+1,LaadinfraPrivaat[[#All],[Index]],0)))) ->  | Y46: =IF(X46="","", IF(INDEX(LaadinfraPrivaat[Index],MATCH(X46,LaadinfraPrivaat[Charging type],0))+1>5,"", INDEX(LaadinfraPrivaat[[#All],[Charging type]],MATCH(INDEX(LaadinfraPrivaat[Index],MATCH(X46,LaadinfraPrivaat[Charging type],0))+1,LaadinfraPrivaat[[#All],[Index]],0)))) ->  | Z46: =IF(Y46="","", IF(INDEX(LaadinfraPrivaat[Index],MATCH(Y46,LaadinfraPrivaat[Charging type],0))+1>5,"", INDEX(LaadinfraPrivaat[[#All],[Charging type]],MATCH(INDEX(LaadinfraPrivaat[Index],MATCH(Y46,LaadinfraPrivaat[Charging type],0))+1,LaadinfraPrivaat[[#All],[Index]],0)))) -> 
A47: Adblue cost | B47: =B46 * 1000 *INDEX(AdBleu[[#All],[Waarde]],MATCH("Adblue gebruik",AdBleu[[#All],[Variabele]],0)) *INDEX(AdBleu[[#All],[Waarde]],MATCH("Kosten Adblue",AdBleu[[#All],[Variabele]],0)) -> 236.4320442 | E47: =E46 * 1000 *INDEX(AdBleu[[#All],[Waarde]],MATCH("Adblue gebruik",AdBleu[[#All],[Variabele]],0)) *INDEX(AdBleu[[#All],[Waarde]],MATCH("Kosten Adblue",AdBleu[[#All],[Variabele]],0)) -> 0 | K47: Energiekosten
K48: Laadpaal | L48: Kosten per kWh | M48: jaar 0 | N48: jaar 1-2 | O48: jaar 3-4 | P48: jaar 5-6 | Q48: jaar 7-8 | R48: jaar 9-10
A49: HERNIEUWBARE ENERGIE-EENHEDEN | K49: DC1000 | L49: ='Input-Output Module'!$E$32 -> 0.21537 | M49: =SUMPRODUCT(('M3-TCO-laadplein'!$Q$9:$Q$14=Calculatie!$K49)*'M3-TCO-laadplein'!$O$9:$O$14*'M3-TCO-laadplein'!D$9:D$14)*Calculatie!$L49 -> 0 | N49: =SUMPRODUCT(('M3-TCO-laadplein'!$Q$9:$Q$14=Calculatie!$K49)*'M3-TCO-laadplein'!$O$9:$O$14*'M3-TCO-laadplein'!E$9:E$14)*Calculatie!$L49 -> 0 | O49: =SUMPRODUCT(('M3-TCO-laadplein'!$Q$9:$Q$14=Calculatie!$K49)*'M3-TCO-laadplein'!$O$9:$O$14*'M3-TCO-laadplein'!F$9:F$14)*Calculatie!$L49 -> 0 | P49: =SUMPRODUCT(('M3-TCO-laadplein'!$Q$9:$Q$14=Calculatie!$K49)*'M3-TCO-laadplein'!$O$9:$O$14*'M3-TCO-laadplein'!G$9:G$14)*Calculatie!$L49 -> 0 | Q49: =SUMPRODUCT(('M3-TCO-laadplein'!$Q$9:$Q$14=Calculatie!$K49)*'M3-TCO-laadplein'!$O$9:$O$14*'M3-TCO-laadplein'!H$9:H$14)*Calculatie!$L49 -> 0 | R49: =SUMPRODUCT(('M3-TCO-laadplein'!$Q$9:$Q$14=Calculatie!$K49)*'M3-TCO-laadplein'!$O$9:$O$14*'M3-TCO-laadplein'!I$9:I$14)*Calculatie!$L49 -> 0
A50: Gebruikte energie | C50: =C27+C28 -> 66634.35955 | D50: =D27+D28 -> 4386.98539 | E50: =E27+E28 -> 0 | K50: DC600 | L50: ='Input-Output Module'!$E$32 -> 0.21537 | M50: =SUMPRODUCT(('M3-TCO-laadplein'!$Q$9:$Q$14=Calculatie!$K50)*'M3-TCO-laadplein'!$O$9:$O$14*'M3-TCO-laadplein'!D$9:D$14)*Calculatie!$L50 -> 0 | N50: =SUMPRODUCT(('M3-TCO-laadplein'!$Q$9:$Q$14=Calculatie!$K50)*'M3-TCO-laadplein'!$O$9:$O$14*'M3-TCO-laadplein'!E$9:E$14)*Calculatie!$L50 -> 0 | O50: =SUMPRODUCT(('M3-TCO-laadplein'!$Q$9:$Q$14=Calculatie!$K50)*'M3-TCO-laadplein'!$O$9:$O$14*'M3-TCO-laadplein'!F$9:F$14)*Calculatie!$L50 -> 0 | P50: =SUMPRODUCT(('M3-TCO-laadplein'!$Q$9:$Q$14=Calculatie!$K50)*'M3-TCO-laadplein'!$O$9:$O$14*'M3-TCO-laadplein'!G$9:G$14)*Calculatie!$L50 -> 0 | Q50: =SUMPRODUCT(('M3-TCO-laadplein'!$Q$9:$Q$14=Calculatie!$K50)*'M3-TCO-laadplein'!$O$9:$O$14*'M3-TCO-laadplein'!H$9:H$14)*Calculatie!$L50 -> 0 | R50: =SUMPRODUCT(('M3-TCO-laadplein'!$Q$9:$Q$14=Calculatie!$K50)*'M3-TCO-laadplein'!$O$9:$O$14*'M3-TCO-laadplein'!I$9:I$14)*Calculatie!$L50 -> 0
A51: Omrekenen naar GJ | C51: =C50*0.0036 -> 239.8836944 | D51: =D50*INDEX(HBEs[[#All],[Waarde]],MATCH("Energiewaarde (MJ) per kg H2",HBEs[[#All],[Variabele]],0))/1000 -> 526.8769454 | E51: =E50*INDEX(HBEs[[#All],[Waarde]],MATCH("Energiewaarde (MJ) per kg H2",HBEs[[#All],[Variabele]],0))/1000 -> 0 | F51: Want 1 HBE = 1GJ | K51: DC350 | L51: ='Input-Output Module'!$E$32 -> 0.21537 | M51: =SUMPRODUCT(('M3-TCO-laadplein'!$Q$9:$Q$14=Calculatie!$K51)*'M3-TCO-laadplein'!$O$9:$O$14*'M3-TCO-laadplein'!D$9:D$14)*Calculatie!$L51 -> 0 | N51: =SUMPRODUCT(('M3-TCO-laadplein'!$Q$9:$Q$14=Calculatie!$K51)*'M3-TCO-laadplein'!$O$9:$O$14*'M3-TCO-laadplein'!E$9:E$14)*Calculatie!$L51 -> 0 | O51: =SUMPRODUCT(('M3-TCO-laadplein'!$Q$9:$Q$14=Calculatie!$K51)*'M3-TCO-laadplein'!$O$9:$O$14*'M3-TCO-laadplein'!F$9:F$14)*Calculatie!$L51 -> 0 | P51: =SUMPRODUCT(('M3-TCO-laadplein'!$Q$9:$Q$14=Calculatie!$K51)*'M3-TCO-laadplein'!$O$9:$O$14*'M3-TCO-laadplein'!G$9:G$14)*Calculatie!$L51 -> 0 | Q51: =SUMPRODUCT(('M3-TCO-laadplein'!$Q$9:$Q$14=Calculatie!$K51)*'M3-TCO-laadplein'!$O$9:$O$14*'M3-TCO-laadplein'!H$9:H$14)*Calculatie!$L51 -> 0 | R51: =SUMPRODUCT(('M3-TCO-laadplein'!$Q$9:$Q$14=Calculatie!$K51)*'M3-TCO-laadplein'!$O$9:$O$14*'M3-TCO-laadplein'!I$9:I$14)*Calculatie!$L51 -> 0
A52: Forfait | C52: =IF(Elec_type=Config!$A$16,1,INDEX(HBEs[[#All],[Waarde]],MATCH("Aandeel groene energie 'grijze' stroom",HBEs[[#All],[Variabele]],0))) -> 1 | D52: =IF(H2_type=Config!$A$19,1,0) -> 1 | E52: =IF(H2_type=Config!$A$19,1,0) -> 1 | F52: Als voor EV geen 100% groene stroom wordt gebruikt, dan mag niet alles worden meegenomen | K52: DC150 | L52: ='Input-Output Module'!$E$32 -> 0.21537 | M52: =SUMPRODUCT(('M3-TCO-laadplein'!$Q$9:$Q$14=Calculatie!$K52)*'M3-TCO-laadplein'!$O$9:$O$14*'M3-TCO-laadplein'!D$9:D$14)*Calculatie!$L52 -> 0 | N52: =SUMPRODUCT(('M3-TCO-laadplein'!$Q$9:$Q$14=Calculatie!$K52)*'M3-TCO-laadplein'!$O$9:$O$14*'M3-TCO-laadplein'!E$9:E$14)*Calculatie!$L52 -> 0 | O52: =SUMPRODUCT(('M3-TCO-laadplein'!$Q$9:$Q$14=Calculatie!$K52)*'M3-TCO-laadplein'!$O$9:$O$14*'M3-TCO-laadplein'!F$9:F$14)*Calculatie!$L52 -> 0 | P52: =SUMPRODUCT(('M3-TCO-laadplein'!$Q$9:$Q$14=Calculatie!$K52)*'M3-TCO-laadplein'!$O$9:$O$14*'M3-TCO-laadplein'!G$9:G$14)*Calculatie!$L52 -> 0 | Q52: =SUMPRODUCT(('M3-TCO-laadplein'!$Q$9:$Q$14=Calculatie!$K52)*'M3-TCO-laadplein'!$O$9:$O$14*'M3-TCO-laadplein'!H$9:H$14)*Calculatie!$L52 -> 0 | R52: =SUMPRODUCT(('M3-TCO-laadplein'!$Q$9:$Q$14=Calculatie!$K52)*'M3-TCO-laadplein'!$O$9:$O$14*'M3-TCO-laadplein'!I$9:I$14)*Calculatie!$L52 -> 0
A53: Hoeveelheid hernieuwbare energie | C53: =C52*C51 -> 239.8836944 | D53: =D52*D51 -> 526.8769454 | E53: =E52*E51 -> 0 | K53: DC50 | L53: ='Input-Output Module'!$E$32 -> 0.21537 | M53: =SUMPRODUCT(('M3-TCO-laadplein'!$Q$9:$Q$14=Calculatie!$K53)*'M3-TCO-laadplein'!$O$9:$O$14*'M3-TCO-laadplein'!D$9:D$14)*Calculatie!$L53 -> 0 | N53: =SUMPRODUCT(('M3-TCO-laadplein'!$Q$9:$Q$14=Calculatie!$K53)*'M3-TCO-laadplein'!$O$9:$O$14*'M3-TCO-laadplein'!E$9:E$14)*Calculatie!$L53 -> 0 | O53: =SUMPRODUCT(('M3-TCO-laadplein'!$Q$9:$Q$14=Calculatie!$K53)*'M3-TCO-laadplein'!$O$9:$O$14*'M3-TCO-laadplein'!F$9:F$14)*Calculatie!$L53 -> 0 | P53: =SUMPRODUCT(('M3-TCO-laadplein'!$Q$9:$Q$14=Calculatie!$K53)*'M3-TCO-laadplein'!$O$9:$O$14*'M3-TCO-laadplein'!G$9:G$14)*Calculatie!$L53 -> 0 | Q53: =SUMPRODUCT(('M3-TCO-laadplein'!$Q$9:$Q$14=Calculatie!$K53)*'M3-TCO-laadplein'!$O$9:$O$14*'M3-TCO-laadplein'!H$9:H$14)*Calculatie!$L53 -> 0 | R53: =SUMPRODUCT(('M3-TCO-laadplein'!$Q$9:$Q$14=Calculatie!$K53)*'M3-TCO-laadplein'!$O$9:$O$14*'M3-TCO-laadplein'!I$9:I$14)*Calculatie!$L53 -> 0
A54: Multiplier | C54: =INDEX(HBEs[[#All],[Waarde]],MATCH(_xlfn.CONCAT("Multiplier ",Calculatie!$C$10),HBEs[[#All],[Variabele]],0)) -> 4 | D54: =INDEX(HBEs[[#All],[Waarde]],MATCH(_xlfn.CONCAT("Multiplier ",Calculatie!$D$10),HBEs[[#All],[Variabele]],0)) -> 2.5 | E54: =INDEX(HBEs[[#All],[Waarde]],MATCH(_xlfn.CONCAT("Multiplier ",Calculatie!$D$10),HBEs[[#All],[Variabele]],0)) -> 2.5 | K54: AC43 | L54: ='Input-Output Module'!$E$32 -> 0.21537 | M54: =SUMPRODUCT(('M3-TCO-laadplein'!$Q$9:$Q$14=Calculatie!$K54)*'M3-TCO-laadplein'!$O$9:$O$14*'M3-TCO-laadplein'!D$9:D$14)*Calculatie!$L54 -> 0 | N54: =SUMPRODUCT(('M3-TCO-laadplein'!$Q$9:$Q$14=Calculatie!$K54)*'M3-TCO-laadplein'!$O$9:$O$14*'M3-TCO-laadplein'!E$9:E$14)*Calculatie!$L54 -> 0 | O54: =SUMPRODUCT(('M3-TCO-laadplein'!$Q$9:$Q$14=Calculatie!$K54)*'M3-TCO-laadplein'!$O$9:$O$14*'M3-TCO-laadplein'!F$9:F$14)*Calculatie!$L54 -> 0 | P54: =SUMPRODUCT(('M3-TCO-laadplein'!$Q$9:$Q$14=Calculatie!$K54)*'M3-TCO-laadplein'!$O$9:$O$14*'M3-TCO-laadplein'!G$9:G$14)*Calculatie!$L54 -> 0 | Q54: =SUMPRODUCT(('M3-TCO-laadplein'!$Q$9:$Q$14=Calculatie!$K54)*'M3-TCO-laadplein'!$O$9:$O$14*'M3-TCO-laadplein'!H$9:H$14)*Calculatie!$L54 -> 0 | R54: =SUMPRODUCT(('M3-TCO-laadplein'!$Q$9:$Q$14=Calculatie!$K54)*'M3-TCO-laadplein'!$O$9:$O$14*'M3-TCO-laadplein'!I$9:I$14)*Calculatie!$L54 -> 0
A55: HBE's (onafgerond) | C55: =C54*C53 -> 959.5347775 | D55: =D54*D53 -> 1317.192363 | E55: =E54*E53 -> 0 | K55: AC22 | L55: ='Input-Output Module'!$E$32 -> 0.21537 | M55: =SUMPRODUCT(('M3-TCO-laadplein'!$Q$9:$Q$14=Calculatie!$K55)*'M3-TCO-laadplein'!$O$9:$O$14*'M3-TCO-laadplein'!D$9:D$14)*Calculatie!$L55 -> 0 | N55: =SUMPRODUCT(('M3-TCO-laadplein'!$Q$9:$Q$14=Calculatie!$K55)*'M3-TCO-laadplein'!$O$9:$O$14*'M3-TCO-laadplein'!E$9:E$14)*Calculatie!$L55 -> 0 | O55: =SUMPRODUCT(('M3-TCO-laadplein'!$Q$9:$Q$14=Calculatie!$K55)*'M3-TCO-laadplein'!$O$9:$O$14*'M3-TCO-laadplein'!F$9:F$14)*Calculatie!$L55 -> 0 | P55: =SUMPRODUCT(('M3-TCO-laadplein'!$Q$9:$Q$14=Calculatie!$K55)*'M3-TCO-laadplein'!$O$9:$O$14*'M3-TCO-laadplein'!G$9:G$14)*Calculatie!$L55 -> 0 | Q55: =SUMPRODUCT(('M3-TCO-laadplein'!$Q$9:$Q$14=Calculatie!$K55)*'M3-TCO-laadplein'!$O$9:$O$14*'M3-TCO-laadplein'!H$9:H$14)*Calculatie!$L55 -> 0 | R55: =SUMPRODUCT(('M3-TCO-laadplein'!$Q$9:$Q$14=Calculatie!$K55)*'M3-TCO-laadplein'!$O$9:$O$14*'M3-TCO-laadplein'!I$9:I$14)*Calculatie!$L55 -> 0
A56: HBE's | C56: =ROUNDDOWN(C55,0) -> 959 | D56: =ROUNDDOWN(D55,0) -> 1317 | E56: =ROUNDDOWN(E55,0) -> 0 | F56: HBE's moeten altijd naar beneden worden afgerond | K56: AC11 | L56: ='Input-Output Module'!$E$32 -> 0.21537 | M56: =SUMPRODUCT(('M3-TCO-laadplein'!$Q$9:$Q$14=Calculatie!$K56)*'M3-TCO-laadplein'!$O$9:$O$14*'M3-TCO-laadplein'!D$9:D$14)*Calculatie!$L56 -> 0 | N56: =SUMPRODUCT(('M3-TCO-laadplein'!$Q$9:$Q$14=Calculatie!$K56)*'M3-TCO-laadplein'!$O$9:$O$14*'M3-TCO-laadplein'!E$9:E$14)*Calculatie!$L56 -> 0 | O56: =SUMPRODUCT(('M3-TCO-laadplein'!$Q$9:$Q$14=Calculatie!$K56)*'M3-TCO-laadplein'!$O$9:$O$14*'M3-TCO-laadplein'!F$9:F$14)*Calculatie!$L56 -> 0 | P56: =SUMPRODUCT(('M3-TCO-laadplein'!$Q$9:$Q$14=Calculatie!$K56)*'M3-TCO-laadplein'!$O$9:$O$14*'M3-TCO-laadplein'!G$9:G$14)*Calculatie!$L56 -> 0 | Q56: =SUMPRODUCT(('M3-TCO-laadplein'!$Q$9:$Q$14=Calculatie!$K56)*'M3-TCO-laadplein'!$O$9:$O$14*'M3-TCO-laadplein'!H$9:H$14)*Calculatie!$L56 -> 0 | R56: =SUMPRODUCT(('M3-TCO-laadplein'!$Q$9:$Q$14=Calculatie!$K56)*'M3-TCO-laadplein'!$O$9:$O$14*'M3-TCO-laadplein'!I$9:I$14)*Calculatie!$L56 -> 0
K57: Totale kosten | M57: =SUM(M49:M56) -> 0 | N57: =SUM(N49:N56) -> 0 | O57: 0 | P57: 0 | Q57: 0 | R57: 0

Sheet M1-PowerSupply
A1: BASIS INVOERGEGEVENS
A2: Voertuig / ID | B2: =Voertuigtype -> Medium bakwagen (lvm ca. 9 ton) | C2: =INDEX(Voertuigen[#All],MATCH(Calculatie!B2,Voertuigen[[#All],[Voertuig]],0),2) -> 3 | F2: test | G2: Dit is een overgenomen veld
A3: Voertuigtype / ID | B3: =INDEX(Voertuigen[#All],MATCH(Calculatie!B2,Voertuigen[[#All],[Voertuig]],0),3) -> Medium bakwagen | C3: =INDEX(Voertuigen[#All],MATCH(Calculatie!B2,Voertuigen[[#All],[Voertuig]],0),4) -> 2 | F3: test | G3: Dit is een berekening
A4: Verwacht jaarkilometrage | B4: =Kilometrage -> 70000
A5: Grijze/groene elektriciciteit | B5: =Elec_type -> Groen
A6: Grijze/groene waterstof | B6: =H2_type -> Electrolyse (hernieuwbare energie)
A7: Rechtsvorm en belastingpercentage | B7: =Belasting -> BV of NV met 19% belasting
A8: Grootte van bedrijf | B8: =Bedrijfsgrootte -> Groot
A9: Gekoeld? | B9: =Koeling -> Nee
A10: Km/dag | B10: =Calculatie!B16 -> 269.2307692
A11: Productieve uren per dag | B11: =Calculatie!B15 -> 10
B14: Dieselvoertuig | C14: Elektrisch voertuig | D14: Waterstof voertuig | I14: Batterij opties per variant [EV] | J14: [kWh] | L14: FCEV variants | M14: Batterij [kWh] | N14: FC-tank [L] | O14: FC [kW]
B15: DV | C15: EV | D15: FC | E15: H2ICE | I15: 5 | J15: =INDEX(FCEV_Variants[#All],MATCH('M1-PowerSupply'!$C$3,FCEV_Variants[[#All],[Type ID]],0),$I15+2) -> 240 | L15: 1 | M15: =INDEX(FCEV_Variants[#All],MATCH('M1-PowerSupply'!$C$3,FCEV_Variants[[#All],[Type ID]],0),8) -> 150 | N15: =INDEX(FCEV_Variants[#All],MATCH('M1-PowerSupply'!$C$3,FCEV_Variants[[#All],[Type ID]],0),10) -> 15 | O15: =INDEX(FCEV_Variants[#All],MATCH('M1-PowerSupply'!$C$3,FCEV_Variants[[#All],[Type ID]],0),9) -> 40
A16: Energieverbruik/km | B16: =INDEX(EnergieverbruikEnOnderhoudPerType[[#All],[Rijden DV '[L/km']]],MATCH('M1-PowerSupply'!$C$3,EnergieverbruikEnOnderhoudPerType[[#All],[Type ID]],0)) -> 0.210639395 | C16: =INDEX(EnergieverbruikEnOnderhoudPerType[[#All],[Rijden EV '[kWh/km']]],MATCH('M1-PowerSupply'!$C$3,EnergieverbruikEnOnderhoudPerType[[#All],[Type ID]],0)) -> 0.9519194222 | D16: =INDEX(EnergieverbruikEnOnderhoudPerType[[#All],[Rijden FC '[kg H2/km']]],MATCH('M1-PowerSupply'!$C$3,EnergieverbruikEnOnderhoudPerType[[#All],[Type ID]],0)) -> 0.06267121986 | E16: =INDEX(EnergieverbruikEnOnderhoudPerType[[#All],[Rijden H2ICE '[kg H2 /km']]],MATCH('M1-PowerSupply'!$C$3,EnergieverbruikEnOnderhoudPerType[[#All],[Type ID]],0)) -> 0 | I16: 4 | J16: =INDEX(FCEV_Variants[#All],MATCH('M1-PowerSupply'!$C$3,FCEV_Variants[[#All],[Type ID]],0),$I16+2) -> 180 | L16: 1.25 | M16: =M$15*L16 -> 187.5 | N16: =N$15*L16 -> 18.75 | O16: =MROUND(O$15*L16,5) -> 50
A17: Energieverbruik koeleenheid/uur | B17: =IF(Koeling=Config!$A$11,INDEX(EnergieverbruikEnOnderhoudPerType[[#All],[Koelen DV '[L/uur']]],MATCH('M1-PowerSupply'!$C$3,EnergieverbruikEnOnderhoudPerType[[#All],[Type ID]],0)),0) -> 0 | C17: =IF(Koeling=Config!$A$11,INDEX(EnergieverbruikEnOnderhoudPerType[[#All],[Koelen EV '[kWh/uur']]],MATCH('M1-PowerSupply'!$C$3,EnergieverbruikEnOnderhoudPerType[[#All],[Type ID]],0)),0) -> 0 | D17: =IF(Koeling=Config!$A$11,INDEX(EnergieverbruikEnOnderhoudPerType[[#All],[Koelen FC '[kg H2/uur']]],MATCH('M1-PowerSupply'!$C$3,EnergieverbruikEnOnderhoudPerType[[#All],[Type ID]],0)),0) -> 0 | E17: =IF(Koeling=Config!$A$11,INDEX(EnergieverbruikEnOnderhoudPerType[[#All],[Koelen H2ICE '[kg H2/uur']]],MATCH('M1-PowerSupply'!$C$3,EnergieverbruikEnOnderhoudPerType[[#All],[Type ID]],0)),0) -> 0 | I17: 3 | J17: =INDEX(FCEV_Variants[#All],MATCH('M1-PowerSupply'!$C$3,FCEV_Variants[[#All],[Type ID]],0),$I17+2) -> 160 | L17: 1.5 | M17: =M$15*L17 -> 225 | N17: =N$15*L17 -> 22.5 | O17: =MROUND(O$15*L17,5) -> 60
A18: Energieverbruik voertuig / dag | B18: =B$16*$B$10+($B$11*INDEX(InzetVoertuigPar[[#All],[Waarde]],MATCH("Aandeel koelunit",InzetVoertuigPar[[#All],[Variabele]],0))*'M1-PowerSupply'!B$17) -> 56.71060634 | C18: =C$16*$B$10+($B$11*INDEX(InzetVoertuigPar[[#All],[Waarde]],MATCH("Aandeel koelunit",InzetVoertuigPar[[#All],[Variabele]],0))*'M1-PowerSupply'!C$17) -> 256.2859983 | D18: =D$16*$B$10+($B$11*INDEX(InzetVoertuigPar[[#All],[Waarde]],MATCH("Aandeel koelunit",InzetVoertuigPar[[#All],[Variabele]],0))*'M1-PowerSupply'!D$17) -> 16.87302073 | E18: =E$16*$B$10+($B$11*INDEX(InzetVoertuigPar[[#All],[Waarde]],MATCH("Aandeel koelunit",InzetVoertuigPar[[#All],[Variabele]],0))*'M1-PowerSupply'!E$17) -> 0 | I18: 2 | J18: =INDEX(FCEV_Variants[#All],MATCH('M1-PowerSupply'!$C$3,FCEV_Variants[[#All],[Type ID]],0),$I18+2) -> 120
A19: [unit] | B19: [liters] | C19: [kWh] | D19: [kg H2] | E19: [kg H2] | I19: 1 | J19: =INDEX(FCEV_Variants[#All],MATCH('M1-PowerSupply'!$C$3,FCEV_Variants[[#All],[Type ID]],0),$I19+2) -> 0
A21: Gewenste restcapaciteit batterij | C21: =INDEX(InzetVoertuigPar[[#All],[Waarde]],MATCH("Gewenste restcapaciteit batterij",InzetVoertuigPar[[#All],[Variabele]],0)) -> 0.2
A22: Aanbevolen batterijcapaciteit [kWh] | C22: =IF(C18/(1-C21)>$J$15,$J$15,INDEX($J$15:$J$19,MATCH(C18/(1-C21),$J$15:$J$18,-1))) -> 240
A25: Berekening benodigde eigen laadinfra voor EV voertuig
A26: Tijd om 's nachts op te laden [uur] | B26: =IF(24-B11>=8,8,MAX(0,24-B11)) -> 8
A27: Grenswaarde opladen batterij | B27: =1-INDEX(InzetVoertuigPar[[#All],[Waarde]],MATCH("Gewenste restcapaciteit batterij",InzetVoertuigPar[[#All],[Variabele]],0)) -> 0.8 | C27: voor een lange levensduur van een batterij te hebben is het noodzaak deze nooit 100% op te laden (of te ontladen)
A28: Gebruikte batterij | B28: ='Input-Output Module'!$E$43 -> 240 | C28: Als er geen gebruiker input is, wordt berekende waarde overgenomen. Anders gebruikersinput
A29: Benodigde energie | B29: =MIN(B28*B27,C18) -> 192
A30: Benodigde laadcapaciteit [kW/u] | B30: =B29/B26 -> 24
A31: Aanbevolen systeem | B31: =IF(B30>=MAX(LaadinfraPrivaat[[#All],[Power (kW)]]),MAX(LaadinfraPrivaat[[#All],[Power (kW)]]),INDEX(LaadinfraPrivaat[[#All],[Power (kW)]],MATCH(B30,LaadinfraPrivaat[[#All],[Power (kW)]],-1))) -> 43 | C31: =INDEX(LaadinfraPrivaat[[#All],[Power]],MATCH('M1-PowerSupply'!$B$31,LaadinfraPrivaat[[#All],[Power (kW)]],0)) -> 43 kW
A32: Gebruikt systeem [kW] | B32: =INDEX(LaadinfraPrivaat[[#All],[Power (kW)]],MATCH('M1-PowerSupply'!$C$32,LaadinfraPrivaat[[#All],[Power]],0)) -> 43 | C32: ='Input-Output Module'!D60 -> 43 kW | D32: Als er geen gebruiker input is, wordt berekende waarde overgenomen. Anders gebruikersinput
A34: Max depotladen | B34: =MIN(B29,B32*B26) -> 192
A35: Rest depot laden | B35: =B29-B34 -> 0
A37: Berekening benodigde externe laadinfra voor EV voertuig
A38: Benodigde externe energie | B38: =C18-B34 -> 64.28599827
A39: Tijd voor opladen | B39: =INDEX(InzetVoertuigPar[[#All],[Waarde]],MATCH("Max. tijd per dag opladen extern",InzetVoertuigPar[[#All],[Variabele]],0)) -> 1
A40: max aantal sessies | B40: =INDEX(InzetVoertuigPar[[#All],[Waarde]],MATCH("Max. # keer opladen extern / dag",InzetVoertuigPar[[#All],[Variabele]],0)) -> 1
A41: Min. benodigde laadcapaciteit [kW/u] | B41: =B38/(B39*B40) -> 64.28599827
A42: Aanbevolen systeem [kW] | B42: =IF(B41>=MAX(LaadinfraPubliek[[#All],[Power (kW)]]),MAX(LaadinfraPubliek[[#All],[Power (kW)]]),INDEX(LaadinfraPubliek[[#All],[Power (kW)]],MATCH('M1-PowerSupply'!$B$41,LaadinfraPubliek[[#All],[Power (kW)]],-1))) -> 150 | C42: =INDEX(LaadinfraPubliek[[#All],[Charging type]],MATCH('M1-PowerSupply'!$B$42,LaadinfraPubliek[[#All],[Power (kW)]],0)) -> DC150
A43: Maximale hoeveelheid energie extern op te laden | B43: =B42*B40*B39 -> 150
A44: Benodigd aantal uren voor laden | B44: =B38/B42 -> 0.4285733218
A45: Extern geladen energie | B45: =MIN(B44*B42,B43) -> 64.28599827
A47: Check validiteit
A48: Extern opladen duur | B48: =IF(B38>=B43,FALSE,TRUE) -> TRUE | C48: Kan met de externe laadinfra benodigde energie binnen max tijd voor opladen geleverd worden?
A49: Extern opladen capaciteit | B49: =IF(B38>=B28*B27*B40,FALSE,TRUE) -> TRUE | C49: Kan met batterijcapaciteit het aantal dagelijkse kms gereden worden met max aantal oplaadsessies per dag?
A51: Scenario valide? | B51: =IF(AND(B48,B49),TRUE,FALSE) -> TRUE | C51: Uitgangspunt is dat men zoveel mogelijk met depotladen probeert te laden. Als meer energie nodig is, gebeurt dat via extern laden Past dat binnen de uitgangspunten? Dan is er sprake van een valide scenario. Anders niet.

Sheet M2-Subsidie
A2: Samenvatting gegevens
A3: Voertuigtype | B3: =Calculatie!$B$3 -> Medium bakwagen | F3: Parameters
A4: Voertuigtype ID | B4: =Calculatie!$C$3 -> 2 | F4: Maximale steun per categorie | K4: Percentage en investering per jaar
A5: Voertuig categorie | B5: =INDEX(AanzetCAT[#All],$B$4+1,2) -> N3 Bakwagen (lvm <= 18t) | F5: AanZET categorie | G5: Omvang bedrijf | H5: Max. steun [%] | I5: Max. steun [€] | K5: Jaartal | L5: MIA voertuig (D3116)% | M5: MIA Laadpaal (G3721)% | N5: Min. Investering2
A6: Rechtsvorm en belastingpercentage | B6: =INDEX(Belastinggegevens[[#All],[Belastingsklasse]],MATCH(Calculatie!$B$7,Keuzevelden[[#All],[Rechtsvorm en belastingpercentage]],0)) -> BV of NV met 19% belasting | F6: N2 | G6: Middelgroot | H6: 0.12 | I6: 14700 | K6: 2021 | L6: 0.36 | N6: 2500
A7: Basisjaar prognose | B7: =MIN(YEAR(NOW()),MAX(MIAperJaar[[#All],[Jaartal]])) -> 2024 | F7: N2 | G7: Klein | H7: 0.148 | I7: 18800 | K7: 2022 | L7: 0.45 | N7: 2500
A8: Grootte van bedrijf | B8: =INDEX(MaxStaatsSteun[[#All],[Omvang bedrijf]],MATCH(Calculatie!$B$8,Keuzevelden[[#All],[Grootte van bedrijf]],0)) -> Groot | F8: N2 | G8: Groot | H8: 0.061 | I8: 7500 | K8: 2023 | L8: 0.36 | N8: 2500
A9: Minimale investering | B9: =INDEX(MIAperJaar[[#All],[MIA Laadpaal (G3721)%]],MATCH($B$7,MIAperJaar[[#All],[Jaartal]],0)) -> 0.45 | F9: N3 Bakwagen (lvm <= 18t) | G9: Middelgroot | H9: 0.2 | I9: 60500 | K9: 2024 | L9: 0.36 | M9: 0.45 | N9: 2500
F10: N3 Bakwagen (lvm <= 18t) | G10: Klein | H10: 0.286 | I10: 86600
A11: Algemene subsidie gegevens | B11: EV | C11: FC | D11: H2ICE | F11: N3 Bakwagen (lvm <= 18t) | G11: Groot | H11: 0.103 | I11: 31100
A12: Investering voertuig (bruto) | B12: ='Input-Output Module'!$E$48 -> 227532.4047 | C12: ='Input-Output Module'!$F$48 -> 396909.4376 | D12: ='Input-Output Module'!$G$48 -> 0 | F12: N3 Bakwagen (lvm > 18t) | G12: Middelgroot | H12: 0.21 | I12: 83200
A13: Meerprijs t.o.v. Dieselvoertuig | B13: =IF(B12-'Input-Output Module'!$D$48>0,B12-'Input-Output Module'!$D$48,0) -> 103501.9722 | C13: =IF(C12-'Input-Output Module'!$D$48>0,C12-'Input-Output Module'!$D$48,0) -> 272879.0051 | D13: =IF(D12-'Input-Output Module'!$D$48>0,D12-'Input-Output Module'!$D$48,0) -> 0 | F13: N3 Bakwagen (lvm > 18t) | G13: Klein | H13: 0.29 | I13: 115200
A14: Maximale steun op grond van EU-staatssteunkalender | B14: =INDEX(MaxStaatsSteun[[#All],[Maximale steun (% van meerprijs)]],MATCH($B$8,MaxStaatsSteun[[#All],[Omvang bedrijf]],0))*B13 -> 41400.7889 | C14: =INDEX(MaxStaatsSteun[[#All],[Maximale steun (% van meerprijs)]],MATCH($B$8,MaxStaatsSteun[[#All],[Omvang bedrijf]],0))*C13 -> 109151.602 | D14: =INDEX(MaxStaatsSteun[[#All],[Maximale steun (% van meerprijs)]],MATCH($B$8,MaxStaatsSteun[[#All],[Omvang bedrijf]],0))*D13 -> 0 | F14: N3 Bakwagen (lvm > 18t) | G14: Groot | H14: 0.111 | I14: 43900
A15: AanZET-subsidie | B15: ='Input-Output Module'!$E$49 -> Nee | C15: ='Input-Output Module'!$F$49 -> Nee | D15: ='Input-Output Module'!$G$49 -> Nee | F15: N3 Trekker | G15: Middelgroot | H15: 0.21 | I15: 83200
A16: MIA-subsidie | B16: ='Input-Output Module'!$E$50 -> Ja | C16: ='Input-Output Module'!$F$50 -> Ja | D16: ='Input-Output Module'!$G$50 -> Ja | F16: N3 Trekker | G16: Klein | H16: 0.29 | I16: 115200
A17: Subsidie laadpaal | B17: ='Input-Output Module'!$D$57 -> Geen subsieregeling | F17: N3 Trekker | G17: Groot | H17: 0.111 | I17: 43900
A19: AanZET subsidie | F19: Maximale steun op grond van EU-staatssteunkalender
A20: Maximale steun | B20: =IF($B$15=Config!$A$11, MIN( 'M2-Subsidie'!$B$12*SUMIFS(MaxSteun[[#All],[Max. steun '[%']]],MaxSteun[[#All],[AanZET categorie]],'M2-Subsidie'!$B$5,MaxSteun[[#All],[Omvang bedrijf]],'M2-Subsidie'!$B$8), SUMIFS(MaxSteun[[#All],[Max. steun '[€']]],MaxSteun[[#All],[AanZET categorie]],'M2-Subsidie'!$B$5,MaxSteun[[#All],[Omvang bedrijf]],'M2-Subsidie'!$B$8), B$14),0) -> 0 | C20: =IF($C$15=Config!$A$11, MIN( 'M2-Subsidie'!$C$12*SUMIFS(MaxSteun[[#All],[Max. steun '[%']]],MaxSteun[[#All],[AanZET categorie]],'M2-Subsidie'!$B$5,MaxSteun[[#All],[Omvang bedrijf]],'M2-Subsidie'!$B$8), SUMIFS(MaxSteun[[#All],[Max. steun '[€']]],MaxSteun[[#All],[AanZET categorie]],'M2-Subsidie'!$B$5,MaxSteun[[#All],[Omvang bedrijf]],'M2-Subsidie'!$B$8), C$14),0) -> 0 | D20: =IF($D$15=Config!$A$11, MIN( 'M2-Subsidie'!$D$12*SUMIFS(MaxSteun[[#All],[Max. steun '[%']]],MaxSteun[[#All],[AanZET categorie]],'M2-Subsidie'!$B$5,MaxSteun[[#All],[Omvang bedrijf]],'M2-Subsidie'!$B$8), SUMIFS(MaxSteun[[#All],[Max. steun '[€']]],MaxSteun[[#All],[AanZET categorie]],'M2-Subsidie'!$B$5,MaxSteun[[#All],[Omvang bedrijf]],'M2-Subsidie'!$B$8), D$14),0) -> 0 | F20: Omvang bedrijf | G20: Maximale steun (% van meerprijs) | H20: Toelichting
F21: Groot | G21: 0.4 | H21: >250 fte, >€50 mil omzet
A22: MIA (Milieu Investerings Aftrek) | F22: Middelgroot | G22: 0.5 | H22: <250 fte, <€50 mil omzet
A23: Belastingpercentage | B23: =INDEX(Belastinggegevens[[#All],[Procent]],MATCH($B$6,Belastinggegevens[[#All],[Belastingsklasse]],0)) -> 0.19 | C23: =INDEX(Belastinggegevens[[#All],[Procent]],MATCH($B$6,Belastinggegevens[[#All],[Belastingsklasse]],0)) -> 0.19 | D23: =INDEX(Belastinggegevens[[#All],[Procent]],MATCH($B$6,Belastinggegevens[[#All],[Belastingsklasse]],0)) -> 0.19 | F23: Klein | G23: 0.6 | H23: <50 fte, <€10 mil omzet
A24: MIA percentage | B24: =IF($B$16=Config!$A$11, INDEX(MIAperJaar[[#All],[MIA voertuig (D3116)%]],MATCH($B$7,MIAperJaar[[#All],[Jaartal]],0)), 0) -> 0.36 | C24: =IF($C$16=Config!$A$11, INDEX(MIAperJaar[[#All],[MIA voertuig (D3116)%]],MATCH($B$7,MIAperJaar[[#All],[Jaartal]],0)), 0) -> 0.36 | D24: =IF($D$16=Config!$A$11, INDEX(MIAperJaar[[#All],[MIA voertuig (D3116)%]],MATCH($B$7,MIAperJaar[[#All],[Jaartal]],0)), 0) -> 0.36
A25: Fictieve fiscale winst | B25: =INDEX(Belastinggegevens[[#All],[Gebruikte fiscale winst voor berekening]],MATCH($B$6,Belastinggegevens[[#All],[Belastingsklasse]],0)) -> 200000 | C25: =INDEX(Belastinggegevens[[#All],[Gebruikte fiscale winst voor berekening]],MATCH($B$6,Belastinggegevens[[#All],[Belastingsklasse]],0)) -> 200000 | D25: =INDEX(Belastinggegevens[[#All],[Gebruikte fiscale winst voor berekening]],MATCH($B$6,Belastinggegevens[[#All],[Belastingsklasse]],0)) -> 200000 | F25: AanZET categorie verdeling
A26: Aftrekpost | B26: =IF(B12>=$B$9,(B12-B20)*B24,0) -> 81911.66571 | C26: =IF(C12>=$B$9,(C12-C20)*C24,0) -> 142887.3975 | D26: =IF(D12>=$B$9,(D12-D20)*D24,0) -> 0 | F26: Voertuigtype | G26: AanZET categorie
A27: Fiscaal voordeel MIA | B27: =(B23*B25)-((B25-B26)*B23) -> 15563.21648 | C27: =(C23*C25)-((C25-C26)*C23) -> 27148.60553 | D27: =(D23*D25)-((D25-D26)*D23) -> 0 | F27: Kleine bakwagen | G27: N2
A28: MIA-Subsidie Laadpaal | F28: Medium bakwagen | G28: N3 Bakwagen (lvm <= 18t)
A29: Investering Laadpaal | B29: =IF('Input-Output Module'!$D$56=Config!$A$31, 'Input-Output Module'!$D$61+'Input-Output Module'!$D$62, IF('Input-Output Module'!$D$56=Config!$A$32, 'M3-TCO-laadplein'!$J$23, 0 )) -> 0 | F29: Grote bakwagen | G29: N3 Bakwagen (lvm > 18t)
A30: MIA percentage | B30: =IF($B$17=Config!$A$74, INDEX(MIAperJaar[[#All],[MIA Laadpaal (G3721)%]],MATCH($B$7,MIAperJaar[[#All],[Jaartal]],0)), 0) -> 0 | F30: Lichte trekker z/opl | G30: N3 Trekker
A31: Aftrekpost | B31: =IF(B29>=B9,B29*B30,0) -> 0 | F31: Zware trekker z/opl | G31: N3 Trekker
A32: Fiscaal voordeel MIA | B32: =(B23*B25)-((B25-B31)*B23) -> 0
F33: Belastinggegevens
A34: Uiteindelijke subsidie | F34: Belastingsklasse | G34: Procent | H34: Bovengrens Fiscale winst | I34: Gebruikte fiscale winst voor berekening
A35: AanZET | B35: =B20 -> 0 | C35: =C20 -> 0 | D35: =D20 -> 0 | F35: BV of NV met 19% belasting | G35: 0.19 | H35: 200000 | I35: 200000
A36: MIA | B36: =IF(B27<=(B14-B35),B27,IF(B14-B35<=0,0,B14-B35)) -> 15563.21648 | C36: =IF(C27<=(C14-C35),C27,IF(C14-C35<=0,0,C14-C35)) -> 27148.60553 | D36: =IF(D27<=(D14-D35),D27,IF(D14-D35<=0,0,D14-D35)) -> 0 | F36: BV of NV met 25,8% belasting | G36: 0.258 | I36: 400000
A37: Subsidie Laadpaal | B37: =IF($B$17=Config!$A$75, $B$45+B46, IF($B$17=Config!$A$74,$B$32,0) ) -> 0 | F37: Eenmanszaak met 36,93% belasting | G37: 0.3693 | H37: 73031 | I37: 73031
A38: Totaal | B38: =SUM(B35:B37) -> 15563.21648 | C38: =SUM(C35:C37) -> 27148.60553 | D38: =SUM(D35:D37) -> 0 | F38: Eenmanszaak met 49,5% belasting | G38: 0.495 | I38: 146062
B40: Als de totale hoeveelheid aan subsidies kleiner is dat de maximale steun gebeurt hier niks nieuws
B41: Als dat wel het geval is, wordt eerst de maximale subsidie aan AanZET toegekend en dan MIA
B42: Voor laadpalen is de aanname gemaakt dat de aanschaf van een Laadpaal los ingediend wordt en dus niet meetelt voor het maximum per project
A44: SPRILA | F44: SPRILA subsidie Laadpaal
A45: Laadpa(a)len | B45: =IF($B$17=Config!$A$75, IF('Input-Output Module'!$D$56=Config!$A$31, INDEX(Table25[#All],MATCH('Input-Output Module'!$D$60,Table25[[#All],[Laadvermogen]],0),MATCH($B$8,Table25[#Headers],0)), SUMPRODUCT(Calculatie!$R$11:$R$18,Calculatie!$U$11:$U$18)), 0) -> 0 | F45: Laadpaal | G45: Klein | H45: Middelgroot | I45: Groot | J45: Laadvermogen
A46: Batterij | B46: =IF($B$17=Config!$A$75, IF('Input-Output Module'!$D$56=Config!$A$32, INDEX(Table22[[#All],[Subsidie per kWh]],MATCH($B$8,Table22[[#All],[Bedrijfsomvang]],0))*'M3-TCO-laadplein'!$J$44,0),0) -> 0 | F46: DC1000 | I46: 70306 | J46: 1000 kW
F47: DC600 | I47: 70306 | J47: 600 kW
F48: DC350 | G48: 83393 | H48: 83393 | I48: 41696 | J48: 350 kW
F49: DC150 | G49: 37287 | H49: 37287 | I49: 18644 | J49: 150 kW
F50: DC50 | G50: 12842 | H50: 12842 | I50: 6421 | J50: 50 kW
F51: AC43 | G51: 2400 | H51: 2400 | I51: 1200 | J51: 43 kW
F52: AC22 | G52: 904 | H52: 904 | I52: 452 | J52: 22 kW
F53: AC11 | G53: 904 | H53: 904 | I53: 452 | J53: 11 kW
F55: SPRILA subsidie Stationaire Batterij
F56: Bedrijfsomvang | G56: Subsidie per kWh
F57: Groot | G57: 80
F58: Middelgroot | G58: 160
F59: Klein | G59: 160

Sheet Invoer en categorieën
B2: Voertuigen en kenmerken | O2: Opties keuzevelden en defaultwaarden
B3: Basisjaar financiële cijfers: | C3: 2024 | D3: (relevant voor indexatie)
B4: Voertuig | C4: Voertuig ID | D4: Type | E4: Type ID | F4: Casco kosten voertuig (DV) | G4: H2ICE Casco | H4: Aanschaf koelsysteem | I4: Kilometrage | J4: Productive uren per jaar | K4: Afschrijftermijn | L4: Uurloon | O4: Optie | P4: Grijze/groene elektriciciteit | Q4: Grijze/groene waterstof | R4: Rechtsvorm en belastingpercentage | S4: Grootte van bedrijf | T4: Subsie laadpaal
B5: =Config!A37 -> Kleine bakwagen (lvm ca. 6 ton) | C5: 1 | D5: =Config!A47 -> Kleine bakwagen | E5: 1 | F5: 87345.375 | G5: 0 | H5: 17500 | I5: 35000 | J5: 2600 | K5: 7 | L5: 32.8 | O5: keuze 1 | P5: =Config!$A$15 -> Grijs | Q5: =Config!$A$15 -> Grijs | R5: =Config!$A$20 -> BV of NV met 19% belasting | S5: =Config!$A$26 -> Groot | T5: =Config!$A$73 -> Geen subsieregeling
B6: =Config!A38 -> Kleine bakwagen/ Verhuiswagen | C6: 2 | D6: =Config!A47 -> Kleine bakwagen | E6: 1 | F6: 70483.92 | G6: 0 | H6: 0 | I6: 35000 | J6: 1600 | K6: 5 | L6: 25.73570521 | O6: keuze 2 | P6: =Config!$A$16 -> Groen | Q6: =Config!$A$17 -> Blauw | R6: =Config!$A$21 -> BV of NV met 25,8% belasting | S6: =Config!$A$25 -> Middelgroot | T6: =Config!$A$74 -> MIA subsidie
B7: =Config!A39 -> Medium bakwagen (lvm ca. 9 ton) | C7: 3 | D7: =Config!A48 -> Medium bakwagen | E7: 2 | F7: 124030.4325 | G7: 0 | H7: 20000 | I7: 70000 | J7: 2600 | K7: 7 | L7: 32.8 | O7: keuze 3 | Q7: =Config!$A$18 -> Electrolyse (netstroom) | R7: =Config!$A$22 -> Eenmanszaak met 36,93% belasting | S7: =Config!$A$24 -> Klein | T7: =Config!$A$75 -> SPRILA
B8: =Config!A40 -> Medium bakwagen/ Verhuiswagen | C8: 4 | D8: =Config!A48 -> Medium bakwagen | E8: 2 | F8: 138537.36 | G8: 0 | H8: 0 | I8: 30000 | J8: 1800 | K8: 8 | L8: 30.73697586 | O8: keuze 4 | Q8: =Config!$A$19 -> Electrolyse (hernieuwbare energie) | R8: =Config!$A$23 -> Eenmanszaak met 49,5% belasting
B9: =Config!A41 -> Grote bakwagen (lvm > 16 ton) | C9: 5 | D9: =Config!A49 -> Grote bakwagen | E9: 3 | F9: 138987.745 | G9: 0 | H9: 22500 | I9: 70000 | J9: 2600 | K9: 7 | L9: 32.8 | O9: keuze 5
B10: =Config!A42 -> Grote bakwagen/ Verhuiswagen | C10: 6 | D10: =Config!A49 -> Grote bakwagen | E10: 3 | F10: 146830.84 | G10: 0 | H10: 0 | I10: 47000 | J10: 2000 | K10: 11 | L10: 30.11181703 | O10: keuze 6
B11: =Config!A43 -> Grote bakwagen/ Bouwvervoer | C11: 7 | D11: =Config!A49 -> Grote bakwagen | E11: 3 | F11: 216193.328 | G11: 0 | H11: 0 | I11: 42000 | J11: 2600 | K11: 7 | L11: 32.8 | O11: keuze 7
B12: =Config!A44 -> Lichte trekker z/opl (GVW < 40 ton) | C12: 8 | D12: =Config!A50 -> Lichte trekker z/opl | E12: 4 | F12: 130242.2782 | G12: 0 | H12: 0 | I12: 100000 | J12: 2600 | K12: 7 | L12: 32.8 | O12: keuze 8
B13: =Config!A45 -> Zware trekker z/opl (GVW > 40 ton) | C13: 9 | D13: =Config!A51 -> Zware trekker z/opl | E13: 5 | F13: 146166.435 | G13: 268196.1045 | H13: 0 | I13: 100000 | J13: 2600 | K13: 7 | L13: 32.8 | O13: keuze 9
B14: =Config!A46 -> Zware trekker z/opl/ Containertrucking | C14: 10 | D14: =Config!A51 -> Zware trekker z/opl | E14: 5 | F14: 120405 | G14: 253167.5595 | H14: 0 | I14: 105000 | J14: 2600 | K14: 7 | L14: 32.8 | O14: keuze 10
O15: Defaultwaarde | P15: =P6 -> Groen | Q15: =Q8 -> Electrolyse (hernieuwbare energie) | R15: =R5 -> BV of NV met 19% belasting | S15: =S5 -> Groot | T15: =T5 -> Geen subsieregeling
B18: Verschillende operationele kostenparameters per voertuigtype
B19: Basisjaar financiële cijfers: | C19: 2024
B20: Type ID | C20: Type | D20: PM_wear from tires | E20: Bandenkosten (€/km) | F20: Versch. voertuigkosten | G20: Speciale transportkosten | H20: Onderhoud koeling | I20: Eurovignet | J20: Tolheffing | K20: Wegenbelasting
B21: 1 | C21: Kleine bakwagen | D21: 0.08120688069 | E21: 0.023121345 | F21: 84 | G21: 455 | H21: 0.3740589282 | I21: 0 | J21: 0 | K21: 380
B22: 2 | C22: Medium bakwagen | D22: 0.08120688069 | E22: 0.0227691285 | F22: 84 | G22: 455 | H22: 0.4343589931 | I22: 750 | J22: 0 | K22: 380
B23: 3 | C23: Grote bakwagen | D23: 0.08120688069 | E23: 0.022416912 | F23: 84 | G23: 455 | H23: 0.4946590581 | I23: 750 | J23: 0 | K23: 380
B24: 4 | C24: Lichte trekker z/opl | D24: 0.07472008133 | E24: 0.03444994 | F24: 84 | G24: 1135 | H24: 0.622933681 | I24: 1250 | J24: 0 | K24: 1028
B25: 5 | C25: Zware trekker z/opl | D25: 0.06823328198 | E25: 0.046482968 | F25: 84 | G25: 1135 | H25: 0.7512083038 | I25: 1250 | J25: 0 | K25: 1028
B28: Energieverbruik en onderhoudskosten per voertuigtype en aandrijving | S28: Prijzen van accus/power/tank
B29: Basisjaar financiële cijfers: | C29: 2024 | S29: Basisjaar financiële cijfers: | T29: 2023
B30: Type ID | C30: Type | D30: Rijden DV [L/km] | E30: Rijden EV [kWh/km] | F30: Rijden FC [kg H2/km] | G30: Koelen DV [L/uur] | H30: Koelen EV [kWh/uur] | I30: Koelen FC [kg H2/uur] | J30: Reparaties DV [€/jaar] | K30: Reparaties EV [€/jaar] | L30: Reparaties FC [€/jaar] | M30: Onderhoud DV [€/km] | N30: Onderhoud EV [€/km] | O30: Onderhoud FC [€/km] | P30: Rijden H2ICE [kg H2 /km] | Q30: Koelen H2ICE [kg H2/uur] | S30: Component | T30: prijs/unit
B31: 1 | C31: Kleine bakwagen | D31: 0.132399762 | E31: 0.4761551825 | F31: 0.03184795861 | G31: 1 | H31: 3.92 | I31: 0.2592592593 | J31: 551.25 | K31: 551.25 | L31: 1653.75 | M31: 0.05729283728 | N31: 0.02864641864 | O31: 0.08593925592 | S31: Battery (per kWh) | T31: 431.2582177
B32: 2 | C32: Medium bakwagen | D32: 0.210639395 | E32: 0.9519194222 | F32: 0.06267121986 | G32: 1.5 | H32: 5.88 | I32: 0.3888888889 | J32: 551.25 | K32: 551.25 | L32: 1653.75 | M32: 0.0630201516 | N32: 0.0315100758 | O32: 0.0945302274 | S32: Fuel cell system (per kW) | T32: 1535
B33: 3 | C33: Grote bakwagen | D33: 0.2697424785 | E33: 1.327285843 | F33: 0.08883221651 | G33: 2.5 | H33: 9.8 | I33: 0.6481481481 | J33: 1102.5 | K33: 1102.5 | L33: 3307.5 | M33: 0.06874746592 | N33: 0.03437373296 | O33: 0.1031211989 | S33: H2 storage (per kg) | T33: 1275
B34: 4 | C34: Lichte trekker z/opl | D34: 0.2794114756 | E34: 1.299629854 | F34: 0.0920214928 | J34: 1653.75 | K34: 1653.75 | L34: 5512.5 | M34: 0.0801939981 | N34: 0.04009699905 | O34: 0.1202909972 | S34: Fuel cell production costs (%) | T34: 1.474161705
B35: 5 | C35: Zware trekker z/opl | D35: 0.3413502921 | E35: 1.4675 | F35: 0.10978836 | J35: 1653.75 | K35: 1653.75 | L35: 5512.5 | M35: 0.09164053028 | N35: 0.04582026514 | O35: 0.1374607954 | P35: 0.143
B38: EV/FC varianten: accupakketten, power en tank
B39: Basisjaar financiële cijfers: | C39: 2024
B40: Type ID | C40: Type | D40: EV accu 1 [kWh] | E40: EV accu 2 [kWh] | F40: EV accu 3 [kWh] | G40: EV accu 4 [kWh] | H40: EV accu 5 [kWh] | I40: FC accu | J40: FC power | K40: FC H2 tank | L40: H2ICE H2 tank
B41: 1 | C41: Kleine bakwagen | E41: 80 | F41: 120 | G41: 160 | H41: 200 | I41: 70 | J41: 30 | K41: 15 | L41: 0
B42: 2 | C42: Medium bakwagen | E42: 120 | F42: 160 | G42: 180 | H42: 240 | I42: 150 | J42: 40 | K42: 15 | L42: 0
B43: 3 | C43: Grote bakwagen | D43: 160 | E43: 180 | F43: 200 | G43: 260 | H43: 600 | I43: 140 | J43: 45 | K43: 20 | L43: 0
B44: 4 | C44: Lichte trekker z/opl | E44: 180 | F44: 220 | G44: 260 | H44: 340 | I44: 140 | J44: 60 | K44: 30 | L44: 0
B45: 5 | C45: Zware trekker z/opl | D45: 300 | E45: 400 | F45: 440 | G45: 540 | H45: 600 | I45: 200 | J45: 80 | K45: 50 | L45: 84
B48: Eigenschappen private laadinfra
B49: Basisjaar financiële cijfers: | C49: 2024
B50: Index | C50: Charging type | D50: Power | E50: Land type | F50: Power (kW) | G50: Purchase & installation (€) | H50: Purchase (€) | I50: Installation costs (€) | J50: Operational costs annual (€) | K50: Afschrijftermijn | L50: Graaf werk | M50: Locatiebepaling, enginering, proj mgt | N50: Aansluitkosten netbeheerder (!) | O50: Periodieke kosten netaansluiting (!) | Q50: Piekvermogen | R50: Installaties per kW piekvermogen
B51: 8 | C51: DC1000 | D51: 1000 kW | E51: Privaat | F51: =_xlfn.NUMBERVALUE(LEFT(LaadinfraPrivaat[[#This Row],[Power]],FIND(" ",LaadinfraPrivaat[[#This Row],[Power]])-1)) -> 1000 | G51: =INDEX(Laadpleinkosten!$C$16:$K$16,1,MATCH(LaadinfraPrivaat[[#This Row],[Power]],Laadpleinkosten!$C$8:$K$8,0)) -> 404128 | H51: =INDEX(Laadpleinkosten!$C$11:$K$11,1,MATCH(LaadinfraPrivaat[[#This Row],[Power]],Laadpleinkosten!$C$8:$K$8,0)) -> 325000 | I51: =LaadinfraPrivaat[[#This Row],[Purchase & installation (€) ]]-LaadinfraPrivaat[[#This Row],[Purchase (€)]] -> 79128 | J51: =INDEX(Laadpleinkosten!$C$26:$K$26,1,MATCH(LaadinfraPrivaat[[#This Row],[Power]],Laadpleinkosten!$C$8:$K$8,0)) -> 64871 | K51: =INDEX(Laadpleinkosten!$C$17:$K$17,1,MATCH(LaadinfraPrivaat[[#This Row],[Power]],Laadpleinkosten!$C$8:$K$8,0)) -> 10 | L51: =INDEX(Laadpleinkosten!$C$11:$K$18,MATCH(L$50,Laadpleinkosten!$A$11:$A$18,0),MATCH(LaadinfraPrivaat[[#This Row],[Charging type]],Laadpleinkosten!$C$7:$K$7,0)) -> 10000 | M51: =INDEX(Laadpleinkosten!$C$11:$K$18,MATCH(M$50,Laadpleinkosten!$A$11:$A$18,0),MATCH(LaadinfraPrivaat[[#This Row],[Charging type]],Laadpleinkosten!$C$7:$K$7,0)) -> 6000 | N51: =INDEX(Laadpleinkosten!$C$11:$K$18,MATCH(N$50,Laadpleinkosten!$A$11:$A$18,0),MATCH(LaadinfraPrivaat[[#This Row],[Charging type]],Laadpleinkosten!$C$7:$K$7,0)) -> 53128 | O51: =INDEX(Laadpleinkosten!$C$11:$K$21,MATCH(O$50,Laadpleinkosten!$A$11:$A$21,0),MATCH(LaadinfraPrivaat[[#This Row],[Charging type]],Laadpleinkosten!$C$7:$K$7,0)) -> 59171 | Q51: Tot 2MW | R51: =350*40% -> 140
B52: 7 | C52: DC600 | D52: 600 kW | E52: Privaat | F52: =_xlfn.NUMBERVALUE(LEFT(LaadinfraPrivaat[[#This Row],[Power]],FIND(" ",LaadinfraPrivaat[[#This Row],[Power]])-1)) -> 600 | G52: =INDEX(Laadpleinkosten!$C$16:$K$16,1,MATCH(LaadinfraPrivaat[[#This Row],[Power]],Laadpleinkosten!$C$8:$K$8,0)) -> 185141 | H52: =INDEX(Laadpleinkosten!$C$11:$K$11,1,MATCH(LaadinfraPrivaat[[#This Row],[Power]],Laadpleinkosten!$C$8:$K$8,0)) -> 135000 | I52: =LaadinfraPrivaat[[#This Row],[Purchase & installation (€) ]]-LaadinfraPrivaat[[#This Row],[Purchase (€)]] -> 50141 | J52: =INDEX(Laadpleinkosten!$C$26:$K$26,1,MATCH(LaadinfraPrivaat[[#This Row],[Power]],Laadpleinkosten!$C$8:$K$8,0)) -> 40475 | K52: =INDEX(Laadpleinkosten!$C$17:$K$17,1,MATCH(LaadinfraPrivaat[[#This Row],[Power]],Laadpleinkosten!$C$8:$K$8,0)) -> 10 | L52: =INDEX(Laadpleinkosten!$C$11:$K$18,MATCH(L$50,Laadpleinkosten!$A$11:$A$18,0),MATCH(LaadinfraPrivaat[[#This Row],[Charging type]],Laadpleinkosten!$C$7:$K$7,0)) -> 7000 | M52: =INDEX(Laadpleinkosten!$C$11:$K$18,MATCH(M$50,Laadpleinkosten!$A$11:$A$18,0),MATCH(LaadinfraPrivaat[[#This Row],[Charging type]],Laadpleinkosten!$C$7:$K$7,0)) -> 4000 | N52: =INDEX(Laadpleinkosten!$C$11:$K$18,MATCH(N$50,Laadpleinkosten!$A$11:$A$18,0),MATCH(LaadinfraPrivaat[[#This Row],[Charging type]],Laadpleinkosten!$C$7:$K$7,0)) -> 32141 | O52: =INDEX(Laadpleinkosten!$C$11:$K$21,MATCH(O$50,Laadpleinkosten!$A$11:$A$21,0),MATCH(LaadinfraPrivaat[[#This Row],[Charging type]],Laadpleinkosten!$C$7:$K$7,0)) -> 36275 | Q52: Meer dan 2MW | R52: =200*40% -> 80
B53: 6 | C53: DC350 | D53: 350 kW | E53: Privaat | F53: =_xlfn.NUMBERVALUE(LEFT(LaadinfraPrivaat[[#This Row],[Power]],FIND(" ",LaadinfraPrivaat[[#This Row],[Power]])-1)) -> 350 | G53: =INDEX(Laadpleinkosten!$C$16:$K$16,1,MATCH(LaadinfraPrivaat[[#This Row],[Power]],Laadpleinkosten!$C$8:$K$8,0)) -> 123069 | H53: =INDEX(Laadpleinkosten!$C$11:$K$11,1,MATCH(LaadinfraPrivaat[[#This Row],[Power]],Laadpleinkosten!$C$8:$K$8,0)) -> 80000 | I53: =LaadinfraPrivaat[[#This Row],[Purchase & installation (€) ]]-LaadinfraPrivaat[[#This Row],[Purchase (€)]] -> 43069 | J53: =INDEX(Laadpleinkosten!$C$26:$K$26,1,MATCH(LaadinfraPrivaat[[#This Row],[Power]],Laadpleinkosten!$C$8:$K$8,0)) -> 25165 | K53: =INDEX(Laadpleinkosten!$C$17:$K$17,1,MATCH(LaadinfraPrivaat[[#This Row],[Power]],Laadpleinkosten!$C$8:$K$8,0)) -> 10 | L53: =INDEX(Laadpleinkosten!$C$11:$K$18,MATCH(L$50,Laadpleinkosten!$A$11:$A$18,0),MATCH(LaadinfraPrivaat[[#This Row],[Charging type]],Laadpleinkosten!$C$7:$K$7,0)) -> 5000 | M53: =INDEX(Laadpleinkosten!$C$11:$K$18,MATCH(M$50,Laadpleinkosten!$A$11:$A$18,0),MATCH(LaadinfraPrivaat[[#This Row],[Charging type]],Laadpleinkosten!$C$7:$K$7,0)) -> 3000 | N53: =INDEX(Laadpleinkosten!$C$11:$K$18,MATCH(N$50,Laadpleinkosten!$A$11:$A$18,0),MATCH(LaadinfraPrivaat[[#This Row],[Charging type]],Laadpleinkosten!$C$7:$K$7,0)) -> 30069 | O53: =INDEX(Laadpleinkosten!$C$11:$K$21,MATCH(O$50,Laadpleinkosten!$A$11:$A$21,0),MATCH(LaadinfraPrivaat[[#This Row],[Charging type]],Laadpleinkosten!$C$7:$K$7,0)) -> 21965
B54: 5 | C54: DC150 | D54: 150 kW | E54: Privaat | F54: =_xlfn.NUMBERVALUE(LEFT(LaadinfraPrivaat[[#This Row],[Power]],FIND(" ",LaadinfraPrivaat[[#This Row],[Power]])-1)) -> 150 | G54: =INDEX(Laadpleinkosten!$C$16:$K$16,1,MATCH(LaadinfraPrivaat[[#This Row],[Power]],Laadpleinkosten!$C$8:$K$8,0)) -> 70004 | H54: =INDEX(Laadpleinkosten!$C$11:$K$11,1,MATCH(LaadinfraPrivaat[[#This Row],[Power]],Laadpleinkosten!$C$8:$K$8,0)) -> 50000 | I54: =LaadinfraPrivaat[[#This Row],[Purchase & installation (€) ]]-LaadinfraPrivaat[[#This Row],[Purchase (€)]] -> 20004 | J54: =INDEX(Laadpleinkosten!$C$26:$K$26,1,MATCH(LaadinfraPrivaat[[#This Row],[Power]],Laadpleinkosten!$C$8:$K$8,0)) -> 14954 | K54: =INDEX(Laadpleinkosten!$C$17:$K$17,1,MATCH(LaadinfraPrivaat[[#This Row],[Power]],Laadpleinkosten!$C$8:$K$8,0)) -> 10 | L54: =INDEX(Laadpleinkosten!$C$11:$K$18,MATCH(L$50,Laadpleinkosten!$A$11:$A$18,0),MATCH(LaadinfraPrivaat[[#This Row],[Charging type]],Laadpleinkosten!$C$7:$K$7,0)) -> 5000 | M54: =INDEX(Laadpleinkosten!$C$11:$K$18,MATCH(M$50,Laadpleinkosten!$A$11:$A$18,0),MATCH(LaadinfraPrivaat[[#This Row],[Charging type]],Laadpleinkosten!$C$7:$K$7,0)) -> 2000 | N54: =INDEX(Laadpleinkosten!$C$11:$K$18,MATCH(N$50,Laadpleinkosten!$A$11:$A$18,0),MATCH(LaadinfraPrivaat[[#This Row],[Charging type]],Laadpleinkosten!$C$7:$K$7,0)) -> 9004 | O54: =INDEX(Laadpleinkosten!$C$11:$K$21,MATCH(O$50,Laadpleinkosten!$A$11:$A$21,0),MATCH(LaadinfraPrivaat[[#This Row],[Charging type]],Laadpleinkosten!$C$7:$K$7,0)) -> 12354
B55: 4 | C55: DC50 | D55: 50 kW | E55: Privaat | F55: =_xlfn.NUMBERVALUE(LEFT(LaadinfraPrivaat[[#This Row],[Power]],FIND(" ",LaadinfraPrivaat[[#This Row],[Power]])-1)) -> 50 | G55: =INDEX(Laadpleinkosten!$C$16:$K$16,1,MATCH(LaadinfraPrivaat[[#This Row],[Power]],Laadpleinkosten!$C$8:$K$8,0)) -> 26329 | H55: =INDEX(Laadpleinkosten!$C$11:$K$11,1,MATCH(LaadinfraPrivaat[[#This Row],[Power]],Laadpleinkosten!$C$8:$K$8,0)) -> 22000 | I55: =LaadinfraPrivaat[[#This Row],[Purchase & installation (€) ]]-LaadinfraPrivaat[[#This Row],[Purchase (€)]] -> 4329 | J55: =INDEX(Laadpleinkosten!$C$26:$K$26,1,MATCH(LaadinfraPrivaat[[#This Row],[Power]],Laadpleinkosten!$C$8:$K$8,0)) -> 5141 | K55: =INDEX(Laadpleinkosten!$C$17:$K$17,1,MATCH(LaadinfraPrivaat[[#This Row],[Power]],Laadpleinkosten!$C$8:$K$8,0)) -> 10 | L55: =INDEX(Laadpleinkosten!$C$11:$K$18,MATCH(L$50,Laadpleinkosten!$A$11:$A$18,0),MATCH(LaadinfraPrivaat[[#This Row],[Charging type]],Laadpleinkosten!$C$7:$K$7,0)) -> 700 | M55: =INDEX(Laadpleinkosten!$C$11:$K$18,MATCH(M$50,Laadpleinkosten!$A$11:$A$18,0),MATCH(LaadinfraPrivaat[[#This Row],[Charging type]],Laadpleinkosten!$C$7:$K$7,0)) -> 200 | N55: =INDEX(Laadpleinkosten!$C$11:$K$18,MATCH(N$50,Laadpleinkosten!$A$11:$A$18,0),MATCH(LaadinfraPrivaat[[#This Row],[Charging type]],Laadpleinkosten!$C$7:$K$7,0)) -> 1929 | O55: =INDEX(Laadpleinkosten!$C$11:$K$21,MATCH(O$50,Laadpleinkosten!$A$11:$A$21,0),MATCH(LaadinfraPrivaat[[#This Row],[Charging type]],Laadpleinkosten!$C$7:$K$7,0)) -> 3441
B56: 3 | C56: AC43 | D56: 43 kW | E56: Privaat | F56: =_xlfn.NUMBERVALUE(LEFT(LaadinfraPrivaat[[#This Row],[Power]],FIND(" ",LaadinfraPrivaat[[#This Row],[Power]])-1)) -> 43 | G56: =INDEX(Laadpleinkosten!$C$16:$K$16,1,MATCH(LaadinfraPrivaat[[#This Row],[Power]],Laadpleinkosten!$C$8:$K$8,0)) -> 6143 | H56: =INDEX(Laadpleinkosten!$C$11:$K$11,1,MATCH(LaadinfraPrivaat[[#This Row],[Power]],Laadpleinkosten!$C$8:$K$8,0)) -> 2000 | I56: =LaadinfraPrivaat[[#This Row],[Purchase & installation (€) ]]-LaadinfraPrivaat[[#This Row],[Purchase (€)]] -> 4143 | J56: =INDEX(Laadpleinkosten!$C$26:$K$26,1,MATCH(LaadinfraPrivaat[[#This Row],[Power]],Laadpleinkosten!$C$8:$K$8,0)) -> 3442 | K56: =INDEX(Laadpleinkosten!$C$17:$K$17,1,MATCH(LaadinfraPrivaat[[#This Row],[Power]],Laadpleinkosten!$C$8:$K$8,0)) -> 10 | L56: =INDEX(Laadpleinkosten!$C$11:$K$18,MATCH(L$50,Laadpleinkosten!$A$11:$A$18,0),MATCH(LaadinfraPrivaat[[#This Row],[Charging type]],Laadpleinkosten!$C$7:$K$7,0)) -> 700 | M56: =INDEX(Laadpleinkosten!$C$11:$K$18,MATCH(M$50,Laadpleinkosten!$A$11:$A$18,0),MATCH(LaadinfraPrivaat[[#This Row],[Charging type]],Laadpleinkosten!$C$7:$K$7,0)) -> 200 | N56: =INDEX(Laadpleinkosten!$C$11:$K$18,MATCH(N$50,Laadpleinkosten!$A$11:$A$18,0),MATCH(LaadinfraPrivaat[[#This Row],[Charging type]],Laadpleinkosten!$C$7:$K$7,0)) -> 1743 | O56: =INDEX(Laadpleinkosten!$C$11:$K$21,MATCH(O$50,Laadpleinkosten!$A$11:$A$21,0),MATCH(LaadinfraPrivaat[[#This Row],[Charging type]],Laadpleinkosten!$C$7:$K$7,0)) -> 2792
B57: 2 | C57: AC22 | D57: 22 kW | E57: Privaat | F57: =_xlfn.NUMBERVALUE(LEFT(LaadinfraPrivaat[[#This Row],[Power]],FIND(" ",LaadinfraPrivaat[[#This Row],[Power]])-1)) -> 22 | G57: =INDEX(Laadpleinkosten!$C$16:$K$16,1,MATCH(LaadinfraPrivaat[[#This Row],[Power]],Laadpleinkosten!$C$8:$K$8,0)) -> 4517 | H57: =INDEX(Laadpleinkosten!$C$11:$K$11,1,MATCH(LaadinfraPrivaat[[#This Row],[Power]],Laadpleinkosten!$C$8:$K$8,0)) -> 1400 | I57: =LaadinfraPrivaat[[#This Row],[Purchase & installation (€) ]]-LaadinfraPrivaat[[#This Row],[Purchase (€)]] -> 3117 | J57: =INDEX(Laadpleinkosten!$C$26:$K$26,1,MATCH(LaadinfraPrivaat[[#This Row],[Power]],Laadpleinkosten!$C$8:$K$8,0)) -> 1940 | K57: =INDEX(Laadpleinkosten!$C$17:$K$17,1,MATCH(LaadinfraPrivaat[[#This Row],[Power]],Laadpleinkosten!$C$8:$K$8,0)) -> 10 | L57: =INDEX(Laadpleinkosten!$C$11:$K$18,MATCH(L$50,Laadpleinkosten!$A$11:$A$18,0),MATCH(LaadinfraPrivaat[[#This Row],[Charging type]],Laadpleinkosten!$C$7:$K$7,0)) -> 500 | M57: =INDEX(Laadpleinkosten!$C$11:$K$18,MATCH(M$50,Laadpleinkosten!$A$11:$A$18,0),MATCH(LaadinfraPrivaat[[#This Row],[Charging type]],Laadpleinkosten!$C$7:$K$7,0)) -> 100 | N57: =INDEX(Laadpleinkosten!$C$11:$K$18,MATCH(N$50,Laadpleinkosten!$A$11:$A$18,0),MATCH(LaadinfraPrivaat[[#This Row],[Charging type]],Laadpleinkosten!$C$7:$K$7,0)) -> 1717 | O57: =INDEX(Laadpleinkosten!$C$11:$K$21,MATCH(O$50,Laadpleinkosten!$A$11:$A$21,0),MATCH(LaadinfraPrivaat[[#This Row],[Charging type]],Laadpleinkosten!$C$7:$K$7,0)) -> 1440
B58: 1 | C58: AC11 | D58: 11 kW | E58: Privaat | F58: =_xlfn.NUMBERVALUE(LEFT(LaadinfraPrivaat[[#This Row],[Power]],FIND(" ",LaadinfraPrivaat[[#This Row],[Power]])-1)) -> 11 | G58: =INDEX(Laadpleinkosten!$C$16:$K$16,1,MATCH(LaadinfraPrivaat[[#This Row],[Power]],Laadpleinkosten!$C$8:$K$8,0)) -> 3566 | H58: =INDEX(Laadpleinkosten!$C$11:$K$11,1,MATCH(LaadinfraPrivaat[[#This Row],[Power]],Laadpleinkosten!$C$8:$K$8,0)) -> 1200 | I58: =LaadinfraPrivaat[[#This Row],[Purchase & installation (€) ]]-LaadinfraPrivaat[[#This Row],[Purchase (€)]] -> 2366 | J58: =INDEX(Laadpleinkosten!$C$26:$K$26,1,MATCH(LaadinfraPrivaat[[#This Row],[Power]],Laadpleinkosten!$C$8:$K$8,0)) -> 730 | K58: =INDEX(Laadpleinkosten!$C$17:$K$17,1,MATCH(LaadinfraPrivaat[[#This Row],[Power]],Laadpleinkosten!$C$8:$K$8,0)) -> 10 | L58: =INDEX(Laadpleinkosten!$C$11:$K$18,MATCH(L$50,Laadpleinkosten!$A$11:$A$18,0),MATCH(LaadinfraPrivaat[[#This Row],[Charging type]],Laadpleinkosten!$C$7:$K$7,0)) -> 400 | M58: =INDEX(Laadpleinkosten!$C$11:$K$18,MATCH(M$50,Laadpleinkosten!$A$11:$A$18,0),MATCH(LaadinfraPrivaat[[#This Row],[Charging type]],Laadpleinkosten!$C$7:$K$7,0)) -> 100 | N58: =INDEX(Laadpleinkosten!$C$11:$K$18,MATCH(N$50,Laadpleinkosten!$A$11:$A$18,0),MATCH(LaadinfraPrivaat[[#This Row],[Charging type]],Laadpleinkosten!$C$7:$K$7,0)) -> 1266 | O58: =INDEX(Laadpleinkosten!$C$11:$K$21,MATCH(O$50,Laadpleinkosten!$A$11:$A$21,0),MATCH(LaadinfraPrivaat[[#This Row],[Charging type]],Laadpleinkosten!$C$7:$K$7,0)) -> 350
B61: Eigenschappen publieke laadinfra
B62: Basisjaar financiële cijfers: | C62: 2024 | G62: Momenteel niet in gebruik | H62: Momenteel niet in gebruik
B63: Index | C63: Charging type | D63: Power | E63: Land type | F63: Power (kW) | G63: Depth of discharge (%) | H63: Efficiency (%) | I63: External energy costs (€)
B64: 8 | C64: DC1000 | D64: 1000 kW | E64: Publiek | F64: =_xlfn.NUMBERVALUE(LEFT(LaadinfraPubliek[[#This Row],[Power]],FIND(" ",LaadinfraPubliek[[#This Row],[Power]])-1)) -> 1000 | G64: 0.7 | H64: 0.887 | I64: 0.91 | J64: linear afgeleid van onderstaande datapunten
B65: 7 | C65: DC600 | D65: 600 kW | E65: Publiek | F65: =_xlfn.NUMBERVALUE(LEFT(LaadinfraPubliek[[#This Row],[Power]],FIND(" ",LaadinfraPubliek[[#This Row],[Power]])-1)) -> 600 | G65: 0.7 | H65: 0.887 | I65: 0.67 | J65: linear afgeleid van onderstaande datapunten
B66: 6 | C66: DC350 | D66: 350 kW | E66: Publiek | F66: =_xlfn.NUMBERVALUE(LEFT(LaadinfraPubliek[[#This Row],[Power]],FIND(" ",LaadinfraPubliek[[#This Row],[Power]])-1)) -> 350 | G66: 0.7 | H66: 0.887 | I66: 0.5
B67: 5 | C67: DC150 | D67: 150 kW | E67: Publiek | F67: =_xlfn.NUMBERVALUE(LEFT(LaadinfraPubliek[[#This Row],[Power]],FIND(" ",LaadinfraPubliek[[#This Row],[Power]])-1)) -> 150 | G67: 0.7 | H67: 0.887 | I67: 0.45
B68: 4 | C68: DC50 | D68: 50 kW | E68: Publiek | F68: =_xlfn.NUMBERVALUE(LEFT(LaadinfraPubliek[[#This Row],[Power]],FIND(" ",LaadinfraPubliek[[#This Row],[Power]])-1)) -> 50 | G68: 0.7 | H68: 0.887 | I68: 0.35
B69: 3 | C69: AC43 | D69: 43 kW | E69: Publiek | F69: =_xlfn.NUMBERVALUE(LEFT(LaadinfraPubliek[[#This Row],[Power]],FIND(" ",LaadinfraPubliek[[#This Row],[Power]])-1)) -> 43 | G69: 0.8 | H69: 0.902 | I69: 0.325 | J69: interpolatie
B70: 2 | C70: AC22 | D70: 22 kW | E70: Publiek | F70: =_xlfn.NUMBERVALUE(LEFT(LaadinfraPubliek[[#This Row],[Power]],FIND(" ",LaadinfraPubliek[[#This Row],[Power]])-1)) -> 22 | G70: 0.8 | H70: 0.902 | I70: 0.3
B71: 1 | C71: AC11 | D71: 11 kW | E71: Publiek | F71: =_xlfn.NUMBERVALUE(LEFT(LaadinfraPubliek[[#This Row],[Power]],FIND(" ",LaadinfraPubliek[[#This Row],[Power]])-1)) -> 11 | G71: 0.8 | H71: 0.902 | I71: 0.3
B74: Uitstoot factoren
B75: Fuel category ID | C75: Fuel type / Vehicle type | D75: Type ID | E75: Unit | F75: CO2-eq (kg per unit) | G75: PM10 combustion (g per unit) | H75: NOx (g per unit)
B76: DV | C76: Kleine bakwagen | D76: 1 | E76: L | F76: 3.239163899 | G76: 0.04053939977 | H76: 38.2590958 | I76: DV NOx | J76: based on Euro III standards -> to calculate AdBlue
B77: DV | C77: Medium bakwagen | D77: 2 | E77: L | F77: 3.239163899 | G77: 0.04077897973 | H77: 27.55146618 | I77: PM | J77: based on Euro VI standards
B78: DV | C78: Grote bakwagen | D78: 3 | E78: L | F78: 3.239163899 | G78: 0.03862735713 | H78: 29.41422173
B79: DV | C79: Lichte trekker z/opl | D79: 4 | E79: L | F79: 3.239163899 | G79: 0.04419128514 | H79: 28.53363089
B80: DV | C80: Zware trekker z/opl | D80: 5 | E80: L | F80: 3.239163899 | G80: 0.02877760859 | H80: 28.53363089
B81: EV | C81: Grijs | D81: =Config!$A$15 -> Grijs | E81: kWh | F81: 0.536 | G81: 0 | H81: 0
B82: EV | C82: Groen | D82: =Config!$A$16 -> Groen | E82: kWh | F82: 0 | G82: 0 | H82: 0
B83: FC | C83: Grijs | D83: =Config!$A$15 -> Grijs | E83: kg H2 | F83: 12.516 | G83: 0 | H83: 0
B84: FC | C84: Blauw | D84: =Config!$A$17 -> Blauw | E84: kg H2 | F84: 4.815593466 | G84: 0 | H84: 0
B85: FC | C85: Electrolyse (netstroom) | D85: =Config!$A$18 -> Electrolyse (netstroom) | E85: kg H2 | F85: 23.71452632 | G85: 0 | H85: 0
B86: FC | C86: Electrolyse (hernieuwbare energie) | D86: =Config!$A$19 -> Electrolyse (hernieuwbare energie) | E86: kg H2 | F86: 1.14 | G86: 0 | H86: 0
B87: H2ICE-CI | C87: Grijs | D87: =Config!$A$15 -> Grijs | E87: kg H2 | F87: 12.516 | G87: 0
B88: H2ICE-CI | C88: Blauw | D88: =Config!$A$17 -> Blauw | E88: kg H2 | F88: 4.815593466 | G88: 0
B89: H2ICE-CI | C89: Electrolyse (netstroom) | D89: =Config!$A$18 -> Electrolyse (netstroom) | E89: kg H2 | F89: 23.71452632 | G89: 0
B90: H2ICE-CI | C90: Electrolyse (hernieuwbare energie) | D90: =Config!$A$19 -> Electrolyse (hernieuwbare energie) | E90: kg H2 | F90: 1.14 | G90: 0
B91: H2ICE-CI | C91: Zware trekker z/opl | D91: 5 | E91: km | F91: 0 | G91: 0 | H91: 0.76

Sheet Parameters
B2: Energieprijzen | F2: 2024 | H2: HERNIEUWBARE ENERGIE-EENHEDEN (HEB's)
B3: Item | C3: Variabele | D3: Waarde | E3: toelichting | H3: Variabele | I3: Waarde | J3: toelichting
B4: Dieselprijs | C4: Literprijs | D4: 1.09 | E4: Kale prijs diesel per liter | H4: Multiplier EV | I4: 4
B5: Dieselprijs | C5: Accijns | D5: 0.5163 | E5: Accijns diesel per liter | H5: Multiplier FC | I5: 2.5
B6: Elektriciteitsprijs | C6: kWh | D6: =Laadpleinkosten!C31 -> 0.21537 | E6: inkoopprijs stroom per kWh | H6: Aandeel groene energie 'grijze' stroom | I6: 0.264
B7: Waterstofprijs | C7: =Config!$A$15 -> Grijs | D7: 7.56 | E7: Inkoopprijs grijze waterstof per liter | H7: Waarde HBE | I7: 9.5
B8: Waterstofprijs | C8: =Config!$A$17 -> Blauw | D8: 8.06 | E8: Inkoopprijs blauwe waterstof per liter | H8: Energiewaarde (MJ) per kg H2 | I8: 120.1
B9: Waterstofprijs | C9: =Config!$A$18 -> Electrolyse (netstroom) | D9: 10 | E9: Inkoopprijs waterstof per liter | H9: Vaste kosten registratie (per jaar) | I9: 2000
B10: Waterstofprijs | C10: =Config!$A$19 -> Electrolyse (hernieuwbare energie) | D10: 19 | E10: Inkoopprijs waterstof per liter
H12: Estimated value of vehicle according to age
B13: INZETGEGEVENS VOERTUIG SYSTEM | H13: Age | I13: Percentage of value of new vehicle price (%)
B14: Variabele | C14: Waarde | D14: toelichting | H14: 0 | I14: 1
B15: Productieve dagen per jaar | C15: 260 | H15: 1 | I15: 0.81
B16: Max. tijd per dag opladen extern | C16: 1 | H16: 2 | I16: 0.66
B17: Max. # keer opladen extern / dag | C17: 1 | H17: 3 | I17: 0.53
B18: Aandeel koelunit | C18: 0.5 | H18: 4 | I18: 0.43
B19: Gewenste restcapaciteit batterij | C19: 0.2 | H19: 5 | I19: 0.35
B20: Aandeel snelweg kilometers | C20: 0.75 | D20: Gemiddeld aandeel op snelweg voor tolheffing | H20: 6 | I20: 0.29
B21: Efficiëntie van transmissie overdracht (EV) | C21: 1 | H21: 7 | I21: 0.23
B22: Efficiëntie van transmissie overdracht (DV) | C22: 1 | H22: 8 | I22: 0.19
B23: Efficiëntie van transmissie overdracht (FC) | C23: 1 | H23: 9 | I23: 0.15
B24: NOx standaard (Euro VI) | C24: 0.46 | H24: 10 | I24: 0.12
B25: Efficiëntie van transmissie overdracht (H2ICE) | C25: 1 | H25: >10 | I25: 0.1
B28: Financiële parameters
B29: Item | C29: Variabele | D29: Waarde | E29: toelichting | H29: Jaarlijkse veranderingen
B30: Financiering | C30: Rente | D30: 0.039 | E30: % | H30: Variabele | I30: Waarde | J30: toelichting
B31: Financiering | C31: Verzekering | D31: 0.03568675887 | E31: % | H31: Dieselprijs | I31: 0.01
B32: Chauffeurskosten | C32: Verblijfkostenvergoeding | D32: 1.01 | E32: €/uur | H32: Eigen energiekosten | I32: 0.01
B33: Chauffeurskosten | C33: Overige chauffeurskosten | D33: 0.55 | E33: €/uur | H33: Energiekosten extern opladen | I33: 0.01
B34: Overhead | C34: Loon incl. sociale lasten | D34: 0.084 | E34: % | H34: Waterstof | I34: 0
B35: Overhead | C35: Huisvesting | D35: 0.026 | E35: %
B36: Overhead | C36: Overig overhead | D36: 0.05 | E36: %
H39: Parameters stationaire batterij
H40: Item | I40: Variabele | J40: Waarde | K40: toelichting
H41: Gebruik | I41: =Config!$A$60 -> Afschrijftermijn [jaar] | J41: 15 | K41: jaar
B42: AdBlue | H42: Gebruik | I42: =Config!$A$61 -> Prijs per kWh | J42: 550 | K42: euro/kWh
B43: Variabele | C43: Waarde | D43: toelichting | H43: Gebruik | I43: =Config!$A$62 -> Capaciteit batterij (kWh) | J43: 1000 | K43: kWh. Gebruiker mag tussen 400 en 1500 invullen
B44: NOx standaard (Euro VI) | C44: 0.46 | H44: Gebruik | I44: =Config!$A$63 -> Max. ontlading batterij | J44: 0.8 | K44: Maximale ontlading batterij
B45: Adblue gebruik | C45: 0.0008324498656 | D45: benodigd aantal L per g NOx reductie | H45: Gebruik | I45: =Config!$A$64 -> Sessies per week | J45: 5 | K45: aantal keer per week dat voertuig hiermee geladen wordt
B46: Kosten Adblue | C46: 0.7562 | D46: per L | H46: Gebruik | I46: =Config!$A$66 -> Fractie eigen opwek | J46: 0.5 | K46: Welk deel van energie voor opladen batterij komt van eigen opwek
H47: OPEX | I47: =Config!$A$65 -> Eigen opwek | J47: 0.11 | K47: euro/kWh
H48: CAPEX | I48: =Config!$A$67 -> Afleveringsskosten | J48: 1500 | K48: euro
H49: CAPEX | I49: =Config!$A$68 -> Plaatsingskosten | J49: 5000 | K49: euro
H50: CAPEX | I50: =Config!$A$69 -> Extra opties | J50: 0 | K50: euro
H51: OPEX | I51: =Config!$A$70 -> Onderhoudscontract | J51: 5400 | K51: euro/jaar
H52: OPEX | I52: =Config!$A$71 -> Energiemanagement software | J52: 7500 | K52: euro/jaar
H53: OPEX | I53: =Config!$A$72 -> Monitoring | J53: 15000 | K53: euro/jaar
H54: Marge | I54: Marge | J54: 0.1 | K54: Bij welke marge (kosten/kWh laadplein tov batterij) wordt melding getoond dat stationaire batterij interessant zou kunnen zijn.

Sheet Laadpleinkosten
A1: Basis
A4: Overzicht aannames TCO/kWh prijs op diverse laadpalen
A5: Alle bedragen excl. BTW
B6: 2024-06-24
C7: AC3,7 | D7: AC11 | E7: AC22 | F7: AC43 | G7: DC50 | H7: DC150 | I7: DC350 | J7: DC600 | K7: DC1000
C8: 3,7 kW | D8: 11 kW | E8: 22 kW | F8: 43 kW | G8: 50 kW | H8: 150 kW | I8: 350 kW | J8: 600 kW | K8: 1000 kW
C9: privaat | D9: privaat | E9: privaat | F9: privaat | G9: privaat | H9: privaat | I9: privaat | J9: privaat | K9: privaat
A10: CAPEX, Plaatsing | C10: 3x25A | D10: 3x25A | E10: 3x35A | F10: 3x63A | G10: 3x80A
A11: Inkoopprijs paal | B11: eenmalig | C11: 800 | D11: 1200 | E11: 1400 | F11: 2000 | G11: 22000 | H11: 50000 | I11: 80000 | J11: 135000 | K11: 325000
A12: Locatiebepaling, enginering, proj mgt | B12: eenmalig | C12: 100 | D12: 100 | E12: 100 | F12: 200 | G12: 200 | H12: 2000 | I12: 3000 | J12: 4000 | K12: 6000
A13: Civiele werken/plaatsing | B13: eenmalig | C13: 500 | D13: 600 | E13: 800 | F13: 1500 | G13: 1500 | H13: 4000 | I13: 5000 | J13: 7000 | K13: 10000
A14: Graaf werk | B14: eenmalig | C14: 400 | D14: 400 | E14: 500 | F14: 700 | G14: 700 | H14: 5000 | I14: 5000 | J14: 7000 | K14: 10000
A15: Aansluitkosten netbeheerder (!) | B15: eenmalig | C15: 1266 | D15: 1266 | E15: 1717 | F15: 1743 | G15: 1929 | H15: 9004 | I15: 30069 | J15: 32141 | K15: 53128
A16: Totaal | B16: eenmalig | C16: =SUM(C11:C15) -> 3066 | D16: 3566 | E16: 4517 | F16: 6143 | G16: 26329 | H16: 70004 | I16: 123069 | J16: 185141 | K16: 404128
A17: Afschrijvingstermijn | B17: jaar | C17: 10 | D17: 10 | E17: 10 | F17: 10 | G17: 10 | H17: 10 | I17: 10 | J17: 10 | K17: 10
A18: Totaal | B18: per jaar | C18: =C16/C17 -> 306.6 | D18: 356.6 | E18: 451.7 | F18: 614.3 | G18: 2632.9 | H18: 7000.4 | I18: 12306.9 | J18: 18514.1 | K18: 40412.8
C19: AC3,7 | D19: AC11 | E19: AC22 | F19: AC43 | G19: DC50 | H19: DC150 | I19: DC350 | J19: DC600 | K19: DC1000
A20: OPEX, Operationele kosten
A21: Periodieke kosten netaansluiting (!) | B21: per jaar | C21: 350 | D21: 350 | E21: 1440 | F21: 2792 | G21: 3441 | H21: 12354 | I21: 21965 | J21: 36275 | K21: 59171
A22: Communicatiekosten | B22: per jaar | C22: 100 | D22: 100 | E22: 100 | F22: 100 | G22: 100 | H22: 200 | I22: 200 | J22: 200 | K22: 200
A23: Verzekeringspremie (schade) | B23: per jaar | C23: 40 | D23: 80 | E23: 100 | F23: 150 | G23: 800 | H23: 1200 | I23: 1500 | J23: 2000 | K23: 3000
A24: Onderhoud/reparatie | B24: per jaar | C24: 100 | D24: 200 | E24: 300 | F24: 400 | G24: 800 | H24: 1200 | I24: 1500 | J24: 2000 | K24: 2500
A25: Service bij gebruikersproblemen (incl) | B25: per jaar | C25: 0 | D25: 0 | E25: 0 | F25: 0 | G25: 0 | H25: 0 | I25: 0 | J25: 0 | K25: 0
A26: Totaal | B26: per jaar | C26: =SUM(C21:C25) -> 590 | D26: =SUM(D21:D25) -> 730 | E26: 1940 | F26: 3442 | G26: 5141 | H26: 14954 | I26: 25165 | J26: 40475 | K26: 64871
C27: AC3,7 | D27: AC11 | E27: AC22 | F27: AC43 | G27: DC50 | H27: DC150 | I27: DC350 | J27: DC600 | K27: DC1000
A28: OPEX, Energiekosten
A29: Vergoeding leverancier (inkoop) | B29: €/kWh | C29: =$E$40 -> 0.105 | D29: =$E$40 -> 0.105 | E29: 0.105 | F29: 0.105 | G29: 0.105 | H29: 0.105 | I29: 0.105 | J29: 0.105 | K29: 0.105
A30: E-belasting + lev.kosten Zone 3 (50-10.000 MWH) | B30: €/kWh | C30: =$C40+$D40 -> 0.11037 | D30: =$C40+$D40 -> 0.11037 | E30: 0.11037 | F30: 0.11037 | G30: 0.11037 | H30: 0.11037 | I30: 0.11037 | J30: 0.11037 | K30: 0.11037
A31: Totaal | B31: €/kWh | C31: =SUM(C29:C30) -> 0.21537 | D31: =SUM(D29:D30) -> 0.21537 | E31: 0.21537 | F31: 0.21537 | G31: 0.21537 | H31: 0.21537 | I31: 0.21537 | J31: 0.21537 | K31: 0.21537
A33: Totale kosten | B33: "vast" per jaar | C33: =C18+C26 -> 896.6 | D33: =D18+D26 -> 1086.6 | E33: 2391.7 | F33: 4056.3 | G33: 7773.9 | H33: 21954.4 | I33: 37471.9 | J33: 58989.1 | K33: 105283.8
A34: Energiekosten medium | B34: "variabel"per kWh | C34: =C31 -> 0.21537 | D34: =D31 -> 0.21537 | E34: 0.21537 | F34: 0.21537 | G34: 0.21537 | H34: 0.21537 | I34: 0.21537 | J34: 0.21537 | K34: 0.21537
B37: staffel | C37: e-belast | D37: levkost | E37: Kale prijs | G37: Totaal
A38: zone 1 | B38: tot 10 MWh | C38: 0.1088 | D38: 0.08 | E38: =E40 -> 0.105 | G38: =SUM(C38:E38) -> 0.2938 | H38: 45467
A39: zone 2 | B39: 10-50 MWh | C39: 0.1088 | D39: 0.04 | E39: =E40 -> 0.105 | G39: 0.2538 | H39: 45467
A40: zone 3 | B40: 50-10.000 MWh | C40: 0.09037 | D40: 0.02 | E40: 0.105 | G40: =SUM(C40:E40) -> 0.21537 | H40: 45467

Sheet Config
A1: Versie | B1: 7.3
A9: Invoervelden | I9: Formatteren subsidie-waarden
A10: Lan | B10: Dutch | C10: English | J10: EV | K10: FC | L10: h2ICE
A11: =IF('Read Me'!$C$3="Nederlands",B11, IF('Read Me'!$C$3="English",C11,C11)) -> Ja | B11: Ja | C11: Yes | I11: AanZET-subsidie | J11: =TEXT('M2-Subsidie'!B35,"€#.##0,00") -> €0,00 | K11: =TEXT('M2-Subsidie'!C35,"€#.##0,00") -> €0,00 | L11: =TEXT('M2-Subsidie'!D35,"€#.##0,00") -> €0,00
A12: =IF('Read Me'!$C$3="Nederlands",B12, IF('Read Me'!$C$3="English",C12,C12)) -> Nee | B12: Nee | C12: No | I12: MIA-subsidie | J12: =TEXT('M2-Subsidie'!B36,"€#.##0,00") -> €15.563,22 | K12: =TEXT('M2-Subsidie'!C36,"€#.##0,00") -> €27.148,61 | L12: =TEXT('M2-Subsidie'!D36,"€#.##0,00") -> €0,00
A13: =IF('Read Me'!$C$3="Nederlands",B13, IF('Read Me'!$C$3="English",C13,C13)) -> Koeling | B13: Koeling | C13: Cooling | I13: MIA if SPRILA subsidie laadpaal | J13: =TEXT('M2-Subsidie'!B37,"€#.##0,00") -> €0,00
A14: =IF('Read Me'!$C$3="Nederlands",B14, IF('Read Me'!$C$3="English",C14,C14)) -> Kan het voertuig koelen? Een koeling is enkel relevant voor bakwagens. Voor trekkers worden daarom geen (energie)kosten voor koeling meegenomen. | B14: Kan het voertuig koelen? Een koeling is enkel relevant voor bakwagens. Voor trekkers worden daarom geen (energie)kosten voor koeling meegenomen. | C14: Is the vehicle able to cool? A cooling unit is only relevant for trucks. For tractors no (energy)costs for cooling are taken into account.
A15: =IF('Read Me'!$C$3="Nederlands",B15, IF('Read Me'!$C$3="English",C15,C15)) -> Grijs | B15: Grijs | C15: Gray
A16: =IF('Read Me'!$C$3="Nederlands",B16, IF('Read Me'!$C$3="English",C16,C16)) -> Groen | B16: Groen | C16: Green
A17: =IF('Read Me'!$C$3="Nederlands",B17, IF('Read Me'!$C$3="English",C17,C17)) -> Blauw | B17: Blauw | C17: Blue
A18: =IF('Read Me'!$C$3="Nederlands",B18, IF('Read Me'!$C$3="English",C18,C18)) -> Electrolyse (netstroom) | B18: Electrolyse (netstroom) | C18: Electrolysis (grid-average)
A19: =IF('Read Me'!$C$3="Nederlands",B19, IF('Read Me'!$C$3="English",C19,C19)) -> Electrolyse (hernieuwbare energie) | B19: Electrolyse (hernieuwbare energie) | C19: Electrolysis (renewable energy)
A20: =IF('Read Me'!$C$3="Nederlands",B20, IF('Read Me'!$C$3="English",C20,C20)) -> BV of NV met 19% belasting | B20: BV of NV met 19% belasting | C20: BV or NV with 19% tax
A21: =IF('Read Me'!$C$3="Nederlands",B21, IF('Read Me'!$C$3="English",C21,C21)) -> BV of NV met 25,8% belasting | B21: BV of NV met 25,8% belasting | C21: BV or NV with 25.8% tax
A22: =IF('Read Me'!$C$3="Nederlands",B22, IF('Read Me'!$C$3="English",C22,C22)) -> Eenmanszaak met 36,93% belasting | B22: Eenmanszaak met 36,93% belasting | C22: Sole proprietorship with 36,93% tax
A23: =IF('Read Me'!$C$3="Nederlands",B23, IF('Read Me'!$C$3="English",C23,C23)) -> Eenmanszaak met 49,5% belasting | B23: Eenmanszaak met 49,5% belasting | C23: Sole proprietorship with 49.5% tax
A24: =IF('Read Me'!$C$3="Nederlands",B24, IF('Read Me'!$C$3="English",C24,C24)) -> Klein | B24: Klein | C24: Small
A25: =IF('Read Me'!$C$3="Nederlands",B25, IF('Read Me'!$C$3="English",C25,C25)) -> Middelgroot | B25: Middelgroot | C25: Medium
A26: =IF('Read Me'!$C$3="Nederlands",B26, IF('Read Me'!$C$3="English",C26,C26)) -> Groot | B26: Groot | C26: Large
A27: =IF('Read Me'!$C$3="Nederlands",B27, IF('Read Me'!$C$3="English",C27,C27)) -> Omvang bedrijf | B27: Omvang bedrijf | C27: Company size
A28: =IF('Read Me'!$C$3="Nederlands",B28, IF('Read Me'!$C$3="English",C28,C28)) -> Groot: >250 fte, >€50 mil omzet Middelgroot: <250 fte, <€50 mil omzet Klein: <50 fte, <€10 mil omzet | B28: Groot: >250 fte, >€50 mil omzet Middelgroot: <250 fte, <€50 mil omzet Klein: <50 fte, <€10 mil omzet | C28: Large: >250 fte, >€50 mil revenue Medium: <250 fte, <€50 mil revenue Small: <50 fte, <€10 mil revenue
A29: =IF('Read Me'!$C$3="Nederlands",B29, IF('Read Me'!$C$3="English",C29,C29)) -> Herstel invoervelden | B29: Herstel invoervelden | C29: Reset input
A30: =IF('Read Me'!$C$3="Nederlands",B30, IF('Read Me'!$C$3="English",C30,C30)) -> Toegepaste waarde: | B30: Toegepaste waarde: | C30: Applied value:
A31: =IF('Read Me'!$C$3="Nederlands",B31, IF('Read Me'!$C$3="English",C31,C31)) -> Enkele laadpaal | B31: Enkele laadpaal | C31: Single installation
A32: =IF('Read Me'!$C$3="Nederlands",B32, IF('Read Me'!$C$3="English",C32,C32)) -> Laadpleinmodel | B32: Laadpleinmodel | C32: Charging hub module
A33: =IF('Read Me'!$C$3="Nederlands",B33, IF('Read Me'!$C$3="English",C33,C33)) -> Let op: Na 2025 kunnen er maatregelen van kracht worden die de economische levensduur van dieselvoertuigen verkorten. | B33: Let op: Na 2025 kunnen er maatregelen van kracht worden die de economische levensduur van dieselvoertuigen verkorten. | C33: Please Note: After 2025, measures may take effect that shorten the economic life of diesel vehicles.
A34: =IF('Read Me'!$C$3="Nederlands",B34, IF('Read Me'!$C$3="English",C34,C34)) -> Let op: Het verdienen van HBE’s is aan strenge regels onderworpen. Er wordt 2.000 euro per jaar in rekening gebracht voor kosten die gemaakt moeten worden om HBE's te innen. | B34: Let op: Het verdienen van HBE’s is aan strenge regels onderworpen. Er wordt 2.000 euro per jaar in rekening gebracht voor kosten die gemaakt moeten worden om HBE's te innen. | C34: Please Note: Earning HBEs is subject to strict rules. There is a charge of 2,000 euros per year for costs incurred to collect HBEs.
A35: =IF('Read Me'!$C$3="Nederlands",B35, IF('Read Me'!$C$3="English",C35,C35)) -> Let op: Het budget van de AanZET-subsidie voor het jaar 2024 is reeds uitgeput. | B35: Let op: Het budget van de AanZET-subsidie voor het jaar 2024 is reeds uitgeput. | C35: Please Note: The AanZET grant budget for the year 2024 has already been exhausted.
A36: =IF('Read Me'!$C$3="Nederlands",B36, IF('Read Me'!$C$3="English",C36,C36)) -> De in het TCO-Vracht gebruikte default- c.q. standaardwaarden zijn met de grootste zorg verzameld. Het betreft echter gemiddelde cijfers, de werkelijke cijfers kunnen ofwel hoger dan wel lager zijn. Hoewel veel zorg is besteed aan de correctheid van de rekenregels en de gebruikte inputdata, is Panteia of de Topsector Logistiek niet aansprakelijk te houden voor de juistheid van de rekenresultaten. | B36: De in het TCO-Vracht gebruikte default- c.q. standaardwaarden zijn met de grootste zorg verzameld. Het betreft echter gemiddelde cijfers, de werkelijke cijfers kunnen ofwel hoger dan wel lager zijn. Hoewel veel zorg is besteed aan de correctheid van de rekenregels en de gebruikte inputdata, is Panteia of de Topsector Logistiek niet aansprakelijk te houden voor de juistheid van de rekenresultaten. | C36: The default values used in TCO Freight have been compiled with the greatest care. However, these are average figures; the actual figures may be either higher or lower. Although great care was taken to ensure the correctness of the calculation rules and the input data used, Panteia or Top Sector Logistics cannot be held liable for the correctness of the calculation results.
A37: =IF('Read Me'!$C$3="Nederlands",B37, IF('Read Me'!$C$3="English",C37,C37)) -> Kleine bakwagen (lvm ca. 6 ton) | B37: Kleine bakwagen (lvm ca. 6 ton) | C37: Small truck (load approx. 6 tonnes)
A38: =IF('Read Me'!$C$3="Nederlands",B38, IF('Read Me'!$C$3="English",C38,C38)) -> Kleine bakwagen/ Verhuiswagen | B38: Kleine bakwagen/ Verhuiswagen | C38: Small truck / moving van
A39: =IF('Read Me'!$C$3="Nederlands",B39, IF('Read Me'!$C$3="English",C39,C39)) -> Medium bakwagen (lvm ca. 9 ton) | B39: Medium bakwagen (lvm ca. 9 ton) | C39: Medium size truck (load approx. 9 tonnes)
A40: =IF('Read Me'!$C$3="Nederlands",B40, IF('Read Me'!$C$3="English",C40,C40)) -> Medium bakwagen/ Verhuiswagen | B40: Medium bakwagen/ Verhuiswagen | C40: Medium size truck / moving van
A41: =IF('Read Me'!$C$3="Nederlands",B41, IF('Read Me'!$C$3="English",C41,C41)) -> Grote bakwagen (lvm > 16 ton) | B41: Grote bakwagen (lvm > 16 ton) | C41: Large truck (load >16 tonnes)
A42: =IF('Read Me'!$C$3="Nederlands",B42, IF('Read Me'!$C$3="English",C42,C42)) -> Grote bakwagen/ Verhuiswagen | B42: Grote bakwagen/ Verhuiswagen | C42: Large truck / moving van | P42: Kleine bakwagen (lvm ca. 6 ton) | Q42: Small Truck (carr. cap. approx. 6 tons)
A43: =IF('Read Me'!$C$3="Nederlands",B43, IF('Read Me'!$C$3="English",C43,C43)) -> Grote bakwagen/ Bouwvervoer | B43: Grote bakwagen/ Bouwvervoer | C43: Large truck / Concstruction | P43: Medium bakwagen (lvm ca. 9 ton) | Q43: Medium size truck (c. cap. approx. 9 tons)
A44: =IF('Read Me'!$C$3="Nederlands",B44, IF('Read Me'!$C$3="English",C44,C44)) -> Lichte trekker z/opl (GVW < 40 ton) | B44: Lichte trekker z/opl (GVW < 40 ton) | C44: Light tractor (GVW <40 tonnes) | P44: Grote bakwagen (lvm > 16 ton) | Q44: Large truck (carr. cap. >16 tons)
A45: =IF('Read Me'!$C$3="Nederlands",B45, IF('Read Me'!$C$3="English",C45,C45)) -> Zware trekker z/opl (GVW > 40 ton) | B45: Zware trekker z/opl (GVW > 40 ton) | C45: Heavy duty tractor (GVW >40 tonnes) | P45: Lichte trekker z/opl (GVW <40 ton) | Q45: Light tractor (GVW <40 tons)
A46: =IF('Read Me'!$C$3="Nederlands",B46, IF('Read Me'!$C$3="English",C46,C46)) -> Zware trekker z/opl/ Containertrucking | B46: Zware trekker z/opl/ Containertrucking | C46: Heavy duty tractor / container transport | P46: Zware trekker z/opl (GVW >40 ton) | Q46: Heavy duty tractor (GVW >40 tons)
A47: =IF('Read Me'!$C$3="Nederlands",B47, IF('Read Me'!$C$3="English",C47,C47)) -> Kleine bakwagen | B47: Kleine bakwagen | C47: Small truck
A48: =IF('Read Me'!$C$3="Nederlands",B48, IF('Read Me'!$C$3="English",C48,C48)) -> Medium bakwagen | B48: Medium bakwagen | C48: Medium size truck
A49: =IF('Read Me'!$C$3="Nederlands",B49, IF('Read Me'!$C$3="English",C49,C49)) -> Grote bakwagen | B49: Grote bakwagen | C49: Large truck
A50: =IF('Read Me'!$C$3="Nederlands",B50, IF('Read Me'!$C$3="English",C50,C50)) -> Lichte trekker z/opl | B50: Lichte trekker z/opl | C50: Light tractor
A51: =IF('Read Me'!$C$3="Nederlands",B51, IF('Read Me'!$C$3="English",C51,C51)) -> Zware trekker z/opl | B51: Zware trekker z/opl | C51: Heavy duty tractor
A52: =IF('Read Me'!$C$3="Nederlands",B52, IF('Read Me'!$C$3="English",C52,C52)) -> Neem netverzwaring mee | B52: Neem netverzwaring mee | C52: Include upgrade mains connection
A53: =IF('Read Me'!$C$3="Nederlands",B53, IF('Read Me'!$C$3="English",C53,C53)) -> Neem netverzwaring niet mee | B53: Neem netverzwaring niet mee | C53: Don't include upgrade mains connection
A54: =IF('Read Me'!$C$3="Nederlands",B54, IF('Read Me'!$C$3="English",C54,C54)) -> Stap 1 Vul het verwachte aantal elektrische vrachtvoertuigen per type op uw vestiging in de huidige situatie en in de komende tien jaar (per 2 jaar). Houd hierbij rekening met het aantal voertuigen dat tegelijk zal opladen (waardoor tegelijkertijd een laadbehoefte ontstaat). Belangrijk: Het invullen van het totale wagenpark moet voor ieder jaar afzonderlijk gebeuren. Vul in de eerste kolom het huidige aantal e-voertuigen in dat u al heeft. | B54: Stap 1 Vul het verwachte aantal elektrische vrachtvoertuigen per type op uw vestiging in de huidige situatie en in de komende tien jaar (per 2 jaar). Houd hierbij rekening met het aantal voertuigen dat tegelijk zal opladen (waardoor tegelijkertijd een laadbehoefte ontstaat). Belangrijk: Het invullen van het totale wagenpark moet voor ieder jaar afzonderlijk gebeuren. Vul in de eerste kolom het huidige aantal e-voertuigen in dat u al heeft. | C54: Step 1 Fill in the expected amount of eletric vehicles per type on your location for the next ten years (per 2 years). Keep the number of vehicles that need to charge simultaneous in mind (hence with overlap in loading demand). Important: the cells need to be filled in for all years. Use the first column for your current amount of e-vehicles.
A55: =IF('Read Me'!$C$3="Nederlands",B55, IF('Read Me'!$C$3="English",C55,C55)) -> Stap 2 Geef het verwachte jaarkilometrage (per voertuigtype) van uw voertuigen op. Op basis hiervan is een gemiddelde per dag berekend. Als dit sterk afwijkt van uw maximale dagelijkse afstand, vul dan zelf deze waarde in (kolom [Maximum per dag]). Per voertuigtype is een inschatting gemaakt van het gemiddelde energieverbruik. Weet u het energieverbruik? Vul deze dan zelf in de kolom [Eigen input] in. | B55: Stap 2 Geef het verwachte jaarkilometrage (per voertuigtype) van uw voertuigen op. Op basis hiervan is een gemiddelde per dag berekend. Als dit sterk afwijkt van uw maximale dagelijkse afstand, vul dan zelf deze waarde in (kolom [Maximum per dag]). Per voertuigtype is een inschatting gemaakt van het gemiddelde energieverbruik. Weet u het energieverbruik? Vul deze dan zelf in de kolom [Eigen input] in. | C55: Step 2 Fill in the expected annual mileage (in kilometres) per vehicle type. Based on this mileage a daily average is calculated. If this daily average differs strongly from your daily maximum, please give this maximum in column [daily max]. Per vehicle type an estimation is made of the average energy use. If you know the exact energy use of your vehicle please fill in column [own input].
A56: =IF('Read Me'!$C$3="Nederlands",B56, IF('Read Me'!$C$3="English",C56,C56)) -> Stap 3 Vul per voertuigtype de hoeveel tijd (uren) in dat de vrachtwagens per dag kunnen opladen. Op basis van de benodigde energievraag wordt de kleinst mogelijke laadpaal berekend. U kunt deze vervangen met een eigen keuze. Let op: u kunt alleen een laadpaal met een hoger vermogen kiezen. | B56: Stap 3 Vul per voertuigtype de hoeveel tijd (uren) in dat de vrachtwagens per dag kunnen opladen. Op basis van de benodigde energievraag wordt de kleinst mogelijke laadpaal berekend. U kunt deze vervangen met een eigen keuze. Let op: u kunt alleen een laadpaal met een hoger vermogen kiezen. | C56: Step 3 State the number of hours that a vehicle is able to charge (on your own location) per day. Based on the needed energy and available charging time the least heavy charging infra is calculated and advised. You can override with your own choice, but you can only choose charging infra with an higher output.
A57: =IF('Read Me'!$C$3="Nederlands",B57, IF('Read Me'!$C$3="English",C57,C57)) -> Niet mogelijk | B57: Niet mogelijk | C57: Not possible
A58: =IF('Read Me'!$C$3="Nederlands",B58, IF('Read Me'!$C$3="English",C58,C58)) -> * Bovenstaand piekvermogen is van toepassing in het geval dat alle laadpalen gelijktijdig worden gebruikt. Let op dat wanneer deze piek groter is dan uw publieke aansluiting toestaat, de zekering van uw aansluiting op het publieke net springt! De piek kan verlaagd worden door de toepassing van een "smart charging grid". Daarnaast kan een aansluiting overwogen worden met een zonne- of windpark of een elektriciteitsopslag in batterijen. | B58: * Bovenstaand piekvermogen is van toepassing in het geval dat alle laadpalen gelijktijdig worden gebruikt. Let op dat wanneer deze piek groter is dan uw publieke aansluiting toestaat, de zekering van uw aansluiting op het publieke net springt! De piek kan verlaagd worden door de toepassing van een "smart charging grid". Daarnaast kan een aansluiting overwogen worden met een zonne- of windpark of een elektriciteitsopslag in batterijen. | C58: * The mentioned peak power is applicable when all charging stations are used simultaneously. Be aware that if peak power superceeds capacity of the mains, the fuses will pop! Peak power can be lowered by applying a "smart charging grid". Furthermore one can think of using solar- or windpower or using batteries.
A59: =IF('Read Me'!$C$3="Nederlands",B59, IF('Read Me'!$C$3="English",C59,C59)) -> Vanwege de mogelijke netverzwaring kan een stationaire batterij voor u interessant zijn. | B59: Vanwege de mogelijke netverzwaring kan een stationaire batterij voor u interessant zijn. | C59: Because of the potentially needed upgrade of your mains a stationairy battery might be beneficial.
A60: =IF('Read Me'!$C$3="Nederlands",B60, IF('Read Me'!$C$3="English",C60,C60)) -> Afschrijftermijn [jaar] | B60: Afschrijftermijn [jaar] | C60: Depreciation [years]
A61: =IF('Read Me'!$C$3="Nederlands",B61, IF('Read Me'!$C$3="English",C61,C61)) -> Prijs per kWh | B61: Prijs per kWh | C61: Price per kWh
A62: =IF('Read Me'!$C$3="Nederlands",B62, IF('Read Me'!$C$3="English",C62,C62)) -> Capaciteit batterij (kWh) | B62: Capaciteit batterij (kWh) | C62: Battery capacity (kWh)
A63: =IF('Read Me'!$C$3="Nederlands",B63, IF('Read Me'!$C$3="English",C63,C63)) -> Max. ontlading batterij | B63: Max. ontlading batterij | C63: Max. discharge battery
A64: =IF('Read Me'!$C$3="Nederlands",B64, IF('Read Me'!$C$3="English",C64,C64)) -> Sessies per week | B64: Sessies per week | C64: Sessions per week
A65: =IF('Read Me'!$C$3="Nederlands",B65, IF('Read Me'!$C$3="English",C65,C65)) -> Eigen opwek | B65: Eigen opwek | C65: Own generation
A66: =IF('Read Me'!$C$3="Nederlands",B66, IF('Read Me'!$C$3="English",C66,C66)) -> Fractie eigen opwek | B66: Fractie eigen opwek | C66: Fraction own generation
A67: =IF('Read Me'!$C$3="Nederlands",B67, IF('Read Me'!$C$3="English",C67,C67)) -> Afleveringsskosten | B67: Afleveringsskosten | C67: Delivery costs
A68: =IF('Read Me'!$C$3="Nederlands",B68, IF('Read Me'!$C$3="English",C68,C68)) -> Plaatsingskosten | B68: Plaatsingskosten | C68: Installation
A69: =IF('Read Me'!$C$3="Nederlands",B69, IF('Read Me'!$C$3="English",C69,C69)) -> Extra opties | B69: Extra opties | C69: Misc.
A70: =IF('Read Me'!$C$3="Nederlands",B70, IF('Read Me'!$C$3="English",C70,C70)) -> Onderhoudscontract | B70: Onderhoudscontract | C70: Maintenance
A71: =IF('Read Me'!$C$3="Nederlands",B71, IF('Read Me'!$C$3="English",C71,C71)) -> Energiemanagement software | B71: Energiemanagement software | C71: Energy management software
A72: =IF('Read Me'!$C$3="Nederlands",B72, IF('Read Me'!$C$3="English",C72,C72)) -> Monitoring | B72: Monitoring | C72: Monitoring
A73: =IF('Read Me'!$C$3="Nederlands",B73, IF('Read Me'!$C$3="English",C73,C73)) -> Geen subsieregeling | B73: Geen subsieregeling | C73: No subsidy scheme
A74: =IF('Read Me'!$C$3="Nederlands",B74, IF('Read Me'!$C$3="English",C74,C74)) -> MIA subsidie | B74: MIA subsidie | C74: MIA subsidy
A75: =IF('Read Me'!$C$3="Nederlands",B75, IF('Read Me'!$C$3="English",C75,C75)) -> SPRILA | B75: SPRILA | C75: SPRILA
A76: =IF('Read Me'!$C$3="Nederlands",B76, IF('Read Me'!$C$3="English",C76,C76)) -> Rechtsvorm & belastingpercentage | B76: Rechtsvorm & belastingpercentage | C76: Legal form and tax rate
A77: =IF('Read Me'!$C$3="Nederlands",B77, IF('Read Me'!$C$3="English",C77,C77)) -> Het belastingtarief is relevant om voor de MIA subsidieregeling het belastingvoordeel te berekenen op basis van de aftrekpost. Let op: het opgegeven belastingtarief is voor de gehele aftrekpost gebruikt. | B77: Het belastingtarief is relevant om voor de MIA subsidieregeling het belastingvoordeel te berekenen op basis van de aftrekpost. Let op: het opgegeven belastingtarief is voor de gehele aftrekpost gebruikt. | C77: The tax rate is relevant to calculate the tax benefit for the MIA subsidy. Be aware that the chosen tax rate is used for the complete eligable tax deduction.
A78: =IF('Read Me'!$C$3="Nederlands",B78, IF('Read Me'!$C$3="English",C78,C78)) -> De investering op de stationaire batterij is niet meegenomen voor de MIA-subsidie | B78: De investering op de stationaire batterij is niet meegenomen voor de MIA-subsidie | C78: The investment in the stationary battery is not eligable for the MIA subsidy
